Organisation Name,Organisation Code,Unique Ref No ,Effective Date,Directorate where expenditure incurred, Supplier Name ,Payment date,Net amount,Purpose of Spend,"Procurement Classification 
(Higher Level)","Procurement Classification 
(Lower Level)",CAPITAL / REVENUE,,,,,
Walsall Council,http://opendatacommunities.org/id/metropolitan-district-council/walsall ,WC149-1,30.04.2023,CHILDRENS,247 CARS (WILLENHALL) LIMITED,25/04/2023,"2,010.98",6241-Hire of Vehicle with Driver,TRANSPORT,DIRECT TRANSPORT COSTS,REVENUE
Walsall Council,http://opendatacommunities.org/id/metropolitan-district-council/walsall ,WC149-2,30.04.2023,CHILDRENS,247 CARS (WILLENHALL) LIMITED,25/04/2023,"1,387.50",6241-Hire of Vehicle with Driver,TRANSPORT,DIRECT TRANSPORT COSTS,REVENUE
Walsall Council,http://opendatacommunities.org/id/metropolitan-district-council/walsall ,WC149-3,30.04.2023,CHILDRENS,247 CARS (WILLENHALL) LIMITED,25/04/2023,"1,387.50",6241-Hire of Vehicle with Driver,TRANSPORT,DIRECT TRANSPORT COSTS,REVENUE
Walsall Council,http://opendatacommunities.org/id/metropolitan-district-council/walsall ,WC149-4,30.04.2023,CHILDRENS,247 CARS (WILLENHALL) LIMITED,25/04/2023,"1,387.50",6241-Hire of Vehicle with Driver,TRANSPORT,DIRECT TRANSPORT COSTS,REVENUE
Walsall Council,http://opendatacommunities.org/id/metropolitan-district-council/walsall ,WC149-5,30.04.2023,CHILDRENS,247 CARS (WILLENHALL) LIMITED,25/04/2023,"1,387.50",6241-Hire of Vehicle with Driver,TRANSPORT,DIRECT TRANSPORT COSTS,REVENUE
Walsall Council,http://opendatacommunities.org/id/metropolitan-district-council/walsall ,WC149-6,30.04.2023,CHILDRENS,247 CARS (WILLENHALL) LIMITED,25/04/2023,"2,925.00",6241-Hire of Vehicle with Driver,TRANSPORT,DIRECT TRANSPORT COSTS,REVENUE
Walsall Council,http://opendatacommunities.org/id/metropolitan-district-council/walsall ,WC149-7,30.04.2023,CHILDRENS,247 CARS (WILLENHALL) LIMITED,25/04/2023,997.50,6241-Hire of Vehicle with Driver,TRANSPORT,DIRECT TRANSPORT COSTS,REVENUE
Walsall Council,http://opendatacommunities.org/id/metropolitan-district-council/walsall ,WC149-8,30.04.2023,CHILDRENS,247 CARS (WILLENHALL) LIMITED,25/04/2023,"1,605.00",6241-Hire of Vehicle with Driver,TRANSPORT,DIRECT TRANSPORT COSTS,REVENUE
Walsall Council,http://opendatacommunities.org/id/metropolitan-district-council/walsall ,WC149-9,30.04.2023,CHILDRENS,247 CARS (WILLENHALL) LIMITED,25/04/2023,"1,520.90",6241-Hire of Vehicle with Driver,TRANSPORT,DIRECT TRANSPORT COSTS,REVENUE
Walsall Council,http://opendatacommunities.org/id/metropolitan-district-council/walsall ,WC149-10,30.04.2023,CHILDRENS,247 CARS (WILLENHALL) LIMITED,25/04/2023,"1,800.00",6241-Hire of Vehicle with Driver,TRANSPORT,DIRECT TRANSPORT COSTS,REVENUE
Walsall Council,http://opendatacommunities.org/id/metropolitan-district-council/walsall ,WC149-11,30.04.2023,CHILDRENS,247 CARS (WILLENHALL) LIMITED,25/04/2023,"1,974.00",6241-Hire of Vehicle with Driver,TRANSPORT,DIRECT TRANSPORT COSTS,REVENUE
Walsall Council,http://opendatacommunities.org/id/metropolitan-district-council/walsall ,WC149-12,30.04.2023,CHILDRENS,247 CARS (WILLENHALL) LIMITED,25/04/2023,"1,704.00",6241-Hire of Vehicle with Driver,TRANSPORT,DIRECT TRANSPORT COSTS,REVENUE
Walsall Council,http://opendatacommunities.org/id/metropolitan-district-council/walsall ,WC149-13,30.04.2023,CHILDRENS,247 CARS (WILLENHALL) LIMITED,25/04/2023,"1,704.00",6241-Hire of Vehicle with Driver,TRANSPORT,DIRECT TRANSPORT COSTS,REVENUE
Walsall Council,http://opendatacommunities.org/id/metropolitan-district-council/walsall ,WC149-14,30.04.2023,CHILDRENS,247 CARS (WILLENHALL) LIMITED,25/04/2023,"1,100.00",6241-Hire of Vehicle with Driver,TRANSPORT,DIRECT TRANSPORT COSTS,REVENUE
Walsall Council,http://opendatacommunities.org/id/metropolitan-district-council/walsall ,WC149-15,30.04.2023,CHILDRENS,247 CARS (WILLENHALL) LIMITED,25/04/2023,"1,915.50",6241-Hire of Vehicle with Driver,TRANSPORT,DIRECT TRANSPORT COSTS,REVENUE
Walsall Council,http://opendatacommunities.org/id/metropolitan-district-council/walsall ,WC149-16,30.04.2023,CHILDRENS,247 CARS (WILLENHALL) LIMITED,25/04/2023,"1,272.24",6241-Hire of Vehicle with Driver,TRANSPORT,DIRECT TRANSPORT COSTS,REVENUE
Walsall Council,http://opendatacommunities.org/id/metropolitan-district-council/walsall ,WC149-17,30.04.2023,CHILDRENS,247 CARS (WILLENHALL) LIMITED,25/04/2023,"1,461.60",6241-Hire of Vehicle with Driver,TRANSPORT,DIRECT TRANSPORT COSTS,REVENUE
Walsall Council,http://opendatacommunities.org/id/metropolitan-district-council/walsall ,WC149-18,30.04.2023,CHILDRENS,247 CARS (WILLENHALL) LIMITED,25/04/2023,"1,897.50",6241-Hire of Vehicle with Driver,TRANSPORT,DIRECT TRANSPORT COSTS,REVENUE
Walsall Council,http://opendatacommunities.org/id/metropolitan-district-council/walsall ,WC149-19,30.04.2023,CHILDRENS,247 CARS (WILLENHALL) LIMITED,25/04/2023,"1,704.00",6241-Hire of Vehicle with Driver,TRANSPORT,DIRECT TRANSPORT COSTS,REVENUE
Walsall Council,http://opendatacommunities.org/id/metropolitan-district-council/walsall ,WC149-20,30.04.2023,CHILDRENS,247 CARS (WILLENHALL) LIMITED,25/04/2023,"1,118.70",6241-Hire of Vehicle with Driver,TRANSPORT,DIRECT TRANSPORT COSTS,REVENUE
Walsall Council,http://opendatacommunities.org/id/metropolitan-district-council/walsall ,WC149-21,30.04.2023,CHILDRENS,247 CARS (WILLENHALL) LIMITED,25/04/2023,"1,800.45",6241-Hire of Vehicle with Driver,TRANSPORT,DIRECT TRANSPORT COSTS,REVENUE
Walsall Council,http://opendatacommunities.org/id/metropolitan-district-council/walsall ,WC149-22,30.04.2023,CHILDRENS,247 CARS (WILLENHALL) LIMITED,25/04/2023,823.20,6241-Hire of Vehicle with Driver,TRANSPORT,DIRECT TRANSPORT COSTS,REVENUE
Walsall Council,http://opendatacommunities.org/id/metropolitan-district-council/walsall ,WC149-23,30.04.2023,CHILDRENS,247 CARS (WILLENHALL) LIMITED,25/04/2023,615.20,6241-Hire of Vehicle with Driver,TRANSPORT,DIRECT TRANSPORT COSTS,REVENUE
Walsall Council,http://opendatacommunities.org/id/metropolitan-district-council/walsall ,WC149-24,30.04.2023,CHILDRENS,247 CARS (WILLENHALL) LIMITED,25/04/2023,"1,022.40",6241-Hire of Vehicle with Driver,TRANSPORT,DIRECT TRANSPORT COSTS,REVENUE
Walsall Council,http://opendatacommunities.org/id/metropolitan-district-council/walsall ,WC149-25,30.04.2023,CHILDRENS,247 CARS (WILLENHALL) LIMITED,25/04/2023,"2,212.50",6241-Hire of Vehicle with Driver,TRANSPORT,DIRECT TRANSPORT COSTS,REVENUE
Walsall Council,http://opendatacommunities.org/id/metropolitan-district-council/walsall ,WC149-26,30.04.2023,CHILDRENS,247 CARS (WILLENHALL) LIMITED,25/04/2023,"1,387.50",6241-Hire of Vehicle with Driver,TRANSPORT,DIRECT TRANSPORT COSTS,REVENUE
Walsall Council,http://opendatacommunities.org/id/metropolitan-district-council/walsall ,WC149-27,30.04.2023,CHILDRENS,247 CARS (WILLENHALL) LIMITED,25/04/2023,"2,040.00",6241-Hire of Vehicle with Driver,TRANSPORT,DIRECT TRANSPORT COSTS,REVENUE
Walsall Council,http://opendatacommunities.org/id/metropolitan-district-council/walsall ,WC149-28,30.04.2023,CHILDRENS,247 CARS (WILLENHALL) LIMITED,25/04/2023,"1,704.00",6241-Hire of Vehicle with Driver,TRANSPORT,DIRECT TRANSPORT COSTS,REVENUE
Walsall Council,http://opendatacommunities.org/id/metropolitan-district-council/walsall ,WC149-29,30.04.2023,CHILDRENS,247 CARS (WILLENHALL) LIMITED,25/04/2023,"1,704.00",6241-Hire of Vehicle with Driver,TRANSPORT,DIRECT TRANSPORT COSTS,REVENUE
Walsall Council,http://opendatacommunities.org/id/metropolitan-district-council/walsall ,WC149-30,30.04.2023,CHILDRENS,247 CARS (WILLENHALL) LIMITED,25/04/2023,"1,974.00",6241-Hire of Vehicle with Driver,TRANSPORT,DIRECT TRANSPORT COSTS,REVENUE
Walsall Council,http://opendatacommunities.org/id/metropolitan-district-council/walsall ,WC149-31,30.04.2023,CHILDRENS,247 CARS (WILLENHALL) LIMITED,25/04/2023,"1,267.50",6241-Hire of Vehicle with Driver,TRANSPORT,DIRECT TRANSPORT COSTS,REVENUE
Walsall Council,http://opendatacommunities.org/id/metropolitan-district-council/walsall ,WC149-32,30.04.2023,CHILDRENS,247 CARS (WILLENHALL) LIMITED,25/04/2023,-568.00,6241-Hire of Vehicle with Driver,TRANSPORT,DIRECT TRANSPORT COSTS,REVENUE
Walsall Council,http://opendatacommunities.org/id/metropolitan-district-council/walsall ,WC149-33,30.04.2023,CHILDRENS,247 CARS (WILLENHALL) LIMITED,25/04/2023,"2,272.00",6241-Hire of Vehicle with Driver,TRANSPORT,DIRECT TRANSPORT COSTS,REVENUE
Walsall Council,http://opendatacommunities.org/id/metropolitan-district-council/walsall ,WC149-34,30.04.2023,RESOURCES AND TRANSFORMATION,3 SPIRIT UK TRAINING & CONSULTANCY,28/04/2023,-350.00,6625-Consultant Fees,SUPPLIES & SERVICES,SERVICES,REVENUE
Walsall Council,http://opendatacommunities.org/id/metropolitan-district-council/walsall ,WC149-35,30.04.2023,RESOURCES AND TRANSFORMATION,3 SPIRIT UK TRAINING & CONSULTANCY,28/04/2023,350.00,6625-Consultant Fees,SUPPLIES & SERVICES,SERVICES,REVENUE
Walsall Council,http://opendatacommunities.org/id/metropolitan-district-council/walsall ,WC149-36,30.04.2023,"ECONOMY, ENVIRONMENT & COMMUNITIES",4GLOBAL CONSULTING LTD,13/04/2023,750.00,6413-Materials,SUPPLIES & SERVICES,EQUIPMENT FURNITURE & MATERIALS,REVENUE
Walsall Council,http://opendatacommunities.org/id/metropolitan-district-council/walsall ,WC149-37,30.04.2023,"ECONOMY, ENVIRONMENT & COMMUNITIES",4GLOBAL CONSULTING LTD,13/04/2023,750.00,6413-Materials,SUPPLIES & SERVICES,EQUIPMENT FURNITURE & MATERIALS,REVENUE
Walsall Council,http://opendatacommunities.org/id/metropolitan-district-council/walsall ,WC149-38,30.04.2023,"ECONOMY, ENVIRONMENT & COMMUNITIES",4GLOBAL CONSULTING LTD,13/04/2023,750.00,6413-Materials,SUPPLIES & SERVICES,EQUIPMENT FURNITURE & MATERIALS,REVENUE
Walsall Council,http://opendatacommunities.org/id/metropolitan-district-council/walsall ,WC149-39,30.04.2023,ADULT SOCIAL CARE,5 CARE SERVICES LTD,05/04/2023,282.80,6554-Professional Services-Priv Contractor & Other Agencies,THIRD PARTY PAYMENTS,PRIVATE CONTRACTOR,REVENUE
Walsall Council,http://opendatacommunities.org/id/metropolitan-district-council/walsall ,WC149-40,30.04.2023,ADULT SOCIAL CARE,5 CARE SERVICES LTD,05/04/2023,"2,488.64",6554-Professional Services-Priv Contractor & Other Agencies,THIRD PARTY PAYMENTS,PRIVATE CONTRACTOR,REVENUE
Walsall Council,http://opendatacommunities.org/id/metropolitan-district-council/walsall ,WC149-41,30.04.2023,ADULT SOCIAL CARE,5 CARE SERVICES LTD,05/04/2023,363.60,6554-Professional Services-Priv Contractor & Other Agencies,THIRD PARTY PAYMENTS,PRIVATE CONTRACTOR,REVENUE
Walsall Council,http://opendatacommunities.org/id/metropolitan-district-council/walsall ,WC149-42,30.04.2023,ADULT SOCIAL CARE,5 CARE SERVICES LTD,05/04/2023,323.20,6554-Professional Services-Priv Contractor & Other Agencies,THIRD PARTY PAYMENTS,PRIVATE CONTRACTOR,REVENUE
Walsall Council,http://opendatacommunities.org/id/metropolitan-district-council/walsall ,WC149-43,30.04.2023,ADULT SOCIAL CARE,5 CARE SERVICES LTD,05/04/2023,"1,018.08",6554-Professional Services-Priv Contractor & Other Agencies,THIRD PARTY PAYMENTS,PRIVATE CONTRACTOR,REVENUE
Walsall Council,http://opendatacommunities.org/id/metropolitan-district-council/walsall ,WC149-44,30.04.2023,ADULT SOCIAL CARE,5 CARE SERVICES LTD,05/04/2023,"1,018.08",6554-Professional Services-Priv Contractor & Other Agencies,THIRD PARTY PAYMENTS,PRIVATE CONTRACTOR,REVENUE
Walsall Council,http://opendatacommunities.org/id/metropolitan-district-council/walsall ,WC149-45,30.04.2023,ADULT SOCIAL CARE,5 CARE SERVICES LTD,05/04/2023,"1,018.08",6554-Professional Services-Priv Contractor & Other Agencies,THIRD PARTY PAYMENTS,PRIVATE CONTRACTOR,REVENUE
Walsall Council,http://opendatacommunities.org/id/metropolitan-district-council/walsall ,WC149-46,30.04.2023,ADULT SOCIAL CARE,5 CARE SERVICES LTD,05/04/2023,"1,381.68",6554-Professional Services-Priv Contractor & Other Agencies,THIRD PARTY PAYMENTS,PRIVATE CONTRACTOR,REVENUE
Walsall Council,http://opendatacommunities.org/id/metropolitan-district-council/walsall ,WC149-47,30.04.2023,ADULT SOCIAL CARE,5 CARE SERVICES LTD,05/04/2023,"2,036.16",6554-Professional Services-Priv Contractor & Other Agencies,THIRD PARTY PAYMENTS,PRIVATE CONTRACTOR,REVENUE
Walsall Council,http://opendatacommunities.org/id/metropolitan-district-council/walsall ,WC149-48,30.04.2023,ADULT SOCIAL CARE,5 CARE SERVICES LTD,05/04/2023,545.40,6553-Professional Services-Priv Contractor & Other Agencies,THIRD PARTY PAYMENTS,PRIVATE CONTRACTOR,REVENUE
Walsall Council,http://opendatacommunities.org/id/metropolitan-district-council/walsall ,WC149-49,30.04.2023,ADULT SOCIAL CARE,5 CARE SERVICES LTD,05/04/2023,"1,082.72",6554-Professional Services-Priv Contractor & Other Agencies,THIRD PARTY PAYMENTS,PRIVATE CONTRACTOR,REVENUE
Walsall Council,http://opendatacommunities.org/id/metropolitan-district-council/walsall ,WC149-50,30.04.2023,ADULT SOCIAL CARE,5 CARE SERVICES LTD,05/04/2023,759.52,6554-Professional Services-Priv Contractor & Other Agencies,THIRD PARTY PAYMENTS,PRIVATE CONTRACTOR,REVENUE
Walsall Council,http://opendatacommunities.org/id/metropolitan-district-council/walsall ,WC149-51,30.04.2023,ADULT SOCIAL CARE,5 CARE SERVICES LTD,05/04/2023,282.80,6554-Professional Services-Priv Contractor & Other Agencies,THIRD PARTY PAYMENTS,PRIVATE CONTRACTOR,REVENUE
Walsall Council,http://opendatacommunities.org/id/metropolitan-district-council/walsall ,WC149-52,30.04.2023,ADULT SOCIAL CARE,5 CARE SERVICES LTD,05/04/2023,993.84,6554-Professional Services-Priv Contractor & Other Agencies,THIRD PARTY PAYMENTS,PRIVATE CONTRACTOR,REVENUE
Walsall Council,http://opendatacommunities.org/id/metropolitan-district-council/walsall ,WC149-53,30.04.2023,ADULT SOCIAL CARE,5 CARE SERVICES LTD,05/04/2023,565.60,6554-Professional Services-Priv Contractor & Other Agencies,THIRD PARTY PAYMENTS,PRIVATE CONTRACTOR,REVENUE
Walsall Council,http://opendatacommunities.org/id/metropolitan-district-council/walsall ,WC149-54,30.04.2023,ADULT SOCIAL CARE,5 CARE SERVICES LTD,05/04/2023,323.20,6554-Professional Services-Priv Contractor & Other Agencies,THIRD PARTY PAYMENTS,PRIVATE CONTRACTOR,REVENUE
Walsall Council,http://opendatacommunities.org/id/metropolitan-district-council/walsall ,WC149-55,30.04.2023,ADULT SOCIAL CARE,5 CARE SERVICES LTD,05/04/2023,"1,381.68",6554-Professional Services-Priv Contractor & Other Agencies,THIRD PARTY PAYMENTS,PRIVATE CONTRACTOR,REVENUE
Walsall Council,http://opendatacommunities.org/id/metropolitan-district-council/walsall ,WC149-56,30.04.2023,ADULT SOCIAL CARE,5 CARE SERVICES LTD,05/04/2023,"1,018.08",6554-Professional Services-Priv Contractor & Other Agencies,THIRD PARTY PAYMENTS,PRIVATE CONTRACTOR,REVENUE
Walsall Council,http://opendatacommunities.org/id/metropolitan-district-council/walsall ,WC149-57,30.04.2023,ADULT SOCIAL CARE,5 CARE SERVICES LTD,05/04/2023,"1,018.08",6554-Professional Services-Priv Contractor & Other Agencies,THIRD PARTY PAYMENTS,PRIVATE CONTRACTOR,REVENUE
Walsall Council,http://opendatacommunities.org/id/metropolitan-district-council/walsall ,WC149-58,30.04.2023,ADULT SOCIAL CARE,5 CARE SERVICES LTD,05/04/2023,"2,036.16",6554-Professional Services-Priv Contractor & Other Agencies,THIRD PARTY PAYMENTS,PRIVATE CONTRACTOR,REVENUE
Walsall Council,http://opendatacommunities.org/id/metropolitan-district-council/walsall ,WC149-59,30.04.2023,ADULT SOCIAL CARE,5 CARE SERVICES LTD,05/04/2023,"1,050.40",6554-Professional Services-Priv Contractor & Other Agencies,THIRD PARTY PAYMENTS,PRIVATE CONTRACTOR,REVENUE
Walsall Council,http://opendatacommunities.org/id/metropolitan-district-council/walsall ,WC149-60,30.04.2023,ADULT SOCIAL CARE,5 CARE SERVICES LTD,05/04/2023,"1,163.52",6554-Professional Services-Priv Contractor & Other Agencies,THIRD PARTY PAYMENTS,PRIVATE CONTRACTOR,REVENUE
Walsall Council,http://opendatacommunities.org/id/metropolitan-district-council/walsall ,WC149-61,30.04.2023,ADULT SOCIAL CARE,5 CARE SERVICES LTD,05/04/2023,541.36,6554-Professional Services-Priv Contractor & Other Agencies,THIRD PARTY PAYMENTS,PRIVATE CONTRACTOR,REVENUE
Walsall Council,http://opendatacommunities.org/id/metropolitan-district-council/walsall ,WC149-62,30.04.2023,ADULT SOCIAL CARE,5 CARE SERVICES LTD,05/04/2023,484.80,6554-Professional Services-Priv Contractor & Other Agencies,THIRD PARTY PAYMENTS,PRIVATE CONTRACTOR,REVENUE
Walsall Council,http://opendatacommunities.org/id/metropolitan-district-council/walsall ,WC149-63,30.04.2023,ADULT SOCIAL CARE,5 CARE SERVICES LTD,05/04/2023,258.56,6554-Professional Services-Priv Contractor & Other Agencies,THIRD PARTY PAYMENTS,PRIVATE CONTRACTOR,REVENUE
Walsall Council,http://opendatacommunities.org/id/metropolitan-district-council/walsall ,WC149-64,30.04.2023,ADULT SOCIAL CARE,5 CARE SERVICES LTD,05/04/2023,933.24,6554-Professional Services-Priv Contractor & Other Agencies,THIRD PARTY PAYMENTS,PRIVATE CONTRACTOR,REVENUE
Walsall Council,http://opendatacommunities.org/id/metropolitan-district-council/walsall ,WC149-65,30.04.2023,ADULT SOCIAL CARE,5 CARE SERVICES LTD,05/04/2023,290.88,6554-Professional Services-Priv Contractor & Other Agencies,THIRD PARTY PAYMENTS,PRIVATE CONTRACTOR,REVENUE
Walsall Council,http://opendatacommunities.org/id/metropolitan-district-council/walsall ,WC149-66,30.04.2023,ADULT SOCIAL CARE,5 CARE SERVICES LTD,05/04/2023,"1,239.20",6554-Professional Services-Priv Contractor & Other Agencies,THIRD PARTY PAYMENTS,PRIVATE CONTRACTOR,REVENUE
Walsall Council,http://opendatacommunities.org/id/metropolitan-district-council/walsall ,WC149-67,30.04.2023,ADULT SOCIAL CARE,5 CARE SERVICES LTD,05/04/2023,808.00,6554-Professional Services-Priv Contractor & Other Agencies,THIRD PARTY PAYMENTS,PRIVATE CONTRACTOR,REVENUE
Walsall Council,http://opendatacommunities.org/id/metropolitan-district-council/walsall ,WC149-68,30.04.2023,ADULT SOCIAL CARE,5 CARE SERVICES LTD,11/04/2023,678.72,6541-Domiciliary Care,THIRD PARTY PAYMENTS,PRIVATE CONTRACTOR,REVENUE
Walsall Council,http://opendatacommunities.org/id/metropolitan-district-council/walsall ,WC149-69,30.04.2023,ADULT SOCIAL CARE,5 CARE SERVICES LTD,11/04/2023,294.92,6541-Domiciliary Care,THIRD PARTY PAYMENTS,PRIVATE CONTRACTOR,REVENUE
Walsall Council,http://opendatacommunities.org/id/metropolitan-district-council/walsall ,WC149-70,30.04.2023,ADULT SOCIAL CARE,5 CARE SERVICES LTD,11/04/2023,694.88,6541-Domiciliary Care,THIRD PARTY PAYMENTS,PRIVATE CONTRACTOR,REVENUE
Walsall Council,http://opendatacommunities.org/id/metropolitan-district-council/walsall ,WC149-71,30.04.2023,ADULT SOCIAL CARE,5 CARE SERVICES LTD,11/04/2023,254.52,6541-Domiciliary Care,THIRD PARTY PAYMENTS,PRIVATE CONTRACTOR,REVENUE
Walsall Council,http://opendatacommunities.org/id/metropolitan-district-council/walsall ,WC149-72,30.04.2023,ADULT SOCIAL CARE,5 CARE SERVICES LTD,11/04/2023,"1,163.52",6541-Domiciliary Care,THIRD PARTY PAYMENTS,PRIVATE CONTRACTOR,REVENUE
Walsall Council,http://opendatacommunities.org/id/metropolitan-district-council/walsall ,WC149-73,30.04.2023,ADULT SOCIAL CARE,5 CARE SERVICES LTD,11/04/2023,323.20,6541-Domiciliary Care,THIRD PARTY PAYMENTS,PRIVATE CONTRACTOR,REVENUE
Walsall Council,http://opendatacommunities.org/id/metropolitan-district-council/walsall ,WC149-74,30.04.2023,ADULT SOCIAL CARE,5 CARE SERVICES LTD,11/04/2023,339.36,6541-Domiciliary Care,THIRD PARTY PAYMENTS,PRIVATE CONTRACTOR,REVENUE
Walsall Council,http://opendatacommunities.org/id/metropolitan-district-council/walsall ,WC149-75,30.04.2023,ADULT SOCIAL CARE,5 CARE SERVICES LTD,11/04/2023,509.04,6541-Domiciliary Care,THIRD PARTY PAYMENTS,PRIVATE CONTRACTOR,REVENUE
Walsall Council,http://opendatacommunities.org/id/metropolitan-district-council/walsall ,WC149-76,30.04.2023,ADULT SOCIAL CARE,5 CARE SERVICES LTD,11/04/2023,735.28,6541-Domiciliary Care,THIRD PARTY PAYMENTS,PRIVATE CONTRACTOR,REVENUE
Walsall Council,http://opendatacommunities.org/id/metropolitan-district-council/walsall ,WC149-77,30.04.2023,ADULT SOCIAL CARE,5 CARE SERVICES LTD,11/04/2023,254.52,6541-Domiciliary Care,THIRD PARTY PAYMENTS,PRIVATE CONTRACTOR,REVENUE
Walsall Council,http://opendatacommunities.org/id/metropolitan-district-council/walsall ,WC149-78,30.04.2023,ADULT SOCIAL CARE,5 CARE SERVICES LTD,11/04/2023,536.02,6541-Domiciliary Care,THIRD PARTY PAYMENTS,PRIVATE CONTRACTOR,REVENUE
Walsall Council,http://opendatacommunities.org/id/metropolitan-district-council/walsall ,WC149-79,30.04.2023,ADULT SOCIAL CARE,5 CARE SERVICES LTD,11/04/2023,323.20,6541-Domiciliary Care,THIRD PARTY PAYMENTS,PRIVATE CONTRACTOR,REVENUE
Walsall Council,http://opendatacommunities.org/id/metropolitan-district-council/walsall ,WC149-80,30.04.2023,ADULT SOCIAL CARE,5 CARE SERVICES LTD,11/04/2023,509.04,6541-Domiciliary Care,THIRD PARTY PAYMENTS,PRIVATE CONTRACTOR,REVENUE
Walsall Council,http://opendatacommunities.org/id/metropolitan-district-council/walsall ,WC149-81,30.04.2023,ADULT SOCIAL CARE,5 CARE SERVICES LTD,11/04/2023,565.60,6541-Domiciliary Care,THIRD PARTY PAYMENTS,PRIVATE CONTRACTOR,REVENUE
Walsall Council,http://opendatacommunities.org/id/metropolitan-district-council/walsall ,WC149-82,30.04.2023,ADULT SOCIAL CARE,5 CARE SERVICES LTD,11/04/2023,904.96,6541-Domiciliary Care,THIRD PARTY PAYMENTS,PRIVATE CONTRACTOR,REVENUE
Walsall Council,http://opendatacommunities.org/id/metropolitan-district-council/walsall ,WC149-83,30.04.2023,ADULT SOCIAL CARE,5 CARE SERVICES LTD,11/04/2023,597.92,6541-Domiciliary Care,THIRD PARTY PAYMENTS,PRIVATE CONTRACTOR,REVENUE
Walsall Council,http://opendatacommunities.org/id/metropolitan-district-council/walsall ,WC149-84,30.04.2023,ADULT SOCIAL CARE,5 CARE SERVICES LTD,11/04/2023,"1,244.32",6541-Domiciliary Care,THIRD PARTY PAYMENTS,PRIVATE CONTRACTOR,REVENUE
Walsall Council,http://opendatacommunities.org/id/metropolitan-district-council/walsall ,WC149-85,30.04.2023,ADULT SOCIAL CARE,5 CARE SERVICES LTD,11/04/2023,339.36,6541-Domiciliary Care,THIRD PARTY PAYMENTS,PRIVATE CONTRACTOR,REVENUE
Walsall Council,http://opendatacommunities.org/id/metropolitan-district-council/walsall ,WC149-86,30.04.2023,ADULT SOCIAL CARE,5 CARE SERVICES LTD,11/04/2023,509.04,6541-Domiciliary Care,THIRD PARTY PAYMENTS,PRIVATE CONTRACTOR,REVENUE
Walsall Council,http://opendatacommunities.org/id/metropolitan-district-council/walsall ,WC149-87,30.04.2023,ADULT SOCIAL CARE,5 CARE SERVICES LTD,11/04/2023,452.48,6541-Domiciliary Care,THIRD PARTY PAYMENTS,PRIVATE CONTRACTOR,REVENUE
Walsall Council,http://opendatacommunities.org/id/metropolitan-district-council/walsall ,WC149-88,30.04.2023,ADULT SOCIAL CARE,5 CARE SERVICES LTD,11/04/2023,848.40,6541-Domiciliary Care,THIRD PARTY PAYMENTS,PRIVATE CONTRACTOR,REVENUE
Walsall Council,http://opendatacommunities.org/id/metropolitan-district-council/walsall ,WC149-89,30.04.2023,ADULT SOCIAL CARE,5 CARE SERVICES LTD,11/04/2023,254.52,6541-Domiciliary Care,THIRD PARTY PAYMENTS,PRIVATE CONTRACTOR,REVENUE
Walsall Council,http://opendatacommunities.org/id/metropolitan-district-council/walsall ,WC149-90,30.04.2023,ADULT SOCIAL CARE,5 CARE SERVICES LTD,11/04/2023,584.50,6541-Domiciliary Care,THIRD PARTY PAYMENTS,PRIVATE CONTRACTOR,REVENUE
Walsall Council,http://opendatacommunities.org/id/metropolitan-district-council/walsall ,WC149-91,30.04.2023,ADULT SOCIAL CARE,5 CARE SERVICES LTD,11/04/2023,565.60,6541-Domiciliary Care,THIRD PARTY PAYMENTS,PRIVATE CONTRACTOR,REVENUE
Walsall Council,http://opendatacommunities.org/id/metropolitan-district-council/walsall ,WC149-92,30.04.2023,ADULT SOCIAL CARE,5 CARE SERVICES LTD,11/04/2023,509.04,6541-Domiciliary Care,THIRD PARTY PAYMENTS,PRIVATE CONTRACTOR,REVENUE
Walsall Council,http://opendatacommunities.org/id/metropolitan-district-council/walsall ,WC149-93,30.04.2023,ADULT SOCIAL CARE,5 CARE SERVICES LTD,11/04/2023,509.04,6541-Domiciliary Care,THIRD PARTY PAYMENTS,PRIVATE CONTRACTOR,REVENUE
Walsall Council,http://opendatacommunities.org/id/metropolitan-district-council/walsall ,WC149-94,30.04.2023,ADULT SOCIAL CARE,5 CARE SERVICES LTD,11/04/2023,339.36,6541-Domiciliary Care,THIRD PARTY PAYMENTS,PRIVATE CONTRACTOR,REVENUE
Walsall Council,http://opendatacommunities.org/id/metropolitan-district-council/walsall ,WC149-95,30.04.2023,ADULT SOCIAL CARE,5 CARE SERVICES LTD,11/04/2023,509.04,6541-Domiciliary Care,THIRD PARTY PAYMENTS,PRIVATE CONTRACTOR,REVENUE
Walsall Council,http://opendatacommunities.org/id/metropolitan-district-council/walsall ,WC149-96,30.04.2023,ADULT SOCIAL CARE,5 CARE SERVICES LTD,11/04/2023,509.04,6541-Domiciliary Care,THIRD PARTY PAYMENTS,PRIVATE CONTRACTOR,REVENUE
Walsall Council,http://opendatacommunities.org/id/metropolitan-district-council/walsall ,WC149-97,30.04.2023,ADULT SOCIAL CARE,5 CARE SERVICES LTD,11/04/2023,254.52,6541-Domiciliary Care,THIRD PARTY PAYMENTS,PRIVATE CONTRACTOR,REVENUE
Walsall Council,http://opendatacommunities.org/id/metropolitan-district-council/walsall ,WC149-98,30.04.2023,ADULT SOCIAL CARE,5 CARE SERVICES LTD,11/04/2023,452.48,6541-Domiciliary Care,THIRD PARTY PAYMENTS,PRIVATE CONTRACTOR,REVENUE
Walsall Council,http://opendatacommunities.org/id/metropolitan-district-council/walsall ,WC149-99,30.04.2023,ADULT SOCIAL CARE,5 CARE SERVICES LTD,11/04/2023,509.04,6541-Domiciliary Care,THIRD PARTY PAYMENTS,PRIVATE CONTRACTOR,REVENUE
Walsall Council,http://opendatacommunities.org/id/metropolitan-district-council/walsall ,WC149-100,30.04.2023,ADULT SOCIAL CARE,5 CARE SERVICES LTD,11/04/2023,678.72,6541-Domiciliary Care,THIRD PARTY PAYMENTS,PRIVATE CONTRACTOR,REVENUE
Walsall Council,http://opendatacommunities.org/id/metropolitan-district-council/walsall ,WC149-101,30.04.2023,ADULT SOCIAL CARE,5 CARE SERVICES LTD,11/04/2023,294.92,6541-Domiciliary Care,THIRD PARTY PAYMENTS,PRIVATE CONTRACTOR,REVENUE
Walsall Council,http://opendatacommunities.org/id/metropolitan-district-council/walsall ,WC149-102,30.04.2023,ADULT SOCIAL CARE,5 CARE SERVICES LTD,11/04/2023,694.88,6541-Domiciliary Care,THIRD PARTY PAYMENTS,PRIVATE CONTRACTOR,REVENUE
Walsall Council,http://opendatacommunities.org/id/metropolitan-district-council/walsall ,WC149-103,30.04.2023,ADULT SOCIAL CARE,5 CARE SERVICES LTD,11/04/2023,565.60,6541-Domiciliary Care,THIRD PARTY PAYMENTS,PRIVATE CONTRACTOR,REVENUE
Walsall Council,http://opendatacommunities.org/id/metropolitan-district-council/walsall ,WC149-104,30.04.2023,ADULT SOCIAL CARE,5 CARE SERVICES LTD,11/04/2023,735.28,6541-Domiciliary Care,THIRD PARTY PAYMENTS,PRIVATE CONTRACTOR,REVENUE
Walsall Council,http://opendatacommunities.org/id/metropolitan-district-council/walsall ,WC149-105,30.04.2023,ADULT SOCIAL CARE,5 CARE SERVICES LTD,11/04/2023,254.52,6541-Domiciliary Care,THIRD PARTY PAYMENTS,PRIVATE CONTRACTOR,REVENUE
Walsall Council,http://opendatacommunities.org/id/metropolitan-district-council/walsall ,WC149-106,30.04.2023,ADULT SOCIAL CARE,5 CARE SERVICES LTD,11/04/2023,536.02,6541-Domiciliary Care,THIRD PARTY PAYMENTS,PRIVATE CONTRACTOR,REVENUE
Walsall Council,http://opendatacommunities.org/id/metropolitan-district-council/walsall ,WC149-107,30.04.2023,ADULT SOCIAL CARE,5 CARE SERVICES LTD,11/04/2023,323.20,6541-Domiciliary Care,THIRD PARTY PAYMENTS,PRIVATE CONTRACTOR,REVENUE
Walsall Council,http://opendatacommunities.org/id/metropolitan-district-council/walsall ,WC149-108,30.04.2023,ADULT SOCIAL CARE,5 CARE SERVICES LTD,11/04/2023,339.36,6541-Domiciliary Care,THIRD PARTY PAYMENTS,PRIVATE CONTRACTOR,REVENUE
Walsall Council,http://opendatacommunities.org/id/metropolitan-district-council/walsall ,WC149-109,30.04.2023,ADULT SOCIAL CARE,5 CARE SERVICES LTD,11/04/2023,509.04,6541-Domiciliary Care,THIRD PARTY PAYMENTS,PRIVATE CONTRACTOR,REVENUE
Walsall Council,http://opendatacommunities.org/id/metropolitan-district-council/walsall ,WC149-110,30.04.2023,ADULT SOCIAL CARE,5 CARE SERVICES LTD,11/04/2023,509.04,6541-Domiciliary Care,THIRD PARTY PAYMENTS,PRIVATE CONTRACTOR,REVENUE
Walsall Council,http://opendatacommunities.org/id/metropolitan-district-council/walsall ,WC149-111,30.04.2023,ADULT SOCIAL CARE,5 CARE SERVICES LTD,11/04/2023,509.04,6541-Domiciliary Care,THIRD PARTY PAYMENTS,PRIVATE CONTRACTOR,REVENUE
Walsall Council,http://opendatacommunities.org/id/metropolitan-district-council/walsall ,WC149-112,30.04.2023,ADULT SOCIAL CARE,5 CARE SERVICES LTD,11/04/2023,662.56,6541-Domiciliary Care,THIRD PARTY PAYMENTS,PRIVATE CONTRACTOR,REVENUE
Walsall Council,http://opendatacommunities.org/id/metropolitan-district-council/walsall ,WC149-113,30.04.2023,ADULT SOCIAL CARE,5 CARE SERVICES LTD,11/04/2023,"1,244.32",6541-Domiciliary Care,THIRD PARTY PAYMENTS,PRIVATE CONTRACTOR,REVENUE
Walsall Council,http://opendatacommunities.org/id/metropolitan-district-council/walsall ,WC149-114,30.04.2023,ADULT SOCIAL CARE,5 CARE SERVICES LTD,11/04/2023,584.50,6541-Domiciliary Care,THIRD PARTY PAYMENTS,PRIVATE CONTRACTOR,REVENUE
Walsall Council,http://opendatacommunities.org/id/metropolitan-district-council/walsall ,WC149-115,30.04.2023,ADULT SOCIAL CARE,5 CARE SERVICES LTD,11/04/2023,254.52,6541-Domiciliary Care,THIRD PARTY PAYMENTS,PRIVATE CONTRACTOR,REVENUE
Walsall Council,http://opendatacommunities.org/id/metropolitan-district-council/walsall ,WC149-116,30.04.2023,ADULT SOCIAL CARE,5 CARE SERVICES LTD,11/04/2023,775.68,6541-Domiciliary Care,THIRD PARTY PAYMENTS,PRIVATE CONTRACTOR,REVENUE
Walsall Council,http://opendatacommunities.org/id/metropolitan-district-council/walsall ,WC149-117,30.04.2023,ADULT SOCIAL CARE,5 CARE SERVICES LTD,11/04/2023,904.96,6541-Domiciliary Care,THIRD PARTY PAYMENTS,PRIVATE CONTRACTOR,REVENUE
Walsall Council,http://opendatacommunities.org/id/metropolitan-district-council/walsall ,WC149-118,30.04.2023,ADULT SOCIAL CARE,5 CARE SERVICES LTD,11/04/2023,254.52,6541-Domiciliary Care,THIRD PARTY PAYMENTS,PRIVATE CONTRACTOR,REVENUE
Walsall Council,http://opendatacommunities.org/id/metropolitan-district-council/walsall ,WC149-119,30.04.2023,ADULT SOCIAL CARE,5 CARE SERVICES LTD,11/04/2023,323.20,6541-Domiciliary Care,THIRD PARTY PAYMENTS,PRIVATE CONTRACTOR,REVENUE
Walsall Council,http://opendatacommunities.org/id/metropolitan-district-council/walsall ,WC149-120,30.04.2023,ADULT SOCIAL CARE,5 CARE SERVICES LTD,11/04/2023,509.04,6541-Domiciliary Care,THIRD PARTY PAYMENTS,PRIVATE CONTRACTOR,REVENUE
Walsall Council,http://opendatacommunities.org/id/metropolitan-district-council/walsall ,WC149-121,30.04.2023,ADULT SOCIAL CARE,5 CARE SERVICES LTD,11/04/2023,339.36,6541-Domiciliary Care,THIRD PARTY PAYMENTS,PRIVATE CONTRACTOR,REVENUE
Walsall Council,http://opendatacommunities.org/id/metropolitan-district-council/walsall ,WC149-122,30.04.2023,ADULT SOCIAL CARE,5 CARE SERVICES LTD,11/04/2023,509.04,6541-Domiciliary Care,THIRD PARTY PAYMENTS,PRIVATE CONTRACTOR,REVENUE
Walsall Council,http://opendatacommunities.org/id/metropolitan-district-council/walsall ,WC149-123,30.04.2023,ADULT SOCIAL CARE,5 CARE SERVICES LTD,11/04/2023,452.48,6541-Domiciliary Care,THIRD PARTY PAYMENTS,PRIVATE CONTRACTOR,REVENUE
Walsall Council,http://opendatacommunities.org/id/metropolitan-district-council/walsall ,WC149-124,30.04.2023,ADULT SOCIAL CARE,5 CARE SERVICES LTD,11/04/2023,848.40,6541-Domiciliary Care,THIRD PARTY PAYMENTS,PRIVATE CONTRACTOR,REVENUE
Walsall Council,http://opendatacommunities.org/id/metropolitan-district-council/walsall ,WC149-125,30.04.2023,ADULT SOCIAL CARE,5 CARE SERVICES LTD,11/04/2023,254.52,6541-Domiciliary Care,THIRD PARTY PAYMENTS,PRIVATE CONTRACTOR,REVENUE
Walsall Council,http://opendatacommunities.org/id/metropolitan-district-council/walsall ,WC149-126,30.04.2023,ADULT SOCIAL CARE,5 CARE SERVICES LTD,11/04/2023,339.36,6541-Domiciliary Care,THIRD PARTY PAYMENTS,PRIVATE CONTRACTOR,REVENUE
Walsall Council,http://opendatacommunities.org/id/metropolitan-district-council/walsall ,WC149-127,30.04.2023,ADULT SOCIAL CARE,5 CARE SERVICES LTD,11/04/2023,509.04,6541-Domiciliary Care,THIRD PARTY PAYMENTS,PRIVATE CONTRACTOR,REVENUE
Walsall Council,http://opendatacommunities.org/id/metropolitan-district-council/walsall ,WC149-128,30.04.2023,ADULT SOCIAL CARE,5 CARE SERVICES LTD,11/04/2023,509.04,6541-Domiciliary Care,THIRD PARTY PAYMENTS,PRIVATE CONTRACTOR,REVENUE
Walsall Council,http://opendatacommunities.org/id/metropolitan-district-council/walsall ,WC149-129,30.04.2023,ADULT SOCIAL CARE,5 CARE SERVICES LTD,11/04/2023,452.48,6541-Domiciliary Care,THIRD PARTY PAYMENTS,PRIVATE CONTRACTOR,REVENUE
Walsall Council,http://opendatacommunities.org/id/metropolitan-district-council/walsall ,WC149-130,30.04.2023,ADULT SOCIAL CARE,5 CARE SERVICES LTD,11/04/2023,509.04,6541-Domiciliary Care,THIRD PARTY PAYMENTS,PRIVATE CONTRACTOR,REVENUE
Walsall Council,http://opendatacommunities.org/id/metropolitan-district-council/walsall ,WC149-131,30.04.2023,ADULT SOCIAL CARE,5 CARE SERVICES LTD,25/04/2023,254.52,6541-Domiciliary Care,THIRD PARTY PAYMENTS,PRIVATE CONTRACTOR,REVENUE
Walsall Council,http://opendatacommunities.org/id/metropolitan-district-council/walsall ,WC149-132,30.04.2023,ADULT SOCIAL CARE,5 CARE SERVICES LTD,25/04/2023,387.84,6541-Domiciliary Care,THIRD PARTY PAYMENTS,PRIVATE CONTRACTOR,REVENUE
Walsall Council,http://opendatacommunities.org/id/metropolitan-district-council/walsall ,WC149-133,30.04.2023,ADULT SOCIAL CARE,5 CARE SERVICES LTD,25/04/2023,678.72,6541-Domiciliary Care,THIRD PARTY PAYMENTS,PRIVATE CONTRACTOR,REVENUE
Walsall Council,http://opendatacommunities.org/id/metropolitan-district-council/walsall ,WC149-134,30.04.2023,ADULT SOCIAL CARE,5 CARE SERVICES LTD,25/04/2023,294.92,6541-Domiciliary Care,THIRD PARTY PAYMENTS,PRIVATE CONTRACTOR,REVENUE
Walsall Council,http://opendatacommunities.org/id/metropolitan-district-council/walsall ,WC149-135,30.04.2023,ADULT SOCIAL CARE,5 CARE SERVICES LTD,25/04/2023,339.36,6541-Domiciliary Care,THIRD PARTY PAYMENTS,PRIVATE CONTRACTOR,REVENUE
Walsall Council,http://opendatacommunities.org/id/metropolitan-district-council/walsall ,WC149-136,30.04.2023,ADULT SOCIAL CARE,5 CARE SERVICES LTD,25/04/2023,509.04,6541-Domiciliary Care,THIRD PARTY PAYMENTS,PRIVATE CONTRACTOR,REVENUE
Walsall Council,http://opendatacommunities.org/id/metropolitan-district-council/walsall ,WC149-137,30.04.2023,ADULT SOCIAL CARE,5 CARE SERVICES LTD,25/04/2023,323.20,6541-Domiciliary Care,THIRD PARTY PAYMENTS,PRIVATE CONTRACTOR,REVENUE
Walsall Council,http://opendatacommunities.org/id/metropolitan-district-council/walsall ,WC149-138,30.04.2023,ADULT SOCIAL CARE,5 CARE SERVICES LTD,25/04/2023,509.04,6541-Domiciliary Care,THIRD PARTY PAYMENTS,PRIVATE CONTRACTOR,REVENUE
Walsall Council,http://opendatacommunities.org/id/metropolitan-district-council/walsall ,WC149-139,30.04.2023,ADULT SOCIAL CARE,5 CARE SERVICES LTD,25/04/2023,694.88,6541-Domiciliary Care,THIRD PARTY PAYMENTS,PRIVATE CONTRACTOR,REVENUE
Walsall Council,http://opendatacommunities.org/id/metropolitan-district-council/walsall ,WC149-140,30.04.2023,ADULT SOCIAL CARE,5 CARE SERVICES LTD,25/04/2023,565.60,6541-Domiciliary Care,THIRD PARTY PAYMENTS,PRIVATE CONTRACTOR,REVENUE
Walsall Council,http://opendatacommunities.org/id/metropolitan-district-council/walsall ,WC149-141,30.04.2023,ADULT SOCIAL CARE,5 CARE SERVICES LTD,25/04/2023,904.96,6541-Domiciliary Care,THIRD PARTY PAYMENTS,PRIVATE CONTRACTOR,REVENUE
Walsall Council,http://opendatacommunities.org/id/metropolitan-district-council/walsall ,WC149-142,30.04.2023,ADULT SOCIAL CARE,5 CARE SERVICES LTD,25/04/2023,509.04,6541-Domiciliary Care,THIRD PARTY PAYMENTS,PRIVATE CONTRACTOR,REVENUE
Walsall Council,http://opendatacommunities.org/id/metropolitan-district-council/walsall ,WC149-143,30.04.2023,ADULT SOCIAL CARE,5 CARE SERVICES LTD,25/04/2023,735.28,6541-Domiciliary Care,THIRD PARTY PAYMENTS,PRIVATE CONTRACTOR,REVENUE
Walsall Council,http://opendatacommunities.org/id/metropolitan-district-council/walsall ,WC149-144,30.04.2023,ADULT SOCIAL CARE,5 CARE SERVICES LTD,25/04/2023,254.52,6541-Domiciliary Care,THIRD PARTY PAYMENTS,PRIVATE CONTRACTOR,REVENUE
Walsall Council,http://opendatacommunities.org/id/metropolitan-district-council/walsall ,WC149-145,30.04.2023,ADULT SOCIAL CARE,5 CARE SERVICES LTD,25/04/2023,536.02,6541-Domiciliary Care,THIRD PARTY PAYMENTS,PRIVATE CONTRACTOR,REVENUE
Walsall Council,http://opendatacommunities.org/id/metropolitan-district-council/walsall ,WC149-146,30.04.2023,ADULT SOCIAL CARE,5 CARE SERVICES LTD,25/04/2023,484.80,6541-Domiciliary Care,THIRD PARTY PAYMENTS,PRIVATE CONTRACTOR,REVENUE
Walsall Council,http://opendatacommunities.org/id/metropolitan-district-council/walsall ,WC149-147,30.04.2023,ADULT SOCIAL CARE,5 CARE SERVICES LTD,25/04/2023,509.04,6541-Domiciliary Care,THIRD PARTY PAYMENTS,PRIVATE CONTRACTOR,REVENUE
Walsall Council,http://opendatacommunities.org/id/metropolitan-district-council/walsall ,WC149-148,30.04.2023,ADULT SOCIAL CARE,5 CARE SERVICES LTD,25/04/2023,509.04,6541-Domiciliary Care,THIRD PARTY PAYMENTS,PRIVATE CONTRACTOR,REVENUE
Walsall Council,http://opendatacommunities.org/id/metropolitan-district-council/walsall ,WC149-149,30.04.2023,ADULT SOCIAL CARE,5 CARE SERVICES LTD,25/04/2023,452.48,6541-Domiciliary Care,THIRD PARTY PAYMENTS,PRIVATE CONTRACTOR,REVENUE
Walsall Council,http://opendatacommunities.org/id/metropolitan-district-council/walsall ,WC149-150,30.04.2023,ADULT SOCIAL CARE,5 CARE SERVICES LTD,25/04/2023,254.52,6541-Domiciliary Care,THIRD PARTY PAYMENTS,PRIVATE CONTRACTOR,REVENUE
Walsall Council,http://opendatacommunities.org/id/metropolitan-district-council/walsall ,WC149-151,30.04.2023,ADULT SOCIAL CARE,5 CARE SERVICES LTD,25/04/2023,597.92,6541-Domiciliary Care,THIRD PARTY PAYMENTS,PRIVATE CONTRACTOR,REVENUE
Walsall Council,http://opendatacommunities.org/id/metropolitan-district-council/walsall ,WC149-152,30.04.2023,ADULT SOCIAL CARE,5 CARE SERVICES LTD,25/04/2023,"1,244.32",6541-Domiciliary Care,THIRD PARTY PAYMENTS,PRIVATE CONTRACTOR,REVENUE
Walsall Council,http://opendatacommunities.org/id/metropolitan-district-council/walsall ,WC149-153,30.04.2023,ADULT SOCIAL CARE,5 CARE SERVICES LTD,25/04/2023,727.20,6541-Domiciliary Care,THIRD PARTY PAYMENTS,PRIVATE CONTRACTOR,REVENUE
Walsall Council,http://opendatacommunities.org/id/metropolitan-district-council/walsall ,WC149-154,30.04.2023,ADULT SOCIAL CARE,5 CARE SERVICES LTD,25/04/2023,584.50,6541-Domiciliary Care,THIRD PARTY PAYMENTS,PRIVATE CONTRACTOR,REVENUE
Walsall Council,http://opendatacommunities.org/id/metropolitan-district-council/walsall ,WC149-155,30.04.2023,ADULT SOCIAL CARE,5 CARE SERVICES LTD,25/04/2023,254.52,6541-Domiciliary Care,THIRD PARTY PAYMENTS,PRIVATE CONTRACTOR,REVENUE
Walsall Council,http://opendatacommunities.org/id/metropolitan-district-council/walsall ,WC149-156,30.04.2023,ADULT SOCIAL CARE,5 CARE SERVICES LTD,25/04/2023,339.36,6541-Domiciliary Care,THIRD PARTY PAYMENTS,PRIVATE CONTRACTOR,REVENUE
Walsall Council,http://opendatacommunities.org/id/metropolitan-district-council/walsall ,WC149-157,30.04.2023,ADULT SOCIAL CARE,5 CARE SERVICES LTD,25/04/2023,509.04,6541-Domiciliary Care,THIRD PARTY PAYMENTS,PRIVATE CONTRACTOR,REVENUE
Walsall Council,http://opendatacommunities.org/id/metropolitan-district-council/walsall ,WC149-158,30.04.2023,ADULT SOCIAL CARE,5 CARE SERVICES LTD,25/04/2023,509.04,6541-Domiciliary Care,THIRD PARTY PAYMENTS,PRIVATE CONTRACTOR,REVENUE
Walsall Council,http://opendatacommunities.org/id/metropolitan-district-council/walsall ,WC149-159,30.04.2023,ADULT SOCIAL CARE,5 CARE SERVICES LTD,25/04/2023,452.48,6541-Domiciliary Care,THIRD PARTY PAYMENTS,PRIVATE CONTRACTOR,REVENUE
Walsall Council,http://opendatacommunities.org/id/metropolitan-district-council/walsall ,WC149-160,30.04.2023,ADULT SOCIAL CARE,5 CARE SERVICES LTD,25/04/2023,509.04,6541-Domiciliary Care,THIRD PARTY PAYMENTS,PRIVATE CONTRACTOR,REVENUE
Walsall Council,http://opendatacommunities.org/id/metropolitan-district-council/walsall ,WC149-161,30.04.2023,ADULT SOCIAL CARE,5 CARE SERVICES LTD,25/04/2023,678.72,6541-Domiciliary Care,THIRD PARTY PAYMENTS,PRIVATE CONTRACTOR,REVENUE
Walsall Council,http://opendatacommunities.org/id/metropolitan-district-council/walsall ,WC149-162,30.04.2023,ADULT SOCIAL CARE,5 CARE SERVICES LTD,25/04/2023,294.92,6541-Domiciliary Care,THIRD PARTY PAYMENTS,PRIVATE CONTRACTOR,REVENUE
Walsall Council,http://opendatacommunities.org/id/metropolitan-district-council/walsall ,WC149-163,30.04.2023,ADULT SOCIAL CARE,5 CARE SERVICES LTD,25/04/2023,254.52,6541-Domiciliary Care,THIRD PARTY PAYMENTS,PRIVATE CONTRACTOR,REVENUE
Walsall Council,http://opendatacommunities.org/id/metropolitan-district-council/walsall ,WC149-164,30.04.2023,ADULT SOCIAL CARE,5 CARE SERVICES LTD,25/04/2023,"1,163.52",6541-Domiciliary Care,THIRD PARTY PAYMENTS,PRIVATE CONTRACTOR,REVENUE
Walsall Council,http://opendatacommunities.org/id/metropolitan-district-council/walsall ,WC149-165,30.04.2023,ADULT SOCIAL CARE,5 CARE SERVICES LTD,25/04/2023,565.60,6541-Domiciliary Care,THIRD PARTY PAYMENTS,PRIVATE CONTRACTOR,REVENUE
Walsall Council,http://opendatacommunities.org/id/metropolitan-district-council/walsall ,WC149-166,30.04.2023,ADULT SOCIAL CARE,5 CARE SERVICES LTD,25/04/2023,323.20,6541-Domiciliary Care,THIRD PARTY PAYMENTS,PRIVATE CONTRACTOR,REVENUE
Walsall Council,http://opendatacommunities.org/id/metropolitan-district-council/walsall ,WC149-167,30.04.2023,ADULT SOCIAL CARE,5 CARE SERVICES LTD,25/04/2023,509.04,6541-Domiciliary Care,THIRD PARTY PAYMENTS,PRIVATE CONTRACTOR,REVENUE
Walsall Council,http://opendatacommunities.org/id/metropolitan-district-council/walsall ,WC149-168,30.04.2023,ADULT SOCIAL CARE,5 CARE SERVICES LTD,25/04/2023,339.36,6541-Domiciliary Care,THIRD PARTY PAYMENTS,PRIVATE CONTRACTOR,REVENUE
Walsall Council,http://opendatacommunities.org/id/metropolitan-district-council/walsall ,WC149-169,30.04.2023,ADULT SOCIAL CARE,5 CARE SERVICES LTD,25/04/2023,509.04,6541-Domiciliary Care,THIRD PARTY PAYMENTS,PRIVATE CONTRACTOR,REVENUE
Walsall Council,http://opendatacommunities.org/id/metropolitan-district-council/walsall ,WC149-170,30.04.2023,ADULT SOCIAL CARE,5 CARE SERVICES LTD,25/04/2023,509.04,6541-Domiciliary Care,THIRD PARTY PAYMENTS,PRIVATE CONTRACTOR,REVENUE
Walsall Council,http://opendatacommunities.org/id/metropolitan-district-council/walsall ,WC149-171,30.04.2023,ADULT SOCIAL CARE,5 CARE SERVICES LTD,25/04/2023,509.04,6541-Domiciliary Care,THIRD PARTY PAYMENTS,PRIVATE CONTRACTOR,REVENUE
Walsall Council,http://opendatacommunities.org/id/metropolitan-district-council/walsall ,WC149-172,30.04.2023,ADULT SOCIAL CARE,5 CARE SERVICES LTD,25/04/2023,509.04,6541-Domiciliary Care,THIRD PARTY PAYMENTS,PRIVATE CONTRACTOR,REVENUE
Walsall Council,http://opendatacommunities.org/id/metropolitan-district-council/walsall ,WC149-173,30.04.2023,ADULT SOCIAL CARE,5 CARE SERVICES LTD,25/04/2023,904.96,6541-Domiciliary Care,THIRD PARTY PAYMENTS,PRIVATE CONTRACTOR,REVENUE
Walsall Council,http://opendatacommunities.org/id/metropolitan-district-council/walsall ,WC149-174,30.04.2023,ADULT SOCIAL CARE,5 CARE SERVICES LTD,25/04/2023,694.88,6541-Domiciliary Care,THIRD PARTY PAYMENTS,PRIVATE CONTRACTOR,REVENUE
Walsall Council,http://opendatacommunities.org/id/metropolitan-district-council/walsall ,WC149-175,30.04.2023,ADULT SOCIAL CARE,5 CARE SERVICES LTD,25/04/2023,452.48,6541-Domiciliary Care,THIRD PARTY PAYMENTS,PRIVATE CONTRACTOR,REVENUE
Walsall Council,http://opendatacommunities.org/id/metropolitan-district-council/walsall ,WC149-176,30.04.2023,ADULT SOCIAL CARE,5 CARE SERVICES LTD,25/04/2023,254.52,6541-Domiciliary Care,THIRD PARTY PAYMENTS,PRIVATE CONTRACTOR,REVENUE
Walsall Council,http://opendatacommunities.org/id/metropolitan-district-council/walsall ,WC149-177,30.04.2023,ADULT SOCIAL CARE,5 CARE SERVICES LTD,25/04/2023,339.36,6541-Domiciliary Care,THIRD PARTY PAYMENTS,PRIVATE CONTRACTOR,REVENUE
Walsall Council,http://opendatacommunities.org/id/metropolitan-district-council/walsall ,WC149-178,30.04.2023,ADULT SOCIAL CARE,5 CARE SERVICES LTD,25/04/2023,509.04,6541-Domiciliary Care,THIRD PARTY PAYMENTS,PRIVATE CONTRACTOR,REVENUE
Walsall Council,http://opendatacommunities.org/id/metropolitan-district-council/walsall ,WC149-179,30.04.2023,ADULT SOCIAL CARE,5 CARE SERVICES LTD,25/04/2023,509.04,6541-Domiciliary Care,THIRD PARTY PAYMENTS,PRIVATE CONTRACTOR,REVENUE
Walsall Council,http://opendatacommunities.org/id/metropolitan-district-council/walsall ,WC149-180,30.04.2023,ADULT SOCIAL CARE,5 CARE SERVICES LTD,25/04/2023,452.48,6541-Domiciliary Care,THIRD PARTY PAYMENTS,PRIVATE CONTRACTOR,REVENUE
Walsall Council,http://opendatacommunities.org/id/metropolitan-district-council/walsall ,WC149-181,30.04.2023,ADULT SOCIAL CARE,5 CARE SERVICES LTD,25/04/2023,509.04,6541-Domiciliary Care,THIRD PARTY PAYMENTS,PRIVATE CONTRACTOR,REVENUE
Walsall Council,http://opendatacommunities.org/id/metropolitan-district-council/walsall ,WC149-182,30.04.2023,ADULT SOCIAL CARE,5 CARE SERVICES LTD,25/04/2023,565.60,6541-Domiciliary Care,THIRD PARTY PAYMENTS,PRIVATE CONTRACTOR,REVENUE
Walsall Council,http://opendatacommunities.org/id/metropolitan-district-council/walsall ,WC149-183,30.04.2023,ADULT SOCIAL CARE,5 CARE SERVICES LTD,25/04/2023,735.28,6541-Domiciliary Care,THIRD PARTY PAYMENTS,PRIVATE CONTRACTOR,REVENUE
Walsall Council,http://opendatacommunities.org/id/metropolitan-district-council/walsall ,WC149-184,30.04.2023,ADULT SOCIAL CARE,5 CARE SERVICES LTD,25/04/2023,254.52,6541-Domiciliary Care,THIRD PARTY PAYMENTS,PRIVATE CONTRACTOR,REVENUE
Walsall Council,http://opendatacommunities.org/id/metropolitan-district-council/walsall ,WC149-185,30.04.2023,ADULT SOCIAL CARE,5 CARE SERVICES LTD,25/04/2023,536.02,6541-Domiciliary Care,THIRD PARTY PAYMENTS,PRIVATE CONTRACTOR,REVENUE
Walsall Council,http://opendatacommunities.org/id/metropolitan-district-council/walsall ,WC149-186,30.04.2023,ADULT SOCIAL CARE,5 CARE SERVICES LTD,25/04/2023,597.92,6541-Domiciliary Care,THIRD PARTY PAYMENTS,PRIVATE CONTRACTOR,REVENUE
Walsall Council,http://opendatacommunities.org/id/metropolitan-district-council/walsall ,WC149-187,30.04.2023,ADULT SOCIAL CARE,5 CARE SERVICES LTD,25/04/2023,"1,244.32",6541-Domiciliary Care,THIRD PARTY PAYMENTS,PRIVATE CONTRACTOR,REVENUE
Walsall Council,http://opendatacommunities.org/id/metropolitan-district-council/walsall ,WC149-188,30.04.2023,ADULT SOCIAL CARE,5 CARE SERVICES LTD,25/04/2023,848.40,6541-Domiciliary Care,THIRD PARTY PAYMENTS,PRIVATE CONTRACTOR,REVENUE
Walsall Council,http://opendatacommunities.org/id/metropolitan-district-council/walsall ,WC149-189,30.04.2023,ADULT SOCIAL CARE,5 CARE SERVICES LTD,25/04/2023,584.50,6541-Domiciliary Care,THIRD PARTY PAYMENTS,PRIVATE CONTRACTOR,REVENUE
Walsall Council,http://opendatacommunities.org/id/metropolitan-district-council/walsall ,WC149-190,30.04.2023,ADULT SOCIAL CARE,5 CARE SERVICES LTD,25/04/2023,254.52,6541-Domiciliary Care,THIRD PARTY PAYMENTS,PRIVATE CONTRACTOR,REVENUE
Walsall Council,http://opendatacommunities.org/id/metropolitan-district-council/walsall ,WC149-191,30.04.2023,CHILDRENS,5 CARE SERVICES LTD,05/04/2023,"2,403.27",6222-Professional Fees & Services,SUPPLIES & SERVICES,SERVICES,REVENUE
Walsall Council,http://opendatacommunities.org/id/metropolitan-district-council/walsall ,WC149-192,30.04.2023,ADULT SOCIAL CARE,5 CARE SERVICES LTD,05/04/2023,"1,777.60",6554-Professional Services-Priv Contractor & Other Agencies,THIRD PARTY PAYMENTS,PRIVATE CONTRACTOR,REVENUE
Walsall Council,http://opendatacommunities.org/id/metropolitan-district-council/walsall ,WC149-193,30.04.2023,"ECONOMY, ENVIRONMENT & COMMUNITIES",A B WASTE MANAGEMENT LTD,14/04/2023,"1,318.60",6410-Professional Services-Priv Contractor & Other Agencies,THIRD PARTY PAYMENTS,PRIVATE CONTRACTOR,REVENUE
Walsall Council,http://opendatacommunities.org/id/metropolitan-district-council/walsall ,WC149-194,30.04.2023,RESOURCES AND TRANSFORMATION,A D T FIRE AND SECURITY PLC,24/04/2023,"1,618.99",6310-Security & Alarm Maintenance,PREMISES,REPAIRS & MAINTENANCE,REVENUE
Walsall Council,http://opendatacommunities.org/id/metropolitan-district-council/walsall ,WC149-195,30.04.2023,RESOURCES AND TRANSFORMATION,A D T FIRE AND SECURITY PLC,12/04/2023,431.00,6310-Security & Alarm Maintenance,PREMISES,REPAIRS & MAINTENANCE,REVENUE
Walsall Council,http://opendatacommunities.org/id/metropolitan-district-council/walsall ,WC149-196,30.04.2023,RESOURCES AND TRANSFORMATION,A D T FIRE AND SECURITY PLC,20/04/2023,286.62,6310-Security & Alarm Maintenance,PREMISES,REPAIRS & MAINTENANCE,REVENUE
Walsall Council,http://opendatacommunities.org/id/metropolitan-district-council/walsall ,WC149-197,30.04.2023,"ECONOMY, ENVIRONMENT & COMMUNITIES",A F BLAKEMORE & SON LTD,24/04/2023,864.52,6413-Food & Drink Supplies,SUPPLIES & SERVICES,CATERING,REVENUE
Walsall Council,http://opendatacommunities.org/id/metropolitan-district-council/walsall ,WC149-198,30.04.2023,"ECONOMY, ENVIRONMENT & COMMUNITIES",A F BLAKEMORE & SON LTD,03/04/2023,267.43,6413-Food & Drink Supplies,SUPPLIES & SERVICES,CATERING,REVENUE
Walsall Council,http://opendatacommunities.org/id/metropolitan-district-council/walsall ,WC149-199,30.04.2023,"ECONOMY, ENVIRONMENT & COMMUNITIES",A F BLAKEMORE & SON LTD,03/04/2023,791.74,6413-Food & Drink Supplies,SUPPLIES & SERVICES,CATERING,REVENUE
Walsall Council,http://opendatacommunities.org/id/metropolitan-district-council/walsall ,WC149-200,30.04.2023,"ECONOMY, ENVIRONMENT & COMMUNITIES",A F BLAKEMORE & SON LTD,03/04/2023,-493.43,6413-Food & Drink Supplies,SUPPLIES & SERVICES,CATERING,REVENUE
Walsall Council,http://opendatacommunities.org/id/metropolitan-district-council/walsall ,WC149-201,30.04.2023,"ECONOMY, ENVIRONMENT & COMMUNITIES",A F BLAKEMORE & SON LTD,03/04/2023,493.42,6413-Food & Drink Supplies,SUPPLIES & SERVICES,CATERING,REVENUE
Walsall Council,http://opendatacommunities.org/id/metropolitan-district-council/walsall ,WC149-202,30.04.2023,"ECONOMY, ENVIRONMENT & COMMUNITIES",A F BLAKEMORE & SON LTD,03/04/2023,493.43,6413-Food & Drink Supplies,SUPPLIES & SERVICES,CATERING,REVENUE
Walsall Council,http://opendatacommunities.org/id/metropolitan-district-council/walsall ,WC149-203,30.04.2023,"ECONOMY, ENVIRONMENT & COMMUNITIES",A F BLAKEMORE & SON LTD,05/04/2023,649.37,6413-Food & Drink Supplies,SUPPLIES & SERVICES,CATERING,REVENUE
Walsall Council,http://opendatacommunities.org/id/metropolitan-district-council/walsall ,WC149-204,30.04.2023,"ECONOMY, ENVIRONMENT & COMMUNITIES",A F BLAKEMORE & SON LTD,05/04/2023,"1,570.43",6413-Food & Drink Supplies,SUPPLIES & SERVICES,CATERING,REVENUE
Walsall Council,http://opendatacommunities.org/id/metropolitan-district-council/walsall ,WC149-205,30.04.2023,"ECONOMY, ENVIRONMENT & COMMUNITIES",A WAY WITH MEDIA PRODUCTIONS LTD,25/04/2023,"8,271.88",6414-Professional Fees & Services,SUPPLIES & SERVICES,SERVICES,REVENUE
Walsall Council,http://opendatacommunities.org/id/metropolitan-district-council/walsall ,WC149-206,30.04.2023,CHILDRENS,A+ TUTORING SERVICES,25/04/2023,260.00,1220-Professional Fees & Services,SUPPLIES & SERVICES,SERVICES,REVENUE
Walsall Council,http://opendatacommunities.org/id/metropolitan-district-council/walsall ,WC149-207,30.04.2023,CHILDRENS,A1 WALSALL RADIO CARS,25/04/2023,"1,650.00",6241-Hire of Vehicle with Driver,TRANSPORT,DIRECT TRANSPORT COSTS,REVENUE
Walsall Council,http://opendatacommunities.org/id/metropolitan-district-council/walsall ,WC149-208,30.04.2023,CHILDRENS,A1 WALSALL RADIO CARS,25/04/2023,"2,220.00",6241-Hire of Vehicle with Driver,TRANSPORT,DIRECT TRANSPORT COSTS,REVENUE
Walsall Council,http://opendatacommunities.org/id/metropolitan-district-council/walsall ,WC149-209,30.04.2023,CHILDRENS,A1 WALSALL RADIO CARS,25/04/2023,"1,275.00",6241-Hire of Vehicle with Driver,TRANSPORT,DIRECT TRANSPORT COSTS,REVENUE
Walsall Council,http://opendatacommunities.org/id/metropolitan-district-council/walsall ,WC149-210,30.04.2023,CHILDRENS,A1 WALSALL RADIO CARS,25/04/2023,975.00,6241-Hire of Vehicle with Driver,TRANSPORT,DIRECT TRANSPORT COSTS,REVENUE
Walsall Council,http://opendatacommunities.org/id/metropolitan-district-council/walsall ,WC149-211,30.04.2023,CHILDRENS,A1 WALSALL RADIO CARS,25/04/2023,"1,620.00",6241-Hire of Vehicle with Driver,TRANSPORT,DIRECT TRANSPORT COSTS,REVENUE
Walsall Council,http://opendatacommunities.org/id/metropolitan-district-council/walsall ,WC149-212,30.04.2023,CHILDRENS,A1 WALSALL RADIO CARS,25/04/2023,"1,152.00",6241-Hire of Vehicle with Driver,TRANSPORT,DIRECT TRANSPORT COSTS,REVENUE
Walsall Council,http://opendatacommunities.org/id/metropolitan-district-council/walsall ,WC149-213,30.04.2023,CHILDRENS,A1 WALSALL RADIO CARS,25/04/2023,"1,500.00",6241-Hire of Vehicle with Driver,TRANSPORT,DIRECT TRANSPORT COSTS,REVENUE
Walsall Council,http://opendatacommunities.org/id/metropolitan-district-council/walsall ,WC149-214,30.04.2023,CHILDRENS,A1 WALSALL RADIO CARS,25/04/2023,"1,245.00",6241-Hire of Vehicle with Driver,TRANSPORT,DIRECT TRANSPORT COSTS,REVENUE
Walsall Council,http://opendatacommunities.org/id/metropolitan-district-council/walsall ,WC149-215,30.04.2023,ADULT SOCIAL CARE,REDACTED,05/04/2023,829.76,6541-Direct Payment,THIRD PARTY PAYMENTS,PRIVATE CONTRACTOR,REVENUE
Walsall Council,http://opendatacommunities.org/id/metropolitan-district-council/walsall ,WC149-216,30.04.2023,CHILDRENS,ABACUS FOSTERING LTD,17/04/2023,"2,763.20",6223-Independent Foster Care-Oth Agency Provision,THIRD PARTY PAYMENTS,PRIVATE CONTRACTOR,REVENUE
Walsall Council,http://opendatacommunities.org/id/metropolitan-district-council/walsall ,WC149-217,30.04.2023,CHILDRENS,ABACUS FOSTERING LTD,17/04/2023,"2,955.20",6223-Independent Foster Care-Oth Agency Provision,THIRD PARTY PAYMENTS,PRIVATE CONTRACTOR,REVENUE
Walsall Council,http://opendatacommunities.org/id/metropolitan-district-council/walsall ,WC149-218,30.04.2023,ADULT SOCIAL CARE,ABBEY COURT NURSING & RESIDEN,11/04/2023,"2,606.04",6541-Residential EMI,THIRD PARTY PAYMENTS,PRIVATE CONTRACTOR,REVENUE
Walsall Council,http://opendatacommunities.org/id/metropolitan-district-council/walsall ,WC149-219,30.04.2023,ADULT SOCIAL CARE,ABBEY HEALTHCARE HOMES LTD,11/04/2023,"3,180.76",6541-Residential,THIRD PARTY PAYMENTS,PRIVATE CONTRACTOR,REVENUE
Walsall Council,http://opendatacommunities.org/id/metropolitan-district-council/walsall ,WC149-220,30.04.2023,ADULT SOCIAL CARE,ABBEY HEALTHCARE HOMES LTD,11/04/2023,"3,604.84",6541-Residential,THIRD PARTY PAYMENTS,PRIVATE CONTRACTOR,REVENUE
Walsall Council,http://opendatacommunities.org/id/metropolitan-district-council/walsall ,WC149-221,30.04.2023,ADULT SOCIAL CARE,ABBEY HEALTHCARE HOMES LTD,11/04/2023,"3,180.76",6541-Residential,THIRD PARTY PAYMENTS,PRIVATE CONTRACTOR,REVENUE
Walsall Council,http://opendatacommunities.org/id/metropolitan-district-council/walsall ,WC149-222,30.04.2023,ADULT SOCIAL CARE,ABBEY HEALTHCARE HOMES LTD,11/04/2023,"2,432.32",6541-Residential,THIRD PARTY PAYMENTS,PRIVATE CONTRACTOR,REVENUE
Walsall Council,http://opendatacommunities.org/id/metropolitan-district-council/walsall ,WC149-223,30.04.2023,CHILDRENS,ABC DAY NURSERY (WILLENHALL) LIMITED,17/04/2023,"8,864.22",1184-Other-Grants to Other Orgs,SUPPLIES & SERVICES,GRANTS (EXP) & SUBSCRIPTIONS,REVENUE
Walsall Council,http://opendatacommunities.org/id/metropolitan-district-council/walsall ,WC149-224,30.04.2023,CHILDRENS,ABC DAY NURSERY (WILLENHALL) LIMITED,17/04/2023,"34,827.98",1184-Other-Grants to Other Orgs,SUPPLIES & SERVICES,GRANTS (EXP) & SUBSCRIPTIONS,REVENUE
Walsall Council,http://opendatacommunities.org/id/metropolitan-district-council/walsall ,WC149-225,30.04.2023,ADULT SOCIAL CARE,REDACTED,05/04/2023,"2,212.84",6541-Direct Payment,THIRD PARTY PAYMENTS,PRIVATE CONTRACTOR,REVENUE
Walsall Council,http://opendatacommunities.org/id/metropolitan-district-council/walsall ,WC149-226,30.04.2023,ADULT SOCIAL CARE,ABILITY HEALTHCARE LTD,05/04/2023,"1,486.72",6541-Domiciliary Care,THIRD PARTY PAYMENTS,PRIVATE CONTRACTOR,REVENUE
Walsall Council,http://opendatacommunities.org/id/metropolitan-district-council/walsall ,WC149-227,30.04.2023,ADULT SOCIAL CARE,ABILITY HEALTHCARE LTD,05/04/2023,"1,680.64",6541-Domiciliary Care,THIRD PARTY PAYMENTS,PRIVATE CONTRACTOR,REVENUE
Walsall Council,http://opendatacommunities.org/id/metropolitan-district-council/walsall ,WC149-228,30.04.2023,ADULT SOCIAL CARE,ABILITY HEALTHCARE LTD,05/04/2023,"1,115.04",6541-Domiciliary Care,THIRD PARTY PAYMENTS,PRIVATE CONTRACTOR,REVENUE
Walsall Council,http://opendatacommunities.org/id/metropolitan-district-council/walsall ,WC149-229,30.04.2023,ADULT SOCIAL CARE,ABILITY HEALTHCARE LTD,05/04/2023,"1,357.44",6541-Domiciliary Care,THIRD PARTY PAYMENTS,PRIVATE CONTRACTOR,REVENUE
Walsall Council,http://opendatacommunities.org/id/metropolitan-district-council/walsall ,WC149-230,30.04.2023,ADULT SOCIAL CARE,ABILITY HEALTHCARE LTD,05/04/2023,536.02,6541-Domiciliary Care,THIRD PARTY PAYMENTS,PRIVATE CONTRACTOR,REVENUE
Walsall Council,http://opendatacommunities.org/id/metropolitan-district-council/walsall ,WC149-231,30.04.2023,ADULT SOCIAL CARE,ABILITY HEALTHCARE LTD,05/04/2023,"2,036.16",6541-Domiciliary Care,THIRD PARTY PAYMENTS,PRIVATE CONTRACTOR,REVENUE
Walsall Council,http://opendatacommunities.org/id/metropolitan-district-council/walsall ,WC149-232,30.04.2023,ADULT SOCIAL CARE,ABILITY HEALTHCARE LTD,05/04/2023,"1,708.92",6541-Domiciliary Care,THIRD PARTY PAYMENTS,PRIVATE CONTRACTOR,REVENUE
Walsall Council,http://opendatacommunities.org/id/metropolitan-district-council/walsall ,WC149-233,30.04.2023,ADULT SOCIAL CARE,ABILITY HEALTHCARE LTD,05/04/2023,294.92,6541-Domiciliary Care,THIRD PARTY PAYMENTS,PRIVATE CONTRACTOR,REVENUE
Walsall Council,http://opendatacommunities.org/id/metropolitan-district-council/walsall ,WC149-234,30.04.2023,ADULT SOCIAL CARE,ABILITY HEALTHCARE LTD,05/04/2023,"2,036.16",6541-Domiciliary Care,THIRD PARTY PAYMENTS,PRIVATE CONTRACTOR,REVENUE
Walsall Council,http://opendatacommunities.org/id/metropolitan-district-council/walsall ,WC149-235,30.04.2023,ADULT SOCIAL CARE,ABILITY HEALTHCARE LTD,05/04/2023,"1,809.92",6541-Domiciliary Care,THIRD PARTY PAYMENTS,PRIVATE CONTRACTOR,REVENUE
Walsall Council,http://opendatacommunities.org/id/metropolitan-district-council/walsall ,WC149-236,30.04.2023,ADULT SOCIAL CARE,ABILITY HEALTHCARE LTD,05/04/2023,904.96,6541-Domiciliary Care,THIRD PARTY PAYMENTS,PRIVATE CONTRACTOR,REVENUE
Walsall Council,http://opendatacommunities.org/id/metropolitan-district-council/walsall ,WC149-237,30.04.2023,ADULT SOCIAL CARE,ABILITY HEALTHCARE LTD,05/04/2023,"1,018.08",6541-Domiciliary Care,THIRD PARTY PAYMENTS,PRIVATE CONTRACTOR,REVENUE
Walsall Council,http://opendatacommunities.org/id/metropolitan-district-council/walsall ,WC149-238,30.04.2023,ADULT SOCIAL CARE,ABILITY HEALTHCARE LTD,05/04/2023,377.16,6541-Domiciliary Care,THIRD PARTY PAYMENTS,PRIVATE CONTRACTOR,REVENUE
Walsall Council,http://opendatacommunities.org/id/metropolitan-district-council/walsall ,WC149-239,30.04.2023,ADULT SOCIAL CARE,ABILITY HEALTHCARE LTD,05/04/2023,"1,486.72",6541-Domiciliary Care,THIRD PARTY PAYMENTS,PRIVATE CONTRACTOR,REVENUE
Walsall Council,http://opendatacommunities.org/id/metropolitan-district-council/walsall ,WC149-240,30.04.2023,ADULT SOCIAL CARE,ABILITY HEALTHCARE LTD,05/04/2023,"1,809.92",6541-Domiciliary Care,THIRD PARTY PAYMENTS,PRIVATE CONTRACTOR,REVENUE
Walsall Council,http://opendatacommunities.org/id/metropolitan-district-council/walsall ,WC149-241,30.04.2023,ADULT SOCIAL CARE,ABILITY HEALTHCARE LTD,05/04/2023,904.96,6541-Domiciliary Care,THIRD PARTY PAYMENTS,PRIVATE CONTRACTOR,REVENUE
Walsall Council,http://opendatacommunities.org/id/metropolitan-district-council/walsall ,WC149-242,30.04.2023,ADULT SOCIAL CARE,ABILITY HEALTHCARE LTD,05/04/2023,"2,036.16",6541-Domiciliary Care,THIRD PARTY PAYMENTS,PRIVATE CONTRACTOR,REVENUE
Walsall Council,http://opendatacommunities.org/id/metropolitan-district-council/walsall ,WC149-243,30.04.2023,ADULT SOCIAL CARE,ABILITY HEALTHCARE LTD,05/04/2023,"1,809.92",6541-Domiciliary Care,THIRD PARTY PAYMENTS,PRIVATE CONTRACTOR,REVENUE
Walsall Council,http://opendatacommunities.org/id/metropolitan-district-council/walsall ,WC149-244,30.04.2023,ADULT SOCIAL CARE,ABILITY HEALTHCARE LTD,05/04/2023,"2,068.48",6541-Domiciliary Care,THIRD PARTY PAYMENTS,PRIVATE CONTRACTOR,REVENUE
Walsall Council,http://opendatacommunities.org/id/metropolitan-district-council/walsall ,WC149-245,30.04.2023,ADULT SOCIAL CARE,ABILITY HEALTHCARE LTD,05/04/2023,"1,809.92",6541-Domiciliary Care,THIRD PARTY PAYMENTS,PRIVATE CONTRACTOR,REVENUE
Walsall Council,http://opendatacommunities.org/id/metropolitan-district-council/walsall ,WC149-246,30.04.2023,ADULT SOCIAL CARE,ABILITY HEALTHCARE LTD,05/04/2023,"2,060.40",6541-Domiciliary Care,THIRD PARTY PAYMENTS,PRIVATE CONTRACTOR,REVENUE
Walsall Council,http://opendatacommunities.org/id/metropolitan-district-council/walsall ,WC149-247,30.04.2023,ADULT SOCIAL CARE,ABILITY HEALTHCARE LTD,05/04/2023,"1,583.68",6541-Domiciliary Care,THIRD PARTY PAYMENTS,PRIVATE CONTRACTOR,REVENUE
Walsall Council,http://opendatacommunities.org/id/metropolitan-district-council/walsall ,WC149-248,30.04.2023,ADULT SOCIAL CARE,ABILITY HEALTHCARE LTD,05/04/2023,"1,508.64",6541-Domiciliary Care,THIRD PARTY PAYMENTS,PRIVATE CONTRACTOR,REVENUE
Walsall Council,http://opendatacommunities.org/id/metropolitan-district-council/walsall ,WC149-249,30.04.2023,ADULT SOCIAL CARE,ABILITY HEALTHCARE LTD,05/04/2023,"1,809.92",6541-Domiciliary Care,THIRD PARTY PAYMENTS,PRIVATE CONTRACTOR,REVENUE
Walsall Council,http://opendatacommunities.org/id/metropolitan-district-council/walsall ,WC149-250,30.04.2023,ADULT SOCIAL CARE,ABILITY HEALTHCARE LTD,05/04/2023,"1,809.92",6541-Domiciliary Care,THIRD PARTY PAYMENTS,PRIVATE CONTRACTOR,REVENUE
Walsall Council,http://opendatacommunities.org/id/metropolitan-district-council/walsall ,WC149-251,30.04.2023,ADULT SOCIAL CARE,ABILITY HEALTHCARE LTD,05/04/2023,"2,036.16",6541-Domiciliary Care,THIRD PARTY PAYMENTS,PRIVATE CONTRACTOR,REVENUE
Walsall Council,http://opendatacommunities.org/id/metropolitan-district-council/walsall ,WC149-252,30.04.2023,ADULT SOCIAL CARE,ABILITY HEALTHCARE LTD,05/04/2023,452.76,6541-Domiciliary Care,THIRD PARTY PAYMENTS,PRIVATE CONTRACTOR,REVENUE
Walsall Council,http://opendatacommunities.org/id/metropolitan-district-council/walsall ,WC149-253,30.04.2023,ADULT SOCIAL CARE,ABILITY HEALTHCARE LTD,05/04/2023,"1,659.28",6541-Domiciliary Care,THIRD PARTY PAYMENTS,PRIVATE CONTRACTOR,REVENUE
Walsall Council,http://opendatacommunities.org/id/metropolitan-district-council/walsall ,WC149-254,30.04.2023,ADULT SOCIAL CARE,ABILITY HEALTHCARE LTD,05/04/2023,"1,206.80",6541-Domiciliary Care,THIRD PARTY PAYMENTS,PRIVATE CONTRACTOR,REVENUE
Walsall Council,http://opendatacommunities.org/id/metropolitan-district-council/walsall ,WC149-255,30.04.2023,ADULT SOCIAL CARE,ABILITY HEALTHCARE LTD,05/04/2023,"1,809.92",6541-Domiciliary Care,THIRD PARTY PAYMENTS,PRIVATE CONTRACTOR,REVENUE
Walsall Council,http://opendatacommunities.org/id/metropolitan-district-council/walsall ,WC149-256,30.04.2023,ADULT SOCIAL CARE,ABILITY HEALTHCARE LTD,05/04/2023,"1,131.20",6541-Domiciliary Care,THIRD PARTY PAYMENTS,PRIVATE CONTRACTOR,REVENUE
Walsall Council,http://opendatacommunities.org/id/metropolitan-district-council/walsall ,WC149-257,30.04.2023,ADULT SOCIAL CARE,ABILITY HEALTHCARE LTD,05/04/2023,"1,583.68",6541-Domiciliary Care,THIRD PARTY PAYMENTS,PRIVATE CONTRACTOR,REVENUE
Walsall Council,http://opendatacommunities.org/id/metropolitan-district-council/walsall ,WC149-258,30.04.2023,ADULT SOCIAL CARE,ABILITY HEALTHCARE LTD,05/04/2023,"2,036.16",6541-Domiciliary Care,THIRD PARTY PAYMENTS,PRIVATE CONTRACTOR,REVENUE
Walsall Council,http://opendatacommunities.org/id/metropolitan-district-council/walsall ,WC149-259,30.04.2023,ADULT SOCIAL CARE,ABILITY HEALTHCARE LTD,05/04/2023,"1,885.52",6541-Domiciliary Care,THIRD PARTY PAYMENTS,PRIVATE CONTRACTOR,REVENUE
Walsall Council,http://opendatacommunities.org/id/metropolitan-district-council/walsall ,WC149-260,30.04.2023,ADULT SOCIAL CARE,ABILITY HEALTHCARE LTD,05/04/2023,"2,036.16",6541-Domiciliary Care,THIRD PARTY PAYMENTS,PRIVATE CONTRACTOR,REVENUE
Walsall Council,http://opendatacommunities.org/id/metropolitan-district-council/walsall ,WC149-261,30.04.2023,ADULT SOCIAL CARE,ABILITY HEALTHCARE LTD,05/04/2023,"1,018.08",6554-Professional Services-Priv Contractor & Other Agencies,THIRD PARTY PAYMENTS,PRIVATE CONTRACTOR,REVENUE
Walsall Council,http://opendatacommunities.org/id/metropolitan-district-council/walsall ,WC149-262,30.04.2023,ADULT SOCIAL CARE,ABILITY HEALTHCARE LTD,05/04/2023,363.60,6554-Professional Services-Priv Contractor & Other Agencies,THIRD PARTY PAYMENTS,PRIVATE CONTRACTOR,REVENUE
Walsall Council,http://opendatacommunities.org/id/metropolitan-district-council/walsall ,WC149-263,30.04.2023,ADULT SOCIAL CARE,ABILITY HEALTHCARE LTD,05/04/2023,"1,979.60",6554-Professional Services-Priv Contractor & Other Agencies,THIRD PARTY PAYMENTS,PRIVATE CONTRACTOR,REVENUE
Walsall Council,http://opendatacommunities.org/id/metropolitan-district-council/walsall ,WC149-264,30.04.2023,ADULT SOCIAL CARE,ABILITY HEALTHCARE LTD,05/04/2023,904.96,6554-Professional Services-Priv Contractor & Other Agencies,THIRD PARTY PAYMENTS,PRIVATE CONTRACTOR,REVENUE
Walsall Council,http://opendatacommunities.org/id/metropolitan-district-council/walsall ,WC149-265,30.04.2023,ADULT SOCIAL CARE,ABILITY HEALTHCARE LTD,05/04/2023,"1,850.32",6554-Professional Services-Priv Contractor & Other Agencies,THIRD PARTY PAYMENTS,PRIVATE CONTRACTOR,REVENUE
Walsall Council,http://opendatacommunities.org/id/metropolitan-district-council/walsall ,WC149-266,30.04.2023,CHILDRENS,ABLEWELL CARS,25/04/2023,948.00,6241-Hire of Vehicle with Driver,TRANSPORT,DIRECT TRANSPORT COSTS,REVENUE
Walsall Council,http://opendatacommunities.org/id/metropolitan-district-council/walsall ,WC149-267,30.04.2023,CHILDRENS,ABLEWELL CARS,25/04/2023,"1,103.40",6241-Hire of Vehicle with Driver,TRANSPORT,DIRECT TRANSPORT COSTS,REVENUE
Walsall Council,http://opendatacommunities.org/id/metropolitan-district-council/walsall ,WC149-268,30.04.2023,CHILDRENS,ABLEWELL CARS,25/04/2023,990.00,6241-Hire of Vehicle with Driver,TRANSPORT,DIRECT TRANSPORT COSTS,REVENUE
Walsall Council,http://opendatacommunities.org/id/metropolitan-district-council/walsall ,WC149-269,30.04.2023,CHILDRENS,ABLEWELL CARS,25/04/2023,"1,248.00",6241-Hire of Vehicle with Driver,TRANSPORT,DIRECT TRANSPORT COSTS,REVENUE
Walsall Council,http://opendatacommunities.org/id/metropolitan-district-council/walsall ,WC149-270,30.04.2023,CHILDRENS,ABLEWELL CARS,25/04/2023,"1,636.95",6241-Hire of Vehicle with Driver,TRANSPORT,DIRECT TRANSPORT COSTS,REVENUE
Walsall Council,http://opendatacommunities.org/id/metropolitan-district-council/walsall ,WC149-271,30.04.2023,CHILDRENS,ABLEWELL CARS,25/04/2023,"1,988.10",6241-Hire of Vehicle with Driver,TRANSPORT,DIRECT TRANSPORT COSTS,REVENUE
Walsall Council,http://opendatacommunities.org/id/metropolitan-district-council/walsall ,WC149-272,30.04.2023,CHILDRENS,ABS TAXIS (ALDRIDGE),25/04/2023,"1,557.00",6241-Hire of Vehicle with Driver,TRANSPORT,DIRECT TRANSPORT COSTS,REVENUE
Walsall Council,http://opendatacommunities.org/id/metropolitan-district-council/walsall ,WC149-273,30.04.2023,CHILDRENS,ABS TAXIS (ALDRIDGE),25/04/2023,839.00,6241-Hire of Vehicle with Driver,TRANSPORT,DIRECT TRANSPORT COSTS,REVENUE
Walsall Council,http://opendatacommunities.org/id/metropolitan-district-council/walsall ,WC149-274,30.04.2023,CHILDRENS,ABS TAXIS (ALDRIDGE),25/04/2023,"1,127.00",6241-Hire of Vehicle with Driver,TRANSPORT,DIRECT TRANSPORT COSTS,REVENUE
Walsall Council,http://opendatacommunities.org/id/metropolitan-district-council/walsall ,WC149-275,30.04.2023,CHILDRENS,ABS TAXIS (ALDRIDGE),25/04/2023,980.00,6241-Hire of Vehicle with Driver,TRANSPORT,DIRECT TRANSPORT COSTS,REVENUE
Walsall Council,http://opendatacommunities.org/id/metropolitan-district-council/walsall ,WC149-276,30.04.2023,CHILDRENS,ABS TAXIS (ALDRIDGE),25/04/2023,"1,480.50",6241-Hire of Vehicle with Driver,TRANSPORT,DIRECT TRANSPORT COSTS,REVENUE
Walsall Council,http://opendatacommunities.org/id/metropolitan-district-council/walsall ,WC149-277,30.04.2023,ADULT SOCIAL CARE,ABSOLUTE HEALTHCARE SWAN HOUSE LTD,11/04/2023,"2,095.40",6541-Residential,THIRD PARTY PAYMENTS,PRIVATE CONTRACTOR,REVENUE
Walsall Council,http://opendatacommunities.org/id/metropolitan-district-council/walsall ,WC149-278,30.04.2023,ADULT SOCIAL CARE,ABSOLUTE HEALTHCARE SWAN HOUSE LTD,11/04/2023,"2,095.40",6541-Residential,THIRD PARTY PAYMENTS,PRIVATE CONTRACTOR,REVENUE
Walsall Council,http://opendatacommunities.org/id/metropolitan-district-council/walsall ,WC149-279,30.04.2023,ADULT SOCIAL CARE,ABSOLUTE HEALTHCARE SWAN HOUSE LTD,11/04/2023,"2,366.04",6541-Residential EMI,THIRD PARTY PAYMENTS,PRIVATE CONTRACTOR,REVENUE
Walsall Council,http://opendatacommunities.org/id/metropolitan-district-council/walsall ,WC149-280,30.04.2023,ADULT SOCIAL CARE,ABSOLUTE HEALTHCARE SWAN HOUSE LTD,11/04/2023,"2,095.40",6541-Residential,THIRD PARTY PAYMENTS,PRIVATE CONTRACTOR,REVENUE
Walsall Council,http://opendatacommunities.org/id/metropolitan-district-council/walsall ,WC149-281,30.04.2023,ADULT SOCIAL CARE,ABSOLUTE HEALTHCARE SWAN HOUSE LTD,11/04/2023,422.51,6541-Residential EMI,THIRD PARTY PAYMENTS,PRIVATE CONTRACTOR,REVENUE
Walsall Council,http://opendatacommunities.org/id/metropolitan-district-council/walsall ,WC149-282,30.04.2023,ADULT SOCIAL CARE,ABSOLUTE HEALTHCARE SWAN HOUSE LTD,11/04/2023,"5,035.71",6541-Nursing,THIRD PARTY PAYMENTS,PRIVATE CONTRACTOR,REVENUE
Walsall Council,http://opendatacommunities.org/id/metropolitan-district-council/walsall ,WC149-283,30.04.2023,ADULT SOCIAL CARE,ABSOLUTE HEALTHCARE SWAN HOUSE LTD,11/04/2023,"2,366.04",6541-Residential EMI,THIRD PARTY PAYMENTS,PRIVATE CONTRACTOR,REVENUE
Walsall Council,http://opendatacommunities.org/id/metropolitan-district-council/walsall ,WC149-284,30.04.2023,ADULT SOCIAL CARE,ABSOLUTE HEALTHCARE SWAN HOUSE LTD,11/04/2023,"2,095.40",6541-Residential,THIRD PARTY PAYMENTS,PRIVATE CONTRACTOR,REVENUE
Walsall Council,http://opendatacommunities.org/id/metropolitan-district-council/walsall ,WC149-285,30.04.2023,ADULT SOCIAL CARE,ABSOLUTE HEALTHCARE SWAN HOUSE LTD,11/04/2023,"2,366.04",6541-Residential EMI,THIRD PARTY PAYMENTS,PRIVATE CONTRACTOR,REVENUE
Walsall Council,http://opendatacommunities.org/id/metropolitan-district-council/walsall ,WC149-286,30.04.2023,ADULT SOCIAL CARE,ABSOLUTE HEALTHCARE SWAN HOUSE LTD,11/04/2023,"2,235.40",6541-Residential,THIRD PARTY PAYMENTS,PRIVATE CONTRACTOR,REVENUE
Walsall Council,http://opendatacommunities.org/id/metropolitan-district-council/walsall ,WC149-287,30.04.2023,ADULT SOCIAL CARE,ABSOLUTE HEALTHCARE SWAN HOUSE LTD,11/04/2023,"2,135.40",6541-Residential,THIRD PARTY PAYMENTS,PRIVATE CONTRACTOR,REVENUE
Walsall Council,http://opendatacommunities.org/id/metropolitan-district-council/walsall ,WC149-288,30.04.2023,ADULT SOCIAL CARE,ABSOLUTE HEALTHCARE SWAN HOUSE LTD,11/04/2023,"2,095.40",6541-Residential,THIRD PARTY PAYMENTS,PRIVATE CONTRACTOR,REVENUE
Walsall Council,http://opendatacommunities.org/id/metropolitan-district-council/walsall ,WC149-289,30.04.2023,ADULT SOCIAL CARE,ABSOLUTE HEALTHCARE SWAN HOUSE LTD,11/04/2023,"2,366.04",6541-Residential EMI,THIRD PARTY PAYMENTS,PRIVATE CONTRACTOR,REVENUE
Walsall Council,http://opendatacommunities.org/id/metropolitan-district-council/walsall ,WC149-290,30.04.2023,ADULT SOCIAL CARE,ABSOLUTE HEALTHCARE SWAN HOUSE LTD,11/04/2023,"4,685.71",6541-Short Stay Residential,THIRD PARTY PAYMENTS,PRIVATE CONTRACTOR,REVENUE
Walsall Council,http://opendatacommunities.org/id/metropolitan-district-council/walsall ,WC149-291,30.04.2023,ADULT SOCIAL CARE,ABSOLUTE HEALTHCARE SWAN HOUSE LTD,11/04/2023,"4,392.63",6541-Nursing,THIRD PARTY PAYMENTS,PRIVATE CONTRACTOR,REVENUE
Walsall Council,http://opendatacommunities.org/id/metropolitan-district-council/walsall ,WC149-292,30.04.2023,CHILDRENS,ABU BAKR NURSERY,17/04/2023,"11,281.72",1184-Other-Grants to Other Orgs,SUPPLIES & SERVICES,GRANTS (EXP) & SUBSCRIPTIONS,REVENUE
Walsall Council,http://opendatacommunities.org/id/metropolitan-district-council/walsall ,WC149-293,30.04.2023,CHILDRENS,ABU BAKR NURSERY,17/04/2023,"35,538.75",1184-Other-Grants to Other Orgs,SUPPLIES & SERVICES,GRANTS (EXP) & SUBSCRIPTIONS,REVENUE
Walsall Council,http://opendatacommunities.org/id/metropolitan-district-council/walsall ,WC149-294,30.04.2023,CHILDRENS,ABU BAKR TRUST,05/04/2023,"3,878.31",1220-Top Up Funding -Grants to Schools,SUPPLIES & SERVICES,GRANTS (EXP) & SUBSCRIPTIONS,REVENUE
Walsall Council,http://opendatacommunities.org/id/metropolitan-district-council/walsall ,WC149-295,30.04.2023,CHILDRENS,ACCALIA CARE SERVICES LTD,17/04/2023,"20,960.00",6223-External Residential Care-Oth Agency Provision,THIRD PARTY PAYMENTS,PRIVATE CONTRACTOR,REVENUE
Walsall Council,http://opendatacommunities.org/id/metropolitan-district-council/walsall ,WC149-296,30.04.2023,RESOURCES AND TRANSFORMATION,ACCESS UK LTD ,12/04/2023,"80,000.00",6623-Computer Equipment,SUPPLIES & SERVICES,COMMUNICATIONS & COMPUTING,REVENUE
Walsall Council,http://opendatacommunities.org/id/metropolitan-district-council/walsall ,WC149-297,30.04.2023,ADULT SOCIAL CARE,ACCESS UK LTD ,03/04/2023,"30,000.00",6550-Fees & Licences,SUPPLIES & SERVICES,SERVICES,REVENUE
Walsall Council,http://opendatacommunities.org/id/metropolitan-district-council/walsall ,WC149-298,30.04.2023,CHILDRENS,ACCESS UK LTD ,19/04/2023,"1,050.00",6240-Fees & Licences,SUPPLIES & SERVICES,SERVICES,REVENUE
Walsall Council,http://opendatacommunities.org/id/metropolitan-district-council/walsall ,WC149-299,30.04.2023,ADULT SOCIAL CARE,ACCORD HOUSING ASSOCIATION LIMITED - HOBS MEADOW,11/04/2023,"4,776.84",6541-Residential,THIRD PARTY PAYMENTS,PRIVATE CONTRACTOR,REVENUE
Walsall Council,http://opendatacommunities.org/id/metropolitan-district-council/walsall ,WC149-300,30.04.2023,ADULT SOCIAL CARE,ACCORD HOUSING ASSOCIATION LIMITED - HOBS MEADOW,11/04/2023,"4,776.84",6541-Residential,THIRD PARTY PAYMENTS,PRIVATE CONTRACTOR,REVENUE
Walsall Council,http://opendatacommunities.org/id/metropolitan-district-council/walsall ,WC149-301,30.04.2023,ADULT SOCIAL CARE,ACCORD HOUSING ASSOCIATION LIMITED - HOBS MEADOW,11/04/2023,"4,776.84",6541-Residential,THIRD PARTY PAYMENTS,PRIVATE CONTRACTOR,REVENUE
Walsall Council,http://opendatacommunities.org/id/metropolitan-district-council/walsall ,WC149-302,30.04.2023,ADULT SOCIAL CARE,ACCORD HOUSING ASSOCIATION LIMITED - HOBS MEADOW,11/04/2023,"4,776.84",6541-Residential,THIRD PARTY PAYMENTS,PRIVATE CONTRACTOR,REVENUE
Walsall Council,http://opendatacommunities.org/id/metropolitan-district-council/walsall ,WC149-303,30.04.2023,CHILDRENS,ACE CARS & MINIBUSES LTD,25/04/2023,"1,770.00",6241-Hire of Vehicle with Driver,TRANSPORT,DIRECT TRANSPORT COSTS,REVENUE
Walsall Council,http://opendatacommunities.org/id/metropolitan-district-council/walsall ,WC149-304,30.04.2023,CHILDRENS,ACE CARS & MINIBUSES LTD,25/04/2023,"2,017.80",6241-Hire of Vehicle with Driver,TRANSPORT,DIRECT TRANSPORT COSTS,REVENUE
Walsall Council,http://opendatacommunities.org/id/metropolitan-district-council/walsall ,WC149-305,30.04.2023,CHILDRENS,ACE CARS & MINIBUSES LTD,25/04/2023,"1,876.20",6241-Hire of Vehicle with Driver,TRANSPORT,DIRECT TRANSPORT COSTS,REVENUE
Walsall Council,http://opendatacommunities.org/id/metropolitan-district-council/walsall ,WC149-306,30.04.2023,CHILDRENS,ACE CARS & MINIBUSES LTD,25/04/2023,"1,770.00",6241-Hire of Vehicle with Driver,TRANSPORT,DIRECT TRANSPORT COSTS,REVENUE
Walsall Council,http://opendatacommunities.org/id/metropolitan-district-council/walsall ,WC149-307,30.04.2023,CHILDRENS,ACE CARS & MINIBUSES LTD,25/04/2023,"2,400.00",6241-Hire of Vehicle with Driver,TRANSPORT,DIRECT TRANSPORT COSTS,REVENUE
Walsall Council,http://opendatacommunities.org/id/metropolitan-district-council/walsall ,WC149-308,30.04.2023,CHILDRENS,ACE CARS & MINIBUSES LTD,25/04/2023,"2,837.85",6241-Hire of Vehicle with Driver,TRANSPORT,DIRECT TRANSPORT COSTS,REVENUE
Walsall Council,http://opendatacommunities.org/id/metropolitan-district-council/walsall ,WC149-309,30.04.2023,CHILDRENS,ACE CARS & MINIBUSES LTD,25/04/2023,"2,041.50",6241-Hire of Vehicle with Driver,TRANSPORT,DIRECT TRANSPORT COSTS,REVENUE
Walsall Council,http://opendatacommunities.org/id/metropolitan-district-council/walsall ,WC149-310,30.04.2023,CHILDRENS,ACE CARS & MINIBUSES LTD,25/04/2023,"2,306.85",6241-Hire of Vehicle with Driver,TRANSPORT,DIRECT TRANSPORT COSTS,REVENUE
Walsall Council,http://opendatacommunities.org/id/metropolitan-district-council/walsall ,WC149-311,30.04.2023,CHILDRENS,ACE CARS & MINIBUSES LTD,25/04/2023,"2,545.35",6241-Hire of Vehicle with Driver,TRANSPORT,DIRECT TRANSPORT COSTS,REVENUE
Walsall Council,http://opendatacommunities.org/id/metropolitan-district-council/walsall ,WC149-312,30.04.2023,CHILDRENS,ACE CARS & MINIBUSES LTD,25/04/2023,"1,605.00",6241-Hire of Vehicle with Driver,TRANSPORT,DIRECT TRANSPORT COSTS,REVENUE
Walsall Council,http://opendatacommunities.org/id/metropolitan-district-council/walsall ,WC149-313,30.04.2023,CHILDRENS,ACE CARS & MINIBUSES LTD,25/04/2023,"1,605.00",6241-Hire of Vehicle with Driver,TRANSPORT,DIRECT TRANSPORT COSTS,REVENUE
Walsall Council,http://opendatacommunities.org/id/metropolitan-district-council/walsall ,WC149-314,30.04.2023,CHILDRENS,ACE CARS & MINIBUSES LTD,25/04/2023,"1,770.00",6241-Hire of Vehicle with Driver,TRANSPORT,DIRECT TRANSPORT COSTS,REVENUE
Walsall Council,http://opendatacommunities.org/id/metropolitan-district-council/walsall ,WC149-315,30.04.2023,CHILDRENS,ACE CARS & MINIBUSES LTD,25/04/2023,"1,710.00",6241-Hire of Vehicle with Driver,TRANSPORT,DIRECT TRANSPORT COSTS,REVENUE
Walsall Council,http://opendatacommunities.org/id/metropolitan-district-council/walsall ,WC149-316,30.04.2023,CHILDRENS,ACE CARS & MINIBUSES LTD,25/04/2023,"1,710.00",6241-Hire of Vehicle with Driver,TRANSPORT,DIRECT TRANSPORT COSTS,REVENUE
Walsall Council,http://opendatacommunities.org/id/metropolitan-district-council/walsall ,WC149-317,30.04.2023,CHILDRENS,ACE CARS & MINIBUSES LTD,25/04/2023,"2,886.00",6241-Hire of Vehicle with Driver,TRANSPORT,DIRECT TRANSPORT COSTS,REVENUE
Walsall Council,http://opendatacommunities.org/id/metropolitan-district-council/walsall ,WC149-318,30.04.2023,CHILDRENS,ACE CARS & MINIBUSES LTD,25/04/2023,"1,710.00",6241-Hire of Vehicle with Driver,TRANSPORT,DIRECT TRANSPORT COSTS,REVENUE
Walsall Council,http://opendatacommunities.org/id/metropolitan-district-council/walsall ,WC149-319,30.04.2023,CHILDRENS,ACE CARS & MINIBUSES LTD,25/04/2023,"2,336.40",6241-Hire of Vehicle with Driver,TRANSPORT,DIRECT TRANSPORT COSTS,REVENUE
Walsall Council,http://opendatacommunities.org/id/metropolitan-district-council/walsall ,WC149-320,30.04.2023,CHILDRENS,ACE CARS & MINIBUSES LTD,25/04/2023,"1,605.00",6241-Hire of Vehicle with Driver,TRANSPORT,DIRECT TRANSPORT COSTS,REVENUE
Walsall Council,http://opendatacommunities.org/id/metropolitan-district-council/walsall ,WC149-321,30.04.2023,CHILDRENS,ACE CARS & MINIBUSES LTD,25/04/2023,"3,186.00",6241-Hire of Vehicle with Driver,TRANSPORT,DIRECT TRANSPORT COSTS,REVENUE
Walsall Council,http://opendatacommunities.org/id/metropolitan-district-council/walsall ,WC149-322,30.04.2023,CHILDRENS,ACE CARS & MINIBUSES LTD,25/04/2023,"1,605.00",6241-Hire of Vehicle with Driver,TRANSPORT,DIRECT TRANSPORT COSTS,REVENUE
Walsall Council,http://opendatacommunities.org/id/metropolitan-district-council/walsall ,WC149-323,30.04.2023,CHILDRENS,ACE CARS & MINIBUSES LTD,25/04/2023,"1,605.00",6241-Hire of Vehicle with Driver,TRANSPORT,DIRECT TRANSPORT COSTS,REVENUE
Walsall Council,http://opendatacommunities.org/id/metropolitan-district-council/walsall ,WC149-324,30.04.2023,CHILDRENS,ACE CARS & MINIBUSES LTD,25/04/2023,"1,605.00",6241-Hire of Vehicle with Driver,TRANSPORT,DIRECT TRANSPORT COSTS,REVENUE
Walsall Council,http://opendatacommunities.org/id/metropolitan-district-council/walsall ,WC149-325,30.04.2023,CHILDRENS,ACE CARS & MINIBUSES LTD,25/04/2023,"1,770.00",6241-Hire of Vehicle with Driver,TRANSPORT,DIRECT TRANSPORT COSTS,REVENUE
Walsall Council,http://opendatacommunities.org/id/metropolitan-district-council/walsall ,WC149-326,30.04.2023,CHILDRENS,ACE CARS & MINIBUSES LTD,25/04/2023,"1,792.50",6241-Hire of Vehicle with Driver,TRANSPORT,DIRECT TRANSPORT COSTS,REVENUE
Walsall Council,http://opendatacommunities.org/id/metropolitan-district-council/walsall ,WC149-327,30.04.2023,CHILDRENS,ACE CARS & MINIBUSES LTD,25/04/2023,"2,041.50",6241-Hire of Vehicle with Driver,TRANSPORT,DIRECT TRANSPORT COSTS,REVENUE
Walsall Council,http://opendatacommunities.org/id/metropolitan-district-council/walsall ,WC149-328,30.04.2023,CHILDRENS,ACE CARS & MINIBUSES LTD,25/04/2023,"2,041.50",6241-Hire of Vehicle with Driver,TRANSPORT,DIRECT TRANSPORT COSTS,REVENUE
Walsall Council,http://opendatacommunities.org/id/metropolitan-district-council/walsall ,WC149-329,30.04.2023,CHILDRENS,ACE CARS & MINIBUSES LTD,25/04/2023,"2,041.50",6241-Hire of Vehicle with Driver,TRANSPORT,DIRECT TRANSPORT COSTS,REVENUE
Walsall Council,http://opendatacommunities.org/id/metropolitan-district-council/walsall ,WC149-330,30.04.2023,CHILDRENS,ACE CARS & MINIBUSES LTD,25/04/2023,"2,542.50",6241-Hire of Vehicle with Driver,TRANSPORT,DIRECT TRANSPORT COSTS,REVENUE
Walsall Council,http://opendatacommunities.org/id/metropolitan-district-council/walsall ,WC149-331,30.04.2023,CHILDRENS,ACE CARS & MINIBUSES LTD,25/04/2023,"1,605.00",6241-Hire of Vehicle with Driver,TRANSPORT,DIRECT TRANSPORT COSTS,REVENUE
Walsall Council,http://opendatacommunities.org/id/metropolitan-district-council/walsall ,WC149-332,30.04.2023,CHILDRENS,ACE CARS & MINIBUSES LTD,25/04/2023,"1,605.00",6241-Hire of Vehicle with Driver,TRANSPORT,DIRECT TRANSPORT COSTS,REVENUE
Walsall Council,http://opendatacommunities.org/id/metropolitan-district-council/walsall ,WC149-333,30.04.2023,CHILDRENS,ACE CARS & MINIBUSES LTD,25/04/2023,"1,605.00",6241-Hire of Vehicle with Driver,TRANSPORT,DIRECT TRANSPORT COSTS,REVENUE
Walsall Council,http://opendatacommunities.org/id/metropolitan-district-council/walsall ,WC149-334,30.04.2023,CHILDRENS,ACE CARS & MINIBUSES LTD,25/04/2023,"1,605.00",6241-Hire of Vehicle with Driver,TRANSPORT,DIRECT TRANSPORT COSTS,REVENUE
Walsall Council,http://opendatacommunities.org/id/metropolitan-district-council/walsall ,WC149-335,30.04.2023,CHILDRENS,ACE CARS & MINIBUSES LTD,25/04/2023,"1,770.00",6241-Hire of Vehicle with Driver,TRANSPORT,DIRECT TRANSPORT COSTS,REVENUE
Walsall Council,http://opendatacommunities.org/id/metropolitan-district-council/walsall ,WC149-336,30.04.2023,CHILDRENS,ACE CARS & MINIBUSES LTD,25/04/2023,"2,377.50",6241-Hire of Vehicle with Driver,TRANSPORT,DIRECT TRANSPORT COSTS,REVENUE
Walsall Council,http://opendatacommunities.org/id/metropolitan-district-council/walsall ,WC149-337,30.04.2023,CHILDRENS,ACE CARS & MINIBUSES LTD,25/04/2023,"1,792.50",6241-Hire of Vehicle with Driver,TRANSPORT,DIRECT TRANSPORT COSTS,REVENUE
Walsall Council,http://opendatacommunities.org/id/metropolitan-district-council/walsall ,WC149-338,30.04.2023,CHILDRENS,ACE CARS & MINIBUSES LTD,25/04/2023,"1,971.75",6241-Hire of Vehicle with Driver,TRANSPORT,DIRECT TRANSPORT COSTS,REVENUE
Walsall Council,http://opendatacommunities.org/id/metropolitan-district-council/walsall ,WC149-339,30.04.2023,CHILDRENS,ACE CARS & MINIBUSES LTD,25/04/2023,"1,792.50",6241-Hire of Vehicle with Driver,TRANSPORT,DIRECT TRANSPORT COSTS,REVENUE
Walsall Council,http://opendatacommunities.org/id/metropolitan-district-council/walsall ,WC149-340,30.04.2023,CHILDRENS,ACE CARS & MINIBUSES LTD,25/04/2023,"2,041.50",6241-Hire of Vehicle with Driver,TRANSPORT,DIRECT TRANSPORT COSTS,REVENUE
Walsall Council,http://opendatacommunities.org/id/metropolitan-district-council/walsall ,WC149-341,30.04.2023,CHILDRENS,ACE CARS & MINIBUSES LTD,25/04/2023,"2,041.50",6241-Hire of Vehicle with Driver,TRANSPORT,DIRECT TRANSPORT COSTS,REVENUE
Walsall Council,http://opendatacommunities.org/id/metropolitan-district-council/walsall ,WC149-342,30.04.2023,CHILDRENS,ACE CARS & MINIBUSES LTD,25/04/2023,"1,710.00",6241-Hire of Vehicle with Driver,TRANSPORT,DIRECT TRANSPORT COSTS,REVENUE
Walsall Council,http://opendatacommunities.org/id/metropolitan-district-council/walsall ,WC149-343,30.04.2023,CHILDRENS,ACE COACHING LIMITED,25/04/2023,492.80,6211-Professional Fees & Services,SUPPLIES & SERVICES,SERVICES,REVENUE
Walsall Council,http://opendatacommunities.org/id/metropolitan-district-council/walsall ,WC149-344,30.04.2023,ADULT SOCIAL CARE,ACEPAY LTD (COTTAGE NUR HOME),11/04/2023,"2,456.24",6541-Nursing,THIRD PARTY PAYMENTS,PRIVATE CONTRACTOR,REVENUE
Walsall Council,http://opendatacommunities.org/id/metropolitan-district-council/walsall ,WC149-345,30.04.2023,ADULT SOCIAL CARE,ACEPAY LTD (COTTAGE NUR HOME),11/04/2023,"2,456.24",6541-Nursing,THIRD PARTY PAYMENTS,PRIVATE CONTRACTOR,REVENUE
Walsall Council,http://opendatacommunities.org/id/metropolitan-district-council/walsall ,WC149-346,30.04.2023,ADULT SOCIAL CARE,ACEPAY LTD (COTTAGE NUR HOME),11/04/2023,"2,366.04",6541-Residential EMI,THIRD PARTY PAYMENTS,PRIVATE CONTRACTOR,REVENUE
Walsall Council,http://opendatacommunities.org/id/metropolitan-district-council/walsall ,WC149-347,30.04.2023,ADULT SOCIAL CARE,ACEPAY LTD (COTTAGE NUR HOME),11/04/2023,"2,456.24",6541-Nursing,THIRD PARTY PAYMENTS,PRIVATE CONTRACTOR,REVENUE
Walsall Council,http://opendatacommunities.org/id/metropolitan-district-council/walsall ,WC149-348,30.04.2023,ADULT SOCIAL CARE,ACEPAY LTD (COTTAGE NUR HOME),11/04/2023,"2,456.24",6541-Nursing,THIRD PARTY PAYMENTS,PRIVATE CONTRACTOR,REVENUE
Walsall Council,http://opendatacommunities.org/id/metropolitan-district-council/walsall ,WC149-349,30.04.2023,ADULT SOCIAL CARE,ACEPAY LTD (COTTAGE NUR HOME),11/04/2023,"2,456.24",6541-Nursing,THIRD PARTY PAYMENTS,PRIVATE CONTRACTOR,REVENUE
Walsall Council,http://opendatacommunities.org/id/metropolitan-district-council/walsall ,WC149-350,30.04.2023,ADULT SOCIAL CARE,ACEPAY LTD (COTTAGE NUR HOME),11/04/2023,"2,456.24",6541-Nursing,THIRD PARTY PAYMENTS,PRIVATE CONTRACTOR,REVENUE
Walsall Council,http://opendatacommunities.org/id/metropolitan-district-council/walsall ,WC149-351,30.04.2023,ADULT SOCIAL CARE,ACEPAY LTD (COTTAGE NUR HOME),11/04/2023,"2,456.24",6541-Nursing,THIRD PARTY PAYMENTS,PRIVATE CONTRACTOR,REVENUE
Walsall Council,http://opendatacommunities.org/id/metropolitan-district-council/walsall ,WC149-352,30.04.2023,ADULT SOCIAL CARE,ACEPAY LTD (COTTAGE NUR HOME),11/04/2023,"2,456.24",6541-Nursing,THIRD PARTY PAYMENTS,PRIVATE CONTRACTOR,REVENUE
Walsall Council,http://opendatacommunities.org/id/metropolitan-district-council/walsall ,WC149-353,30.04.2023,ADULT SOCIAL CARE,ACEPAY LTD (COTTAGE NUR HOME),11/04/2023,"2,456.24",6541-Nursing,THIRD PARTY PAYMENTS,PRIVATE CONTRACTOR,REVENUE
Walsall Council,http://opendatacommunities.org/id/metropolitan-district-council/walsall ,WC149-354,30.04.2023,ADULT SOCIAL CARE,ACEPAY LTD (COTTAGE NUR HOME),11/04/2023,"2,456.24",6541-Nursing,THIRD PARTY PAYMENTS,PRIVATE CONTRACTOR,REVENUE
Walsall Council,http://opendatacommunities.org/id/metropolitan-district-council/walsall ,WC149-355,30.04.2023,ADULT SOCIAL CARE,ACEPAY LTD (COTTAGE NUR HOME),11/04/2023,"2,763.80",6541-Nursing EMI,THIRD PARTY PAYMENTS,PRIVATE CONTRACTOR,REVENUE
Walsall Council,http://opendatacommunities.org/id/metropolitan-district-council/walsall ,WC149-356,30.04.2023,ADULT SOCIAL CARE,ACEPAY LTD (COTTAGE NUR HOME),11/04/2023,"2,366.04",6541-Residential EMI,THIRD PARTY PAYMENTS,PRIVATE CONTRACTOR,REVENUE
Walsall Council,http://opendatacommunities.org/id/metropolitan-district-council/walsall ,WC149-357,30.04.2023,ADULT SOCIAL CARE,ACEPAY LTD (COTTAGE NUR HOME),11/04/2023,"2,456.24",6541-Nursing,THIRD PARTY PAYMENTS,PRIVATE CONTRACTOR,REVENUE
Walsall Council,http://opendatacommunities.org/id/metropolitan-district-council/walsall ,WC149-358,30.04.2023,ADULT SOCIAL CARE,ACEPAY LTD (COTTAGE NUR HOME),11/04/2023,"2,763.80",6541-Nursing EMI,THIRD PARTY PAYMENTS,PRIVATE CONTRACTOR,REVENUE
Walsall Council,http://opendatacommunities.org/id/metropolitan-district-council/walsall ,WC149-359,30.04.2023,ADULT SOCIAL CARE,ACEPAY LTD (COTTAGE NUR HOME),11/04/2023,"2,366.04",6541-Residential EMI,THIRD PARTY PAYMENTS,PRIVATE CONTRACTOR,REVENUE
Walsall Council,http://opendatacommunities.org/id/metropolitan-district-council/walsall ,WC149-360,30.04.2023,ADULT SOCIAL CARE,ACEPAY LTD (COTTAGE NUR HOME),11/04/2023,"2,763.80",6541-Nursing EMI,THIRD PARTY PAYMENTS,PRIVATE CONTRACTOR,REVENUE
Walsall Council,http://opendatacommunities.org/id/metropolitan-district-council/walsall ,WC149-361,30.04.2023,ADULT SOCIAL CARE,ACEPAY LTD (COTTAGE NUR HOME),11/04/2023,"2,366.04",6541-Residential EMI,THIRD PARTY PAYMENTS,PRIVATE CONTRACTOR,REVENUE
Walsall Council,http://opendatacommunities.org/id/metropolitan-district-council/walsall ,WC149-362,30.04.2023,ADULT SOCIAL CARE,ACEPAY LTD (COTTAGE NUR HOME),11/04/2023,"2,456.24",6541-Nursing,THIRD PARTY PAYMENTS,PRIVATE CONTRACTOR,REVENUE
Walsall Council,http://opendatacommunities.org/id/metropolitan-district-council/walsall ,WC149-363,30.04.2023,ADULT SOCIAL CARE,ACHIEVE TOGETHER LIMITED,11/04/2023,"3,852.80",6541-Residential,THIRD PARTY PAYMENTS,PRIVATE CONTRACTOR,REVENUE
Walsall Council,http://opendatacommunities.org/id/metropolitan-district-council/walsall ,WC149-364,30.04.2023,ADULT SOCIAL CARE,ACHIEVE TOGETHER LIMITED,11/04/2023,"6,572.72",6541-Residential,THIRD PARTY PAYMENTS,PRIVATE CONTRACTOR,REVENUE
Walsall Council,http://opendatacommunities.org/id/metropolitan-district-council/walsall ,WC149-365,30.04.2023,ADULT SOCIAL CARE,ACHIEVE TOGETHER LIMITED,11/04/2023,"4,920.72",6541-Residential,THIRD PARTY PAYMENTS,PRIVATE CONTRACTOR,REVENUE
Walsall Council,http://opendatacommunities.org/id/metropolitan-district-council/walsall ,WC149-366,30.04.2023,ADULT SOCIAL CARE,ACHIEVE TOGETHER LIMITED,11/04/2023,"5,506.08",6541-Residential,THIRD PARTY PAYMENTS,PRIVATE CONTRACTOR,REVENUE
Walsall Council,http://opendatacommunities.org/id/metropolitan-district-council/walsall ,WC149-367,30.04.2023,ADULT SOCIAL CARE,ACHIEVE TOGETHER LIMITED,11/04/2023,"19,369.90",6541-Residential,THIRD PARTY PAYMENTS,PRIVATE CONTRACTOR,REVENUE
Walsall Council,http://opendatacommunities.org/id/metropolitan-district-council/walsall ,WC149-368,30.04.2023,"ECONOMY, ENVIRONMENT & COMMUNITIES",ACOEM UK LTD FORMERLY AIR MONITORS LIMITED,03/04/2023,"7,312.00",6411-Repair & Maintenance of Furniture & Equipment,SUPPLIES & SERVICES,EQUIPMENT FURNITURE & MATERIALS,REVENUE
Walsall Council,http://opendatacommunities.org/id/metropolitan-district-council/walsall ,WC149-369,30.04.2023,CHILDRENS,ACORN CARE & EDUCATION LTD (SALES),03/04/2023,"25,960.02",1220-Professional Fees & Services,SUPPLIES & SERVICES,SERVICES,REVENUE
Walsall Council,http://opendatacommunities.org/id/metropolitan-district-council/walsall ,WC149-370,30.04.2023,CHILDRENS,ACORN CARE & EDUCATION LTD (SALES),03/04/2023,"25,960.02",1220-Professional Fees & Services,SUPPLIES & SERVICES,SERVICES,REVENUE
Walsall Council,http://opendatacommunities.org/id/metropolitan-district-council/walsall ,WC149-371,30.04.2023,CHILDRENS,ACORN CARE & EDUCATION LTD (SALES),24/04/2023,"6,389.17",1220-Professional Fees & Services,SUPPLIES & SERVICES,SERVICES,REVENUE
Walsall Council,http://opendatacommunities.org/id/metropolitan-district-council/walsall ,WC149-372,30.04.2023,CHILDRENS,ACORN FOSTERING SERVICES LTD,17/04/2023,"3,340.00",6223-Independent Foster Care-Oth Agency Provision,THIRD PARTY PAYMENTS,PRIVATE CONTRACTOR,REVENUE
Walsall Council,http://opendatacommunities.org/id/metropolitan-district-council/walsall ,WC149-373,30.04.2023,CHILDRENS,ACORNS CHILDRENS HOSPICE TRUST,25/04/2023,"1,700.00",6220-Professional Fees & Services,SUPPLIES & SERVICES,SERVICES,REVENUE
Walsall Council,http://opendatacommunities.org/id/metropolitan-district-council/walsall ,WC149-374,30.04.2023,CHILDRENS,ACPAS LIMITED,05/04/2023,265.20,6220-School Only Payments - Catering,THIRD PARTY PAYMENTS,INDEPENDENT UNIT WITHIN COUNCIL,REVENUE
Walsall Council,http://opendatacommunities.org/id/metropolitan-district-council/walsall ,WC149-375,30.04.2023,CHILDRENS,ACPAS LIMITED,19/04/2023,893.57,6222-Consultant Fees,SUPPLIES & SERVICES,SERVICES,REVENUE
Walsall Council,http://opendatacommunities.org/id/metropolitan-district-council/walsall ,WC149-376,30.04.2023,CHILDRENS,ACTIVE CARE SOLUTIONS LTD,17/04/2023,"3,445.08",6223-Independent Foster Care-Oth Agency Provision,THIRD PARTY PAYMENTS,PRIVATE CONTRACTOR,REVENUE
Walsall Council,http://opendatacommunities.org/id/metropolitan-district-council/walsall ,WC149-377,30.04.2023,CHILDRENS,ACTIVE CARE SOLUTIONS LTD,17/04/2023,"3,284.16",6223-Independent Foster Care-Oth Agency Provision,THIRD PARTY PAYMENTS,PRIVATE CONTRACTOR,REVENUE
Walsall Council,http://opendatacommunities.org/id/metropolitan-district-council/walsall ,WC149-378,30.04.2023,CHILDRENS,ACTIVE CARE SOLUTIONS LTD,17/04/2023,"3,284.16",6223-Independent Foster Care-Oth Agency Provision,THIRD PARTY PAYMENTS,PRIVATE CONTRACTOR,REVENUE
Walsall Council,http://opendatacommunities.org/id/metropolitan-district-council/walsall ,WC149-379,30.04.2023,CHILDRENS,ACTIVE CARE SOLUTIONS LTD,17/04/2023,"3,410.24",6223-Independent Foster Care-Oth Agency Provision,THIRD PARTY PAYMENTS,PRIVATE CONTRACTOR,REVENUE
Walsall Council,http://opendatacommunities.org/id/metropolitan-district-council/walsall ,WC149-380,30.04.2023,CHILDRENS,ACTIVITY GYM LTD,25/04/2023,498.44,6211-Professional Fees & Services,SUPPLIES & SERVICES,SERVICES,REVENUE
Walsall Council,http://opendatacommunities.org/id/metropolitan-district-council/walsall ,WC149-381,30.04.2023,ADULT SOCIAL CARE,REDACTED,05/04/2023,733.28,6541-Direct Payment,THIRD PARTY PAYMENTS,PRIVATE CONTRACTOR,REVENUE
Walsall Council,http://opendatacommunities.org/id/metropolitan-district-council/walsall ,WC149-382,30.04.2023,CHILDRENS,ADAMS TOURS LTD,03/04/2023,425.00,6211-Professional Fees & Services,SUPPLIES & SERVICES,SERVICES,REVENUE
Walsall Council,http://opendatacommunities.org/id/metropolitan-district-council/walsall ,WC149-383,30.04.2023,CHILDRENS,REDACTED,04/04/2023,341.57,6223-Residents Orders,TRANSFER PAYMENTS,CHILDREN SOCIAL SERVICES CLIENT,REVENUE
Walsall Council,http://opendatacommunities.org/id/metropolitan-district-council/walsall ,WC149-384,30.04.2023,ADULT SOCIAL CARE,REDACTED,05/04/2023,"2,083.20",6541-Direct Payment,THIRD PARTY PAYMENTS,PRIVATE CONTRACTOR,REVENUE
Walsall Council,http://opendatacommunities.org/id/metropolitan-district-council/walsall ,WC149-385,30.04.2023,ADULT SOCIAL CARE,ADVANCE HEALTH CARE (UK) LTD,05/04/2023,"2,316.64",6541-Domiciliary Care,THIRD PARTY PAYMENTS,PRIVATE CONTRACTOR,REVENUE
Walsall Council,http://opendatacommunities.org/id/metropolitan-district-council/walsall ,WC149-386,30.04.2023,ADULT SOCIAL CARE,ADVANCE HEALTH CARE (UK) LTD,05/04/2023,258.63,6541-Domiciliary Care,THIRD PARTY PAYMENTS,PRIVATE CONTRACTOR,REVENUE
Walsall Council,http://opendatacommunities.org/id/metropolitan-district-council/walsall ,WC149-387,30.04.2023,ADULT SOCIAL CARE,ADVANCE HEALTH CARE (UK) LTD,05/04/2023,754.32,6541-Domiciliary Care,THIRD PARTY PAYMENTS,PRIVATE CONTRACTOR,REVENUE
Walsall Council,http://opendatacommunities.org/id/metropolitan-district-council/walsall ,WC149-388,30.04.2023,ADULT SOCIAL CARE,ADVANCE HEALTH CARE (UK) LTD,05/04/2023,"1,066.56",6541-Domiciliary Care,THIRD PARTY PAYMENTS,PRIVATE CONTRACTOR,REVENUE
Walsall Council,http://opendatacommunities.org/id/metropolitan-district-council/walsall ,WC149-389,30.04.2023,ADULT SOCIAL CARE,ADVANCE HEALTH CARE (UK) LTD,05/04/2023,942.76,6541-Domiciliary Care,THIRD PARTY PAYMENTS,PRIVATE CONTRACTOR,REVENUE
Walsall Council,http://opendatacommunities.org/id/metropolitan-district-council/walsall ,WC149-390,30.04.2023,ADULT SOCIAL CARE,ADVANCE HEALTH CARE (UK) LTD,05/04/2023,"1,050.40",6541-Domiciliary Care,THIRD PARTY PAYMENTS,PRIVATE CONTRACTOR,REVENUE
Walsall Council,http://opendatacommunities.org/id/metropolitan-district-council/walsall ,WC149-391,30.04.2023,ADULT SOCIAL CARE,ADVANCE HEALTH CARE (UK) LTD,05/04/2023,"1,018.08",6541-Domiciliary Care,THIRD PARTY PAYMENTS,PRIVATE CONTRACTOR,REVENUE
Walsall Council,http://opendatacommunities.org/id/metropolitan-district-council/walsall ,WC149-392,30.04.2023,ADULT SOCIAL CARE,ADVANCE HEALTH CARE (UK) LTD,05/04/2023,"1,018.08",6541-Domiciliary Care,THIRD PARTY PAYMENTS,PRIVATE CONTRACTOR,REVENUE
Walsall Council,http://opendatacommunities.org/id/metropolitan-district-council/walsall ,WC149-393,30.04.2023,ADULT SOCIAL CARE,ADVANCE HEALTH CARE (UK) LTD,05/04/2023,754.32,6541-Domiciliary Care,THIRD PARTY PAYMENTS,PRIVATE CONTRACTOR,REVENUE
Walsall Council,http://opendatacommunities.org/id/metropolitan-district-council/walsall ,WC149-394,30.04.2023,ADULT SOCIAL CARE,ADVANCE HEALTH CARE (UK) LTD,05/04/2023,258.56,6541-Domiciliary Care,THIRD PARTY PAYMENTS,PRIVATE CONTRACTOR,REVENUE
Walsall Council,http://opendatacommunities.org/id/metropolitan-district-council/walsall ,WC149-395,30.04.2023,ADULT SOCIAL CARE,ADVANCE HEALTH CARE (UK) LTD,05/04/2023,"2,941.68",6541-Domiciliary Care,THIRD PARTY PAYMENTS,PRIVATE CONTRACTOR,REVENUE
Walsall Council,http://opendatacommunities.org/id/metropolitan-district-council/walsall ,WC149-396,30.04.2023,ADULT SOCIAL CARE,ADVANCE HEALTH CARE (UK) LTD,05/04/2023,"1,082.72",6541-Domiciliary Care,THIRD PARTY PAYMENTS,PRIVATE CONTRACTOR,REVENUE
Walsall Council,http://opendatacommunities.org/id/metropolitan-district-council/walsall ,WC149-397,30.04.2023,ADULT SOCIAL CARE,ADVANCE HEALTH CARE (UK) LTD,05/04/2023,490.28,6541-Domiciliary Care,THIRD PARTY PAYMENTS,PRIVATE CONTRACTOR,REVENUE
Walsall Council,http://opendatacommunities.org/id/metropolitan-district-council/walsall ,WC149-398,30.04.2023,ADULT SOCIAL CARE,ADVANCE HEALTH CARE (UK) LTD,05/04/2023,"1,734.60",6541-Domiciliary Care,THIRD PARTY PAYMENTS,PRIVATE CONTRACTOR,REVENUE
Walsall Council,http://opendatacommunities.org/id/metropolitan-district-council/walsall ,WC149-399,30.04.2023,ADULT SOCIAL CARE,ADVANCE HEALTH CARE (UK) LTD,05/04/2023,"1,282.40",6541-Domiciliary Care,THIRD PARTY PAYMENTS,PRIVATE CONTRACTOR,REVENUE
Walsall Council,http://opendatacommunities.org/id/metropolitan-district-council/walsall ,WC149-400,30.04.2023,ADULT SOCIAL CARE,ADVANCE HEALTH CARE (UK) LTD,05/04/2023,705.84,6541-Domiciliary Care,THIRD PARTY PAYMENTS,PRIVATE CONTRACTOR,REVENUE
Walsall Council,http://opendatacommunities.org/id/metropolitan-district-council/walsall ,WC149-401,30.04.2023,ADULT SOCIAL CARE,ADVANCE HEALTH CARE (UK) LTD,05/04/2023,379.76,6554-Professional Services-Priv Contractor & Other Agencies,THIRD PARTY PAYMENTS,PRIVATE CONTRACTOR,REVENUE
Walsall Council,http://opendatacommunities.org/id/metropolitan-district-council/walsall ,WC149-402,30.04.2023,ADULT SOCIAL CARE,ADVANCE HEALTH CARE (UK) LTD,05/04/2023,799.92,6554-Professional Services-Priv Contractor & Other Agencies,THIRD PARTY PAYMENTS,PRIVATE CONTRACTOR,REVENUE
Walsall Council,http://opendatacommunities.org/id/metropolitan-district-council/walsall ,WC149-403,30.04.2023,ADULT SOCIAL CARE,ADVANCE HEALTH CARE (UK) LTD,05/04/2023,"1,923.04",6554-Professional Services-Priv Contractor & Other Agencies,THIRD PARTY PAYMENTS,PRIVATE CONTRACTOR,REVENUE
Walsall Council,http://opendatacommunities.org/id/metropolitan-district-council/walsall ,WC149-404,30.04.2023,ADULT SOCIAL CARE,ADVANCE HEALTH CARE (UK) LTD,05/04/2023,323.28,6554-Professional Services-Priv Contractor & Other Agencies,THIRD PARTY PAYMENTS,PRIVATE CONTRACTOR,REVENUE
Walsall Council,http://opendatacommunities.org/id/metropolitan-district-council/walsall ,WC149-405,30.04.2023,ADULT SOCIAL CARE,ADVANCE HEALTH CARE (UK) LTD,05/04/2023,525.20,6554-Professional Services-Priv Contractor & Other Agencies,THIRD PARTY PAYMENTS,PRIVATE CONTRACTOR,REVENUE
Walsall Council,http://opendatacommunities.org/id/metropolitan-district-council/walsall ,WC149-406,30.04.2023,ADULT SOCIAL CARE,ADVANCE HEALTH CARE (UK) LTD,05/04/2023,619.62,6554-Professional Services-Priv Contractor & Other Agencies,THIRD PARTY PAYMENTS,PRIVATE CONTRACTOR,REVENUE
Walsall Council,http://opendatacommunities.org/id/metropolitan-district-council/walsall ,WC149-407,30.04.2023,ADULT SOCIAL CARE,ADVANCE HEALTH CARE (UK) LTD,05/04/2023,"2,108.88",6554-Professional Services-Priv Contractor & Other Agencies,THIRD PARTY PAYMENTS,PRIVATE CONTRACTOR,REVENUE
Walsall Council,http://opendatacommunities.org/id/metropolitan-district-council/walsall ,WC149-408,30.04.2023,ADULT SOCIAL CARE,ADVANCE HEALTH CARE (UK) LTD,05/04/2023,391.88,6554-Professional Services-Priv Contractor & Other Agencies,THIRD PARTY PAYMENTS,PRIVATE CONTRACTOR,REVENUE
Walsall Council,http://opendatacommunities.org/id/metropolitan-district-council/walsall ,WC149-409,30.04.2023,ADULT SOCIAL CARE,ADVANCE HEALTH CARE (UK) LTD,05/04/2023,"1,438.24",6554-Professional Services-Priv Contractor & Other Agencies,THIRD PARTY PAYMENTS,PRIVATE CONTRACTOR,REVENUE
Walsall Council,http://opendatacommunities.org/id/metropolitan-district-council/walsall ,WC149-410,30.04.2023,ADULT SOCIAL CARE,ADVANCE HEALTH CARE (UK) LTD,05/04/2023,852.44,6554-Professional Services-Priv Contractor & Other Agencies,THIRD PARTY PAYMENTS,PRIVATE CONTRACTOR,REVENUE
Walsall Council,http://opendatacommunities.org/id/metropolitan-district-council/walsall ,WC149-411,30.04.2023,ADULT SOCIAL CARE,ADVANCE HEALTH CARE (UK) LTD,05/04/2023,363.60,6554-Professional Services-Priv Contractor & Other Agencies,THIRD PARTY PAYMENTS,PRIVATE CONTRACTOR,REVENUE
Walsall Council,http://opendatacommunities.org/id/metropolitan-district-council/walsall ,WC149-412,30.04.2023,ADULT SOCIAL CARE,ADVANCE HEALTH CARE (UK) LTD,11/04/2023,339.50,6541-Domiciliary Care,THIRD PARTY PAYMENTS,PRIVATE CONTRACTOR,REVENUE
Walsall Council,http://opendatacommunities.org/id/metropolitan-district-council/walsall ,WC149-413,30.04.2023,ADULT SOCIAL CARE,ADVANCE HEALTH CARE (UK) LTD,11/04/2023,864.56,6541-Domiciliary Care,THIRD PARTY PAYMENTS,PRIVATE CONTRACTOR,REVENUE
Walsall Council,http://opendatacommunities.org/id/metropolitan-district-council/walsall ,WC149-414,30.04.2023,ADULT SOCIAL CARE,ADVANCE HEALTH CARE (UK) LTD,11/04/2023,396.06,6541-Domiciliary Care,THIRD PARTY PAYMENTS,PRIVATE CONTRACTOR,REVENUE
Walsall Council,http://opendatacommunities.org/id/metropolitan-district-council/walsall ,WC149-415,30.04.2023,ADULT SOCIAL CARE,ADVANCE HEALTH CARE (UK) LTD,11/04/2023,254.52,6541-Domiciliary Care,THIRD PARTY PAYMENTS,PRIVATE CONTRACTOR,REVENUE
Walsall Council,http://opendatacommunities.org/id/metropolitan-district-council/walsall ,WC149-416,30.04.2023,ADULT SOCIAL CARE,ADVANCE HEALTH CARE (UK) LTD,11/04/2023,509.04,6541-Domiciliary Care,THIRD PARTY PAYMENTS,PRIVATE CONTRACTOR,REVENUE
Walsall Council,http://opendatacommunities.org/id/metropolitan-district-council/walsall ,WC149-417,30.04.2023,ADULT SOCIAL CARE,ADVANCE HEALTH CARE (UK) LTD,11/04/2023,509.04,6541-Domiciliary Care,THIRD PARTY PAYMENTS,PRIVATE CONTRACTOR,REVENUE
Walsall Council,http://opendatacommunities.org/id/metropolitan-district-council/walsall ,WC149-418,30.04.2023,ADULT SOCIAL CARE,ADVANCE HEALTH CARE (UK) LTD,11/04/2023,980.35,6541-Domiciliary Care,THIRD PARTY PAYMENTS,PRIVATE CONTRACTOR,REVENUE
Walsall Council,http://opendatacommunities.org/id/metropolitan-district-council/walsall ,WC149-419,30.04.2023,ADULT SOCIAL CARE,ADVANCE HEALTH CARE (UK) LTD,11/04/2023,589.84,6541-Domiciliary Care,THIRD PARTY PAYMENTS,PRIVATE CONTRACTOR,REVENUE
Walsall Council,http://opendatacommunities.org/id/metropolitan-district-council/walsall ,WC149-420,30.04.2023,ADULT SOCIAL CARE,ADVANCE HEALTH CARE (UK) LTD,11/04/2023,254.52,6541-Domiciliary Care,THIRD PARTY PAYMENTS,PRIVATE CONTRACTOR,REVENUE
Walsall Council,http://opendatacommunities.org/id/metropolitan-district-council/walsall ,WC149-421,30.04.2023,ADULT SOCIAL CARE,ADVANCE HEALTH CARE (UK) LTD,11/04/2023,254.52,6541-Domiciliary Care,THIRD PARTY PAYMENTS,PRIVATE CONTRACTOR,REVENUE
Walsall Council,http://opendatacommunities.org/id/metropolitan-district-council/walsall ,WC149-422,30.04.2023,ADULT SOCIAL CARE,ADVANCE HEALTH CARE (UK) LTD,11/04/2023,395.92,6541-Domiciliary Care,THIRD PARTY PAYMENTS,PRIVATE CONTRACTOR,REVENUE
Walsall Council,http://opendatacommunities.org/id/metropolitan-district-council/walsall ,WC149-423,30.04.2023,ADULT SOCIAL CARE,ADVANCE HEALTH CARE (UK) LTD,11/04/2023,500.96,6541-Domiciliary Care,THIRD PARTY PAYMENTS,PRIVATE CONTRACTOR,REVENUE
Walsall Council,http://opendatacommunities.org/id/metropolitan-district-council/walsall ,WC149-424,30.04.2023,ADULT SOCIAL CARE,ADVANCE HEALTH CARE (UK) LTD,11/04/2023,509.04,6541-Domiciliary Care,THIRD PARTY PAYMENTS,PRIVATE CONTRACTOR,REVENUE
Walsall Council,http://opendatacommunities.org/id/metropolitan-district-council/walsall ,WC149-425,30.04.2023,ADULT SOCIAL CARE,ADVANCE HEALTH CARE (UK) LTD,11/04/2023,509.04,6541-Domiciliary Care,THIRD PARTY PAYMENTS,PRIVATE CONTRACTOR,REVENUE
Walsall Council,http://opendatacommunities.org/id/metropolitan-district-council/walsall ,WC149-426,30.04.2023,ADULT SOCIAL CARE,ADVANCE HEALTH CARE (UK) LTD,11/04/2023,565.60,6541-Domiciliary Care,THIRD PARTY PAYMENTS,PRIVATE CONTRACTOR,REVENUE
Walsall Council,http://opendatacommunities.org/id/metropolitan-district-council/walsall ,WC149-427,30.04.2023,ADULT SOCIAL CARE,ADVANCE HEALTH CARE (UK) LTD,11/04/2023,377.16,6541-Domiciliary Care,THIRD PARTY PAYMENTS,PRIVATE CONTRACTOR,REVENUE
Walsall Council,http://opendatacommunities.org/id/metropolitan-district-council/walsall ,WC149-428,30.04.2023,ADULT SOCIAL CARE,ADVANCE HEALTH CARE (UK) LTD,11/04/2023,339.50,6541-Domiciliary Care,THIRD PARTY PAYMENTS,PRIVATE CONTRACTOR,REVENUE
Walsall Council,http://opendatacommunities.org/id/metropolitan-district-council/walsall ,WC149-429,30.04.2023,ADULT SOCIAL CARE,ADVANCE HEALTH CARE (UK) LTD,11/04/2023,339.36,6541-Domiciliary Care,THIRD PARTY PAYMENTS,PRIVATE CONTRACTOR,REVENUE
Walsall Council,http://opendatacommunities.org/id/metropolitan-district-council/walsall ,WC149-430,30.04.2023,ADULT SOCIAL CARE,ADVANCE HEALTH CARE (UK) LTD,11/04/2023,509.04,6541-Domiciliary Care,THIRD PARTY PAYMENTS,PRIVATE CONTRACTOR,REVENUE
Walsall Council,http://opendatacommunities.org/id/metropolitan-district-council/walsall ,WC149-431,30.04.2023,ADULT SOCIAL CARE,ADVANCE HEALTH CARE (UK) LTD,11/04/2023,565.60,6541-Domiciliary Care,THIRD PARTY PAYMENTS,PRIVATE CONTRACTOR,REVENUE
Walsall Council,http://opendatacommunities.org/id/metropolitan-district-council/walsall ,WC149-432,30.04.2023,ADULT SOCIAL CARE,ADVANCE HEALTH CARE (UK) LTD,11/04/2023,452.48,6541-Domiciliary Care,THIRD PARTY PAYMENTS,PRIVATE CONTRACTOR,REVENUE
Walsall Council,http://opendatacommunities.org/id/metropolitan-district-council/walsall ,WC149-433,30.04.2023,ADULT SOCIAL CARE,ADVANCE HEALTH CARE (UK) LTD,11/04/2023,254.52,6541-Domiciliary Care,THIRD PARTY PAYMENTS,PRIVATE CONTRACTOR,REVENUE
Walsall Council,http://opendatacommunities.org/id/metropolitan-district-council/walsall ,WC149-434,30.04.2023,ADULT SOCIAL CARE,ADVANCE HEALTH CARE (UK) LTD,11/04/2023,270.68,6541-Domiciliary Care,THIRD PARTY PAYMENTS,PRIVATE CONTRACTOR,REVENUE
Walsall Council,http://opendatacommunities.org/id/metropolitan-district-council/walsall ,WC149-435,30.04.2023,ADULT SOCIAL CARE,ADVANCE HEALTH CARE (UK) LTD,11/04/2023,509.04,6541-Domiciliary Care,THIRD PARTY PAYMENTS,PRIVATE CONTRACTOR,REVENUE
Walsall Council,http://opendatacommunities.org/id/metropolitan-district-council/walsall ,WC149-436,30.04.2023,ADULT SOCIAL CARE,ADVANCE HEALTH CARE (UK) LTD,11/04/2023,452.48,6541-Domiciliary Care,THIRD PARTY PAYMENTS,PRIVATE CONTRACTOR,REVENUE
Walsall Council,http://opendatacommunities.org/id/metropolitan-district-council/walsall ,WC149-437,30.04.2023,ADULT SOCIAL CARE,ADVANCE HEALTH CARE (UK) LTD,11/04/2023,452.48,6541-Domiciliary Care,THIRD PARTY PAYMENTS,PRIVATE CONTRACTOR,REVENUE
Walsall Council,http://opendatacommunities.org/id/metropolitan-district-council/walsall ,WC149-438,30.04.2023,ADULT SOCIAL CARE,ADVANCE HEALTH CARE (UK) LTD,11/04/2023,395.92,6541-Domiciliary Care,THIRD PARTY PAYMENTS,PRIVATE CONTRACTOR,REVENUE
Walsall Council,http://opendatacommunities.org/id/metropolitan-district-council/walsall ,WC149-439,30.04.2023,ADULT SOCIAL CARE,ADVANCE HEALTH CARE (UK) LTD,11/04/2023,452.48,6541-Domiciliary Care,THIRD PARTY PAYMENTS,PRIVATE CONTRACTOR,REVENUE
Walsall Council,http://opendatacommunities.org/id/metropolitan-district-council/walsall ,WC149-440,30.04.2023,ADULT SOCIAL CARE,ADVANCE HEALTH CARE (UK) LTD,11/04/2023,452.48,6541-Domiciliary Care,THIRD PARTY PAYMENTS,PRIVATE CONTRACTOR,REVENUE
Walsall Council,http://opendatacommunities.org/id/metropolitan-district-council/walsall ,WC149-441,30.04.2023,ADULT SOCIAL CARE,ADVANCE HEALTH CARE (UK) LTD,11/04/2023,509.04,6541-Domiciliary Care,THIRD PARTY PAYMENTS,PRIVATE CONTRACTOR,REVENUE
Walsall Council,http://opendatacommunities.org/id/metropolitan-district-council/walsall ,WC149-442,30.04.2023,ADULT SOCIAL CARE,ADVANCE HEALTH CARE (UK) LTD,11/04/2023,517.12,6541-Domiciliary Care,THIRD PARTY PAYMENTS,PRIVATE CONTRACTOR,REVENUE
Walsall Council,http://opendatacommunities.org/id/metropolitan-district-council/walsall ,WC149-443,30.04.2023,ADULT SOCIAL CARE,ADVANCE HEALTH CARE (UK) LTD,11/04/2023,339.50,6541-Domiciliary Care,THIRD PARTY PAYMENTS,PRIVATE CONTRACTOR,REVENUE
Walsall Council,http://opendatacommunities.org/id/metropolitan-district-council/walsall ,WC149-444,30.04.2023,ADULT SOCIAL CARE,ADVANCE HEALTH CARE (UK) LTD,11/04/2023,864.56,6541-Domiciliary Care,THIRD PARTY PAYMENTS,PRIVATE CONTRACTOR,REVENUE
Walsall Council,http://opendatacommunities.org/id/metropolitan-district-council/walsall ,WC149-445,30.04.2023,ADULT SOCIAL CARE,ADVANCE HEALTH CARE (UK) LTD,11/04/2023,396.06,6541-Domiciliary Care,THIRD PARTY PAYMENTS,PRIVATE CONTRACTOR,REVENUE
Walsall Council,http://opendatacommunities.org/id/metropolitan-district-council/walsall ,WC149-446,30.04.2023,ADULT SOCIAL CARE,ADVANCE HEALTH CARE (UK) LTD,11/04/2023,254.52,6541-Domiciliary Care,THIRD PARTY PAYMENTS,PRIVATE CONTRACTOR,REVENUE
Walsall Council,http://opendatacommunities.org/id/metropolitan-district-council/walsall ,WC149-447,30.04.2023,ADULT SOCIAL CARE,ADVANCE HEALTH CARE (UK) LTD,11/04/2023,509.04,6541-Domiciliary Care,THIRD PARTY PAYMENTS,PRIVATE CONTRACTOR,REVENUE
Walsall Council,http://opendatacommunities.org/id/metropolitan-district-council/walsall ,WC149-448,30.04.2023,ADULT SOCIAL CARE,ADVANCE HEALTH CARE (UK) LTD,11/04/2023,509.04,6541-Domiciliary Care,THIRD PARTY PAYMENTS,PRIVATE CONTRACTOR,REVENUE
Walsall Council,http://opendatacommunities.org/id/metropolitan-district-council/walsall ,WC149-449,30.04.2023,ADULT SOCIAL CARE,ADVANCE HEALTH CARE (UK) LTD,11/04/2023,565.60,6541-Domiciliary Care,THIRD PARTY PAYMENTS,PRIVATE CONTRACTOR,REVENUE
Walsall Council,http://opendatacommunities.org/id/metropolitan-district-council/walsall ,WC149-450,30.04.2023,ADULT SOCIAL CARE,ADVANCE HEALTH CARE (UK) LTD,11/04/2023,395.92,6541-Domiciliary Care,THIRD PARTY PAYMENTS,PRIVATE CONTRACTOR,REVENUE
Walsall Council,http://opendatacommunities.org/id/metropolitan-district-council/walsall ,WC149-451,30.04.2023,ADULT SOCIAL CARE,ADVANCE HEALTH CARE (UK) LTD,11/04/2023,339.36,6541-Domiciliary Care,THIRD PARTY PAYMENTS,PRIVATE CONTRACTOR,REVENUE
Walsall Council,http://opendatacommunities.org/id/metropolitan-district-council/walsall ,WC149-452,30.04.2023,ADULT SOCIAL CARE,ADVANCE HEALTH CARE (UK) LTD,11/04/2023,589.84,6541-Domiciliary Care,THIRD PARTY PAYMENTS,PRIVATE CONTRACTOR,REVENUE
Walsall Council,http://opendatacommunities.org/id/metropolitan-district-council/walsall ,WC149-453,30.04.2023,ADULT SOCIAL CARE,ADVANCE HEALTH CARE (UK) LTD,11/04/2023,254.52,6541-Domiciliary Care,THIRD PARTY PAYMENTS,PRIVATE CONTRACTOR,REVENUE
Walsall Council,http://opendatacommunities.org/id/metropolitan-district-council/walsall ,WC149-454,30.04.2023,ADULT SOCIAL CARE,ADVANCE HEALTH CARE (UK) LTD,11/04/2023,254.52,6541-Domiciliary Care,THIRD PARTY PAYMENTS,PRIVATE CONTRACTOR,REVENUE
Walsall Council,http://opendatacommunities.org/id/metropolitan-district-council/walsall ,WC149-455,30.04.2023,ADULT SOCIAL CARE,ADVANCE HEALTH CARE (UK) LTD,11/04/2023,377.16,6541-Domiciliary Care,THIRD PARTY PAYMENTS,PRIVATE CONTRACTOR,REVENUE
Walsall Council,http://opendatacommunities.org/id/metropolitan-district-council/walsall ,WC149-456,30.04.2023,ADULT SOCIAL CARE,ADVANCE HEALTH CARE (UK) LTD,11/04/2023,452.48,6541-Domiciliary Care,THIRD PARTY PAYMENTS,PRIVATE CONTRACTOR,REVENUE
Walsall Council,http://opendatacommunities.org/id/metropolitan-district-council/walsall ,WC149-457,30.04.2023,ADULT SOCIAL CARE,ADVANCE HEALTH CARE (UK) LTD,11/04/2023,452.48,6541-Domiciliary Care,THIRD PARTY PAYMENTS,PRIVATE CONTRACTOR,REVENUE
Walsall Council,http://opendatacommunities.org/id/metropolitan-district-council/walsall ,WC149-458,30.04.2023,ADULT SOCIAL CARE,ADVANCE HEALTH CARE (UK) LTD,11/04/2023,509.04,6541-Domiciliary Care,THIRD PARTY PAYMENTS,PRIVATE CONTRACTOR,REVENUE
Walsall Council,http://opendatacommunities.org/id/metropolitan-district-council/walsall ,WC149-459,30.04.2023,ADULT SOCIAL CARE,ADVANCE HEALTH CARE (UK) LTD,11/04/2023,509.04,6541-Domiciliary Care,THIRD PARTY PAYMENTS,PRIVATE CONTRACTOR,REVENUE
Walsall Council,http://opendatacommunities.org/id/metropolitan-district-council/walsall ,WC149-460,30.04.2023,ADULT SOCIAL CARE,ADVANCE HEALTH CARE (UK) LTD,11/04/2023,509.04,6541-Domiciliary Care,THIRD PARTY PAYMENTS,PRIVATE CONTRACTOR,REVENUE
Walsall Council,http://opendatacommunities.org/id/metropolitan-district-council/walsall ,WC149-461,30.04.2023,ADULT SOCIAL CARE,ADVANCE HEALTH CARE (UK) LTD,11/04/2023,339.50,6541-Domiciliary Care,THIRD PARTY PAYMENTS,PRIVATE CONTRACTOR,REVENUE
Walsall Council,http://opendatacommunities.org/id/metropolitan-district-council/walsall ,WC149-462,30.04.2023,ADULT SOCIAL CARE,ADVANCE HEALTH CARE (UK) LTD,11/04/2023,395.92,6541-Domiciliary Care,THIRD PARTY PAYMENTS,PRIVATE CONTRACTOR,REVENUE
Walsall Council,http://opendatacommunities.org/id/metropolitan-district-council/walsall ,WC149-463,30.04.2023,ADULT SOCIAL CARE,ADVANCE HEALTH CARE (UK) LTD,11/04/2023,452.48,6541-Domiciliary Care,THIRD PARTY PAYMENTS,PRIVATE CONTRACTOR,REVENUE
Walsall Council,http://opendatacommunities.org/id/metropolitan-district-council/walsall ,WC149-464,30.04.2023,ADULT SOCIAL CARE,ADVANCE HEALTH CARE (UK) LTD,11/04/2023,509.04,6541-Domiciliary Care,THIRD PARTY PAYMENTS,PRIVATE CONTRACTOR,REVENUE
Walsall Council,http://opendatacommunities.org/id/metropolitan-district-council/walsall ,WC149-465,30.04.2023,ADULT SOCIAL CARE,ADVANCE HEALTH CARE (UK) LTD,11/04/2023,565.60,6541-Domiciliary Care,THIRD PARTY PAYMENTS,PRIVATE CONTRACTOR,REVENUE
Walsall Council,http://opendatacommunities.org/id/metropolitan-district-council/walsall ,WC149-466,30.04.2023,ADULT SOCIAL CARE,ADVANCE HEALTH CARE (UK) LTD,11/04/2023,270.68,6541-Domiciliary Care,THIRD PARTY PAYMENTS,PRIVATE CONTRACTOR,REVENUE
Walsall Council,http://opendatacommunities.org/id/metropolitan-district-council/walsall ,WC149-467,30.04.2023,ADULT SOCIAL CARE,ADVANCE HEALTH CARE (UK) LTD,11/04/2023,509.04,6541-Domiciliary Care,THIRD PARTY PAYMENTS,PRIVATE CONTRACTOR,REVENUE
Walsall Council,http://opendatacommunities.org/id/metropolitan-district-council/walsall ,WC149-468,30.04.2023,ADULT SOCIAL CARE,ADVANCE HEALTH CARE (UK) LTD,11/04/2023,500.96,6541-Domiciliary Care,THIRD PARTY PAYMENTS,PRIVATE CONTRACTOR,REVENUE
Walsall Council,http://opendatacommunities.org/id/metropolitan-district-council/walsall ,WC149-469,30.04.2023,ADULT SOCIAL CARE,ADVANCE HEALTH CARE (UK) LTD,11/04/2023,565.60,6541-Domiciliary Care,THIRD PARTY PAYMENTS,PRIVATE CONTRACTOR,REVENUE
Walsall Council,http://opendatacommunities.org/id/metropolitan-district-council/walsall ,WC149-470,30.04.2023,ADULT SOCIAL CARE,ADVANCE HEALTH CARE (UK) LTD,11/04/2023,452.48,6541-Domiciliary Care,THIRD PARTY PAYMENTS,PRIVATE CONTRACTOR,REVENUE
Walsall Council,http://opendatacommunities.org/id/metropolitan-district-council/walsall ,WC149-471,30.04.2023,ADULT SOCIAL CARE,ADVANCE HEALTH CARE (UK) LTD,11/04/2023,254.52,6541-Domiciliary Care,THIRD PARTY PAYMENTS,PRIVATE CONTRACTOR,REVENUE
Walsall Council,http://opendatacommunities.org/id/metropolitan-district-council/walsall ,WC149-472,30.04.2023,ADULT SOCIAL CARE,ADVANCE HEALTH CARE (UK) LTD,11/04/2023,452.48,6541-Domiciliary Care,THIRD PARTY PAYMENTS,PRIVATE CONTRACTOR,REVENUE
Walsall Council,http://opendatacommunities.org/id/metropolitan-district-council/walsall ,WC149-473,30.04.2023,ADULT SOCIAL CARE,ADVANCE HEALTH CARE (UK) LTD,11/04/2023,452.48,6541-Domiciliary Care,THIRD PARTY PAYMENTS,PRIVATE CONTRACTOR,REVENUE
Walsall Council,http://opendatacommunities.org/id/metropolitan-district-council/walsall ,WC149-474,30.04.2023,ADULT SOCIAL CARE,ADVANCE HEALTH CARE (UK) LTD,25/04/2023,509.04,6541-Domiciliary Care,THIRD PARTY PAYMENTS,PRIVATE CONTRACTOR,REVENUE
Walsall Council,http://opendatacommunities.org/id/metropolitan-district-council/walsall ,WC149-475,30.04.2023,ADULT SOCIAL CARE,ADVANCE HEALTH CARE (UK) LTD,25/04/2023,509.04,6541-Domiciliary Care,THIRD PARTY PAYMENTS,PRIVATE CONTRACTOR,REVENUE
Walsall Council,http://opendatacommunities.org/id/metropolitan-district-council/walsall ,WC149-476,30.04.2023,ADULT SOCIAL CARE,ADVANCE HEALTH CARE (UK) LTD,25/04/2023,339.50,6541-Domiciliary Care,THIRD PARTY PAYMENTS,PRIVATE CONTRACTOR,REVENUE
Walsall Council,http://opendatacommunities.org/id/metropolitan-district-council/walsall ,WC149-477,30.04.2023,ADULT SOCIAL CARE,ADVANCE HEALTH CARE (UK) LTD,25/04/2023,589.84,6541-Domiciliary Care,THIRD PARTY PAYMENTS,PRIVATE CONTRACTOR,REVENUE
Walsall Council,http://opendatacommunities.org/id/metropolitan-district-council/walsall ,WC149-478,30.04.2023,ADULT SOCIAL CARE,ADVANCE HEALTH CARE (UK) LTD,25/04/2023,254.52,6541-Domiciliary Care,THIRD PARTY PAYMENTS,PRIVATE CONTRACTOR,REVENUE
Walsall Council,http://opendatacommunities.org/id/metropolitan-district-council/walsall ,WC149-479,30.04.2023,ADULT SOCIAL CARE,ADVANCE HEALTH CARE (UK) LTD,25/04/2023,254.52,6541-Domiciliary Care,THIRD PARTY PAYMENTS,PRIVATE CONTRACTOR,REVENUE
Walsall Council,http://opendatacommunities.org/id/metropolitan-district-council/walsall ,WC149-480,30.04.2023,ADULT SOCIAL CARE,ADVANCE HEALTH CARE (UK) LTD,25/04/2023,500.96,6541-Domiciliary Care,THIRD PARTY PAYMENTS,PRIVATE CONTRACTOR,REVENUE
Walsall Council,http://opendatacommunities.org/id/metropolitan-district-council/walsall ,WC149-481,30.04.2023,ADULT SOCIAL CARE,ADVANCE HEALTH CARE (UK) LTD,25/04/2023,864.56,6541-Domiciliary Care,THIRD PARTY PAYMENTS,PRIVATE CONTRACTOR,REVENUE
Walsall Council,http://opendatacommunities.org/id/metropolitan-district-council/walsall ,WC149-482,30.04.2023,ADULT SOCIAL CARE,ADVANCE HEALTH CARE (UK) LTD,25/04/2023,396.06,6541-Domiciliary Care,THIRD PARTY PAYMENTS,PRIVATE CONTRACTOR,REVENUE
Walsall Council,http://opendatacommunities.org/id/metropolitan-district-council/walsall ,WC149-483,30.04.2023,ADULT SOCIAL CARE,ADVANCE HEALTH CARE (UK) LTD,25/04/2023,254.52,6541-Domiciliary Care,THIRD PARTY PAYMENTS,PRIVATE CONTRACTOR,REVENUE
Walsall Council,http://opendatacommunities.org/id/metropolitan-district-council/walsall ,WC149-484,30.04.2023,ADULT SOCIAL CARE,ADVANCE HEALTH CARE (UK) LTD,25/04/2023,509.04,6541-Domiciliary Care,THIRD PARTY PAYMENTS,PRIVATE CONTRACTOR,REVENUE
Walsall Council,http://opendatacommunities.org/id/metropolitan-district-council/walsall ,WC149-485,30.04.2023,ADULT SOCIAL CARE,ADVANCE HEALTH CARE (UK) LTD,25/04/2023,509.04,6541-Domiciliary Care,THIRD PARTY PAYMENTS,PRIVATE CONTRACTOR,REVENUE
Walsall Council,http://opendatacommunities.org/id/metropolitan-district-council/walsall ,WC149-486,30.04.2023,ADULT SOCIAL CARE,ADVANCE HEALTH CARE (UK) LTD,25/04/2023,565.60,6541-Domiciliary Care,THIRD PARTY PAYMENTS,PRIVATE CONTRACTOR,REVENUE
Walsall Council,http://opendatacommunities.org/id/metropolitan-district-council/walsall ,WC149-487,30.04.2023,ADULT SOCIAL CARE,ADVANCE HEALTH CARE (UK) LTD,25/04/2023,377.16,6541-Domiciliary Care,THIRD PARTY PAYMENTS,PRIVATE CONTRACTOR,REVENUE
Walsall Council,http://opendatacommunities.org/id/metropolitan-district-council/walsall ,WC149-488,30.04.2023,ADULT SOCIAL CARE,ADVANCE HEALTH CARE (UK) LTD,25/04/2023,339.50,6541-Domiciliary Care,THIRD PARTY PAYMENTS,PRIVATE CONTRACTOR,REVENUE
Walsall Council,http://opendatacommunities.org/id/metropolitan-district-council/walsall ,WC149-489,30.04.2023,ADULT SOCIAL CARE,ADVANCE HEALTH CARE (UK) LTD,25/04/2023,565.60,6541-Domiciliary Care,THIRD PARTY PAYMENTS,PRIVATE CONTRACTOR,REVENUE
Walsall Council,http://opendatacommunities.org/id/metropolitan-district-council/walsall ,WC149-490,30.04.2023,ADULT SOCIAL CARE,ADVANCE HEALTH CARE (UK) LTD,25/04/2023,395.92,6541-Domiciliary Care,THIRD PARTY PAYMENTS,PRIVATE CONTRACTOR,REVENUE
Walsall Council,http://opendatacommunities.org/id/metropolitan-district-council/walsall ,WC149-491,30.04.2023,ADULT SOCIAL CARE,ADVANCE HEALTH CARE (UK) LTD,25/04/2023,452.48,6541-Domiciliary Care,THIRD PARTY PAYMENTS,PRIVATE CONTRACTOR,REVENUE
Walsall Council,http://opendatacommunities.org/id/metropolitan-district-council/walsall ,WC149-492,30.04.2023,ADULT SOCIAL CARE,ADVANCE HEALTH CARE (UK) LTD,25/04/2023,452.48,6541-Domiciliary Care,THIRD PARTY PAYMENTS,PRIVATE CONTRACTOR,REVENUE
Walsall Council,http://opendatacommunities.org/id/metropolitan-district-council/walsall ,WC149-493,30.04.2023,ADULT SOCIAL CARE,ADVANCE HEALTH CARE (UK) LTD,25/04/2023,-323.20,6541-Domiciliary Care,THIRD PARTY PAYMENTS,PRIVATE CONTRACTOR,REVENUE
Walsall Council,http://opendatacommunities.org/id/metropolitan-district-council/walsall ,WC149-494,30.04.2023,ADULT SOCIAL CARE,ADVANCE HEALTH CARE (UK) LTD,25/04/2023,254.52,6541-Domiciliary Care,THIRD PARTY PAYMENTS,PRIVATE CONTRACTOR,REVENUE
Walsall Council,http://opendatacommunities.org/id/metropolitan-district-council/walsall ,WC149-495,30.04.2023,ADULT SOCIAL CARE,ADVANCE HEALTH CARE (UK) LTD,25/04/2023,395.92,6541-Domiciliary Care,THIRD PARTY PAYMENTS,PRIVATE CONTRACTOR,REVENUE
Walsall Council,http://opendatacommunities.org/id/metropolitan-district-council/walsall ,WC149-496,30.04.2023,ADULT SOCIAL CARE,ADVANCE HEALTH CARE (UK) LTD,25/04/2023,509.04,6541-Domiciliary Care,THIRD PARTY PAYMENTS,PRIVATE CONTRACTOR,REVENUE
Walsall Council,http://opendatacommunities.org/id/metropolitan-district-council/walsall ,WC149-497,30.04.2023,ADULT SOCIAL CARE,ADVANCE HEALTH CARE (UK) LTD,25/04/2023,452.48,6541-Domiciliary Care,THIRD PARTY PAYMENTS,PRIVATE CONTRACTOR,REVENUE
Walsall Council,http://opendatacommunities.org/id/metropolitan-district-council/walsall ,WC149-498,30.04.2023,ADULT SOCIAL CARE,ADVANCE HEALTH CARE (UK) LTD,25/04/2023,290.88,6541-Domiciliary Care,THIRD PARTY PAYMENTS,PRIVATE CONTRACTOR,REVENUE
Walsall Council,http://opendatacommunities.org/id/metropolitan-district-council/walsall ,WC149-499,30.04.2023,ADULT SOCIAL CARE,ADVANCE HEALTH CARE (UK) LTD,25/04/2023,565.60,6541-Domiciliary Care,THIRD PARTY PAYMENTS,PRIVATE CONTRACTOR,REVENUE
Walsall Council,http://opendatacommunities.org/id/metropolitan-district-council/walsall ,WC149-500,30.04.2023,ADULT SOCIAL CARE,ADVANCE HEALTH CARE (UK) LTD,25/04/2023,339.36,6541-Domiciliary Care,THIRD PARTY PAYMENTS,PRIVATE CONTRACTOR,REVENUE
Walsall Council,http://opendatacommunities.org/id/metropolitan-district-council/walsall ,WC149-501,30.04.2023,ADULT SOCIAL CARE,ADVANCE HEALTH CARE (UK) LTD,25/04/2023,270.68,6541-Domiciliary Care,THIRD PARTY PAYMENTS,PRIVATE CONTRACTOR,REVENUE
Walsall Council,http://opendatacommunities.org/id/metropolitan-district-council/walsall ,WC149-502,30.04.2023,ADULT SOCIAL CARE,ADVANCE HEALTH CARE (UK) LTD,25/04/2023,509.04,6541-Domiciliary Care,THIRD PARTY PAYMENTS,PRIVATE CONTRACTOR,REVENUE
Walsall Council,http://opendatacommunities.org/id/metropolitan-district-council/walsall ,WC149-503,30.04.2023,ADULT SOCIAL CARE,ADVANCE HEALTH CARE (UK) LTD,25/04/2023,452.48,6541-Domiciliary Care,THIRD PARTY PAYMENTS,PRIVATE CONTRACTOR,REVENUE
Walsall Council,http://opendatacommunities.org/id/metropolitan-district-council/walsall ,WC149-504,30.04.2023,ADULT SOCIAL CARE,ADVANCE HEALTH CARE (UK) LTD,25/04/2023,339.50,6541-Domiciliary Care,THIRD PARTY PAYMENTS,PRIVATE CONTRACTOR,REVENUE
Walsall Council,http://opendatacommunities.org/id/metropolitan-district-council/walsall ,WC149-505,30.04.2023,ADULT SOCIAL CARE,ADVANCE HEALTH CARE (UK) LTD,25/04/2023,509.04,6541-Domiciliary Care,THIRD PARTY PAYMENTS,PRIVATE CONTRACTOR,REVENUE
Walsall Council,http://opendatacommunities.org/id/metropolitan-district-council/walsall ,WC149-506,30.04.2023,ADULT SOCIAL CARE,ADVANCE HEALTH CARE (UK) LTD,25/04/2023,509.04,6541-Domiciliary Care,THIRD PARTY PAYMENTS,PRIVATE CONTRACTOR,REVENUE
Walsall Council,http://opendatacommunities.org/id/metropolitan-district-council/walsall ,WC149-507,30.04.2023,ADULT SOCIAL CARE,ADVANCE HEALTH CARE (UK) LTD,25/04/2023,509.04,6541-Domiciliary Care,THIRD PARTY PAYMENTS,PRIVATE CONTRACTOR,REVENUE
Walsall Council,http://opendatacommunities.org/id/metropolitan-district-council/walsall ,WC149-508,30.04.2023,ADULT SOCIAL CARE,ADVANCE HEALTH CARE (UK) LTD,25/04/2023,509.04,6541-Domiciliary Care,THIRD PARTY PAYMENTS,PRIVATE CONTRACTOR,REVENUE
Walsall Council,http://opendatacommunities.org/id/metropolitan-district-council/walsall ,WC149-509,30.04.2023,ADULT SOCIAL CARE,ADVANCE HEALTH CARE (UK) LTD,25/04/2023,565.60,6541-Domiciliary Care,THIRD PARTY PAYMENTS,PRIVATE CONTRACTOR,REVENUE
Walsall Council,http://opendatacommunities.org/id/metropolitan-district-council/walsall ,WC149-510,30.04.2023,ADULT SOCIAL CARE,ADVANCE HEALTH CARE (UK) LTD,25/04/2023,500.96,6541-Domiciliary Care,THIRD PARTY PAYMENTS,PRIVATE CONTRACTOR,REVENUE
Walsall Council,http://opendatacommunities.org/id/metropolitan-district-council/walsall ,WC149-511,30.04.2023,ADULT SOCIAL CARE,ADVANCE HEALTH CARE (UK) LTD,25/04/2023,589.84,6541-Domiciliary Care,THIRD PARTY PAYMENTS,PRIVATE CONTRACTOR,REVENUE
Walsall Council,http://opendatacommunities.org/id/metropolitan-district-council/walsall ,WC149-512,30.04.2023,ADULT SOCIAL CARE,ADVANCE HEALTH CARE (UK) LTD,25/04/2023,254.52,6541-Domiciliary Care,THIRD PARTY PAYMENTS,PRIVATE CONTRACTOR,REVENUE
Walsall Council,http://opendatacommunities.org/id/metropolitan-district-council/walsall ,WC149-513,30.04.2023,ADULT SOCIAL CARE,ADVANCE HEALTH CARE (UK) LTD,25/04/2023,254.52,6541-Domiciliary Care,THIRD PARTY PAYMENTS,PRIVATE CONTRACTOR,REVENUE
Walsall Council,http://opendatacommunities.org/id/metropolitan-district-council/walsall ,WC149-514,30.04.2023,ADULT SOCIAL CARE,ADVANCE HEALTH CARE (UK) LTD,25/04/2023,377.16,6541-Domiciliary Care,THIRD PARTY PAYMENTS,PRIVATE CONTRACTOR,REVENUE
Walsall Council,http://opendatacommunities.org/id/metropolitan-district-council/walsall ,WC149-515,30.04.2023,ADULT SOCIAL CARE,ADVANCE HEALTH CARE (UK) LTD,25/04/2023,452.48,6541-Domiciliary Care,THIRD PARTY PAYMENTS,PRIVATE CONTRACTOR,REVENUE
Walsall Council,http://opendatacommunities.org/id/metropolitan-district-council/walsall ,WC149-516,30.04.2023,ADULT SOCIAL CARE,ADVANCE HEALTH CARE (UK) LTD,25/04/2023,452.48,6541-Domiciliary Care,THIRD PARTY PAYMENTS,PRIVATE CONTRACTOR,REVENUE
Walsall Council,http://opendatacommunities.org/id/metropolitan-district-council/walsall ,WC149-517,30.04.2023,ADULT SOCIAL CARE,ADVANCE HEALTH CARE (UK) LTD,25/04/2023,565.60,6541-Domiciliary Care,THIRD PARTY PAYMENTS,PRIVATE CONTRACTOR,REVENUE
Walsall Council,http://opendatacommunities.org/id/metropolitan-district-council/walsall ,WC149-518,30.04.2023,ADULT SOCIAL CARE,ADVANCE HEALTH CARE (UK) LTD,25/04/2023,254.52,6541-Domiciliary Care,THIRD PARTY PAYMENTS,PRIVATE CONTRACTOR,REVENUE
Walsall Council,http://opendatacommunities.org/id/metropolitan-district-council/walsall ,WC149-519,30.04.2023,ADULT SOCIAL CARE,ADVANCE HEALTH CARE (UK) LTD,25/04/2023,339.50,6541-Domiciliary Care,THIRD PARTY PAYMENTS,PRIVATE CONTRACTOR,REVENUE
Walsall Council,http://opendatacommunities.org/id/metropolitan-district-council/walsall ,WC149-520,30.04.2023,ADULT SOCIAL CARE,ADVANCE HEALTH CARE (UK) LTD,25/04/2023,864.56,6541-Domiciliary Care,THIRD PARTY PAYMENTS,PRIVATE CONTRACTOR,REVENUE
Walsall Council,http://opendatacommunities.org/id/metropolitan-district-council/walsall ,WC149-521,30.04.2023,ADULT SOCIAL CARE,ADVANCE HEALTH CARE (UK) LTD,25/04/2023,396.06,6541-Domiciliary Care,THIRD PARTY PAYMENTS,PRIVATE CONTRACTOR,REVENUE
Walsall Council,http://opendatacommunities.org/id/metropolitan-district-council/walsall ,WC149-522,30.04.2023,ADULT SOCIAL CARE,ADVANCE HEALTH CARE (UK) LTD,25/04/2023,254.52,6541-Domiciliary Care,THIRD PARTY PAYMENTS,PRIVATE CONTRACTOR,REVENUE
Walsall Council,http://opendatacommunities.org/id/metropolitan-district-council/walsall ,WC149-523,30.04.2023,ADULT SOCIAL CARE,ADVANCE HEALTH CARE (UK) LTD,25/04/2023,395.92,6541-Domiciliary Care,THIRD PARTY PAYMENTS,PRIVATE CONTRACTOR,REVENUE
Walsall Council,http://opendatacommunities.org/id/metropolitan-district-council/walsall ,WC149-524,30.04.2023,ADULT SOCIAL CARE,ADVANCE HEALTH CARE (UK) LTD,25/04/2023,509.04,6541-Domiciliary Care,THIRD PARTY PAYMENTS,PRIVATE CONTRACTOR,REVENUE
Walsall Council,http://opendatacommunities.org/id/metropolitan-district-council/walsall ,WC149-525,30.04.2023,ADULT SOCIAL CARE,ADVANCE HEALTH CARE (UK) LTD,25/04/2023,565.60,6541-Domiciliary Care,THIRD PARTY PAYMENTS,PRIVATE CONTRACTOR,REVENUE
Walsall Council,http://opendatacommunities.org/id/metropolitan-district-council/walsall ,WC149-526,30.04.2023,ADULT SOCIAL CARE,ADVANCE HEALTH CARE (UK) LTD,25/04/2023,452.48,6541-Domiciliary Care,THIRD PARTY PAYMENTS,PRIVATE CONTRACTOR,REVENUE
Walsall Council,http://opendatacommunities.org/id/metropolitan-district-council/walsall ,WC149-527,30.04.2023,ADULT SOCIAL CARE,ADVANCE HEALTH CARE (UK) LTD,25/04/2023,799.92,6541-Domiciliary Care,THIRD PARTY PAYMENTS,PRIVATE CONTRACTOR,REVENUE
Walsall Council,http://opendatacommunities.org/id/metropolitan-district-council/walsall ,WC149-528,30.04.2023,ADULT SOCIAL CARE,ADVANCE HEALTH CARE (UK) LTD,25/04/2023,452.48,6541-Domiciliary Care,THIRD PARTY PAYMENTS,PRIVATE CONTRACTOR,REVENUE
Walsall Council,http://opendatacommunities.org/id/metropolitan-district-council/walsall ,WC149-529,30.04.2023,ADULT SOCIAL CARE,ADVANCE HEALTH CARE (UK) LTD,25/04/2023,290.88,6541-Domiciliary Care,THIRD PARTY PAYMENTS,PRIVATE CONTRACTOR,REVENUE
Walsall Council,http://opendatacommunities.org/id/metropolitan-district-council/walsall ,WC149-530,30.04.2023,ADULT SOCIAL CARE,ADVANCE HEALTH CARE (UK) LTD,25/04/2023,395.92,6541-Domiciliary Care,THIRD PARTY PAYMENTS,PRIVATE CONTRACTOR,REVENUE
Walsall Council,http://opendatacommunities.org/id/metropolitan-district-council/walsall ,WC149-531,30.04.2023,ADULT SOCIAL CARE,ADVANCE HEALTH CARE (UK) LTD,25/04/2023,339.36,6541-Domiciliary Care,THIRD PARTY PAYMENTS,PRIVATE CONTRACTOR,REVENUE
Walsall Council,http://opendatacommunities.org/id/metropolitan-district-council/walsall ,WC149-532,30.04.2023,ADULT SOCIAL CARE,ADVANCE HEALTH CARE (UK) LTD,25/04/2023,270.68,6541-Domiciliary Care,THIRD PARTY PAYMENTS,PRIVATE CONTRACTOR,REVENUE
Walsall Council,http://opendatacommunities.org/id/metropolitan-district-council/walsall ,WC149-533,30.04.2023,ADULT SOCIAL CARE,ADVANCE HEALTH CARE (UK) LTD,25/04/2023,509.04,6541-Domiciliary Care,THIRD PARTY PAYMENTS,PRIVATE CONTRACTOR,REVENUE
Walsall Council,http://opendatacommunities.org/id/metropolitan-district-council/walsall ,WC149-534,30.04.2023,ADULT SOCIAL CARE,ADVANCED BUSINESS SOLUTIONS LTD,17/04/2023,"-10,213.27",6554-Computer Equipment,SUPPLIES & SERVICES,COMMUNICATIONS & COMPUTING,REVENUE
Walsall Council,http://opendatacommunities.org/id/metropolitan-district-council/walsall ,WC149-535,30.04.2023,ADULT SOCIAL CARE,ADVANCED BUSINESS SOLUTIONS LTD,17/04/2023,"10,213.27",6554-Computer Equipment,SUPPLIES & SERVICES,COMMUNICATIONS & COMPUTING,REVENUE
Walsall Council,http://opendatacommunities.org/id/metropolitan-district-council/walsall ,WC149-536,30.04.2023,RESOURCES AND TRANSFORMATION,ADVANCED CONTRACTS (MIDLANDS) LTD,19/04/2023,"21,774.00",6310-Materials,SUPPLIES & SERVICES,EQUIPMENT FURNITURE & MATERIALS,REVENUE
Walsall Council,http://opendatacommunities.org/id/metropolitan-district-council/walsall ,WC149-537,30.04.2023,ADULT SOCIAL CARE,ADVANCED HEALTH AND CARE,21/04/2023,"10,213.27",6554-Computer Equipment,SUPPLIES & SERVICES,COMMUNICATIONS & COMPUTING,REVENUE
Walsall Council,http://opendatacommunities.org/id/metropolitan-district-council/walsall ,WC149-538,30.04.2023,ADULT SOCIAL CARE,ADVANCED HEALTH AND CARE,21/04/2023,"11,030.33",6554-Computer Equipment,SUPPLIES & SERVICES,COMMUNICATIONS & COMPUTING,REVENUE
Walsall Council,http://opendatacommunities.org/id/metropolitan-district-council/walsall ,WC149-539,30.04.2023,"ECONOMY, ENVIRONMENT & COMMUNITIES",ADVANCED VISUALISATION TECHNOLOGIES LTD T/A DIGITAL AUTOPSY UK,13/04/2023,"7,616.00",6413-Professional Fees & Services,SUPPLIES & SERVICES,SERVICES,REVENUE
Walsall Council,http://opendatacommunities.org/id/metropolitan-district-council/walsall ,WC149-540,30.04.2023,CHILDRENS,ADVENTURELAND DAY NURSERY,17/04/2023,"7,252.54",1184-Other-Grants to Other Orgs,SUPPLIES & SERVICES,GRANTS (EXP) & SUBSCRIPTIONS,REVENUE
Walsall Council,http://opendatacommunities.org/id/metropolitan-district-council/walsall ,WC149-541,30.04.2023,CHILDRENS,ADVENTURELAND DAY NURSERY,17/04/2023,"46,200.38",1184-Other-Grants to Other Orgs,SUPPLIES & SERVICES,GRANTS (EXP) & SUBSCRIPTIONS,REVENUE
Walsall Council,http://opendatacommunities.org/id/metropolitan-district-council/walsall ,WC149-542,30.04.2023,ADULT SOCIAL CARE,ADVINIA CARE HOMES LTD - HAMMERWICH HALL CARE HOME,11/04/2023,"2,366.04",6541-Residential EMI,THIRD PARTY PAYMENTS,PRIVATE CONTRACTOR,REVENUE
Walsall Council,http://opendatacommunities.org/id/metropolitan-district-council/walsall ,WC149-543,30.04.2023,ADULT SOCIAL CARE,ADVINIA CARE HOMES LTD - HAMMERWICH HALL CARE HOME,11/04/2023,"2,095.40",6541-Residential,THIRD PARTY PAYMENTS,PRIVATE CONTRACTOR,REVENUE
Walsall Council,http://opendatacommunities.org/id/metropolitan-district-council/walsall ,WC149-544,30.04.2023,"ECONOMY, ENVIRONMENT & COMMUNITIES",AECOM INFRASTRUCTURE & ENVIRONMENT UK LIMITED,11/04/2023,"5,500.00",6411-Materials,SUPPLIES & SERVICES,EQUIPMENT FURNITURE & MATERIALS,REVENUE
Walsall Council,http://opendatacommunities.org/id/metropolitan-district-council/walsall ,WC149-545,30.04.2023,ECONOMY & ENVIRONMENT CAPITAL,AECOM INFRASTRUCTURE & ENVIRONMENT UK LIMITED,20/04/2023,"-14,064.12",7200-Consultants Fees,CAPITAL,"NEW CONSTRUCTION,CONVERSION & RENOVATION",CAPITAL
Walsall Council,http://opendatacommunities.org/id/metropolitan-district-council/walsall ,WC149-546,30.04.2023,ECONOMY & ENVIRONMENT CAPITAL,AECOM INFRASTRUCTURE & ENVIRONMENT UK LIMITED,20/04/2023,"14,064.12",7200-Consultants Fees,CAPITAL,"NEW CONSTRUCTION,CONVERSION & RENOVATION",CAPITAL
Walsall Council,http://opendatacommunities.org/id/metropolitan-district-council/walsall ,WC149-547,30.04.2023,ECONOMY & ENVIRONMENT CAPITAL,AECOM INFRASTRUCTURE & ENVIRONMENT UK LIMITED,20/04/2023,"14,064.12",7200-Consultants Fees,CAPITAL,"NEW CONSTRUCTION,CONVERSION & RENOVATION",CAPITAL
Walsall Council,http://opendatacommunities.org/id/metropolitan-district-council/walsall ,WC149-548,30.04.2023,ECONOMY & ENVIRONMENT CAPITAL,AECOM INFRASTRUCTURE & ENVIRONMENT UK LIMITED,25/04/2023,"-12,200.51",7200-Consultants Fees,CAPITAL,"NEW CONSTRUCTION,CONVERSION & RENOVATION",CAPITAL
Walsall Council,http://opendatacommunities.org/id/metropolitan-district-council/walsall ,WC149-549,30.04.2023,ECONOMY & ENVIRONMENT CAPITAL,AECOM INFRASTRUCTURE & ENVIRONMENT UK LIMITED,25/04/2023,"12,200.51",7200-Consultants Fees,CAPITAL,"NEW CONSTRUCTION,CONVERSION & RENOVATION",CAPITAL
Walsall Council,http://opendatacommunities.org/id/metropolitan-district-council/walsall ,WC149-550,30.04.2023,ECONOMY & ENVIRONMENT CAPITAL,AECOM INFRASTRUCTURE & ENVIRONMENT UK LIMITED,25/04/2023,"12,200.51",7200-Consultants Fees,CAPITAL,"NEW CONSTRUCTION,CONVERSION & RENOVATION",CAPITAL
Walsall Council,http://opendatacommunities.org/id/metropolitan-district-council/walsall ,WC149-551,30.04.2023,CHILDRENS,AFGHAN COMMUNITY & WELFARE CENTRE,25/04/2023,802.80,6211-Professional Fees & Services,SUPPLIES & SERVICES,SERVICES,REVENUE
Walsall Council,http://opendatacommunities.org/id/metropolitan-district-council/walsall ,WC149-552,30.04.2023,CHILDRENS,REDACTED,04/04/2023,573.98,6223-Foster Carers Maintenance Allowance,TRANSFER PAYMENTS,CHILDREN SOCIAL SERVICES CLIENT,REVENUE
Walsall Council,http://opendatacommunities.org/id/metropolitan-district-council/walsall ,WC149-553,30.04.2023,CHILDRENS,REDACTED,04/04/2023,"1,469.60",6223-Internal Foster Carers-Carer Fees,TRANSFER PAYMENTS,CHILDREN SOCIAL SERVICES CLIENT,REVENUE
Walsall Council,http://opendatacommunities.org/id/metropolitan-district-council/walsall ,WC149-554,30.04.2023,CHILDRENS,REDACTED,04/04/2023,634.20,6223-Foster Carers Maintenance Allowance,TRANSFER PAYMENTS,CHILDREN SOCIAL SERVICES CLIENT,REVENUE
Walsall Council,http://opendatacommunities.org/id/metropolitan-district-council/walsall ,WC149-555,30.04.2023,RESOURCES AND TRANSFORMATION CAPITAL,AGILISYS LTD,03/04/2023,"12,334.52",7300-Consultants Fees,CAPITAL,"NEW CONSTRUCTION,CONVERSION & RENOVATION",CAPITAL
Walsall Council,http://opendatacommunities.org/id/metropolitan-district-council/walsall ,WC149-556,30.04.2023,RESOURCES AND TRANSFORMATION CAPITAL,AGILISYS LTD,21/04/2023,"-1,224.00",7300-Consultants Fees,CAPITAL,"NEW CONSTRUCTION,CONVERSION & RENOVATION",CAPITAL
Walsall Council,http://opendatacommunities.org/id/metropolitan-district-council/walsall ,WC149-557,30.04.2023,"ECONOMY, ENVIRONMENT & COMMUNITIES",AGROVISTA UK LTD,11/04/2023,-957.00,6410-Materials,SUPPLIES & SERVICES,EQUIPMENT FURNITURE & MATERIALS,REVENUE
Walsall Council,http://opendatacommunities.org/id/metropolitan-district-council/walsall ,WC149-558,30.04.2023,"ECONOMY, ENVIRONMENT & COMMUNITIES",AGROVISTA UK LTD,11/04/2023,957.00,6410-Materials,SUPPLIES & SERVICES,EQUIPMENT FURNITURE & MATERIALS,REVENUE
Walsall Council,http://opendatacommunities.org/id/metropolitan-district-council/walsall ,WC149-559,30.04.2023,ADULT SOCIAL CARE,REDACTED,05/04/2023,"2,517.12",6541-Direct Payment,THIRD PARTY PAYMENTS,PRIVATE CONTRACTOR,REVENUE
Walsall Council,http://opendatacommunities.org/id/metropolitan-district-council/walsall ,WC149-560,30.04.2023,ADULT SOCIAL CARE,REDACTED,05/04/2023,"1,019.04",6541-Direct Payment,THIRD PARTY PAYMENTS,PRIVATE CONTRACTOR,REVENUE
Walsall Council,http://opendatacommunities.org/id/metropolitan-district-council/walsall ,WC149-561,30.04.2023,ADULT SOCIAL CARE,REDACTED,05/04/2023,484.44,6541-Direct Payment,THIRD PARTY PAYMENTS,PRIVATE CONTRACTOR,REVENUE
Walsall Council,http://opendatacommunities.org/id/metropolitan-district-council/walsall ,WC149-562,30.04.2023,ADULT SOCIAL CARE,REDACTED,05/04/2023,948.64,6541-Direct Payment,THIRD PARTY PAYMENTS,PRIVATE CONTRACTOR,REVENUE
Walsall Council,http://opendatacommunities.org/id/metropolitan-district-council/walsall ,WC149-563,30.04.2023,CHILDRENS,ALCOHOL RESEARCH UK T/A ALCOHOL CHANGE UK,20/04/2023,"3,246.60",6221-External Training,INDIRECT EMPLOYEES,EXTERNAL TRAINING,REVENUE
Walsall Council,http://opendatacommunities.org/id/metropolitan-district-council/walsall ,WC149-564,30.04.2023,CHILDRENS,ALDRIDGE & BARONS LIMITED,25/04/2023,"1,800.00",6241-Hire of Vehicle with Driver,TRANSPORT,DIRECT TRANSPORT COSTS,REVENUE
Walsall Council,http://opendatacommunities.org/id/metropolitan-district-council/walsall ,WC149-565,30.04.2023,CHILDRENS,ALDRIDGE & BARONS LIMITED,25/04/2023,"2,204.75",6241-Hire of Vehicle with Driver,TRANSPORT,DIRECT TRANSPORT COSTS,REVENUE
Walsall Council,http://opendatacommunities.org/id/metropolitan-district-council/walsall ,WC149-566,30.04.2023,CHILDRENS,ALDRIDGE & BARONS LIMITED,25/04/2023,"2,021.32",6241-Hire of Vehicle with Driver,TRANSPORT,DIRECT TRANSPORT COSTS,REVENUE
Walsall Council,http://opendatacommunities.org/id/metropolitan-district-council/walsall ,WC149-567,30.04.2023,CHILDRENS,ALDRIDGE & BARONS LIMITED,25/04/2023,"1,638.00",6241-Hire of Vehicle with Driver,TRANSPORT,DIRECT TRANSPORT COSTS,REVENUE
Walsall Council,http://opendatacommunities.org/id/metropolitan-district-council/walsall ,WC149-568,30.04.2023,CHILDRENS,ALDRIDGE & BARONS LIMITED,25/04/2023,"2,700.00",6241-Hire of Vehicle with Driver,TRANSPORT,DIRECT TRANSPORT COSTS,REVENUE
Walsall Council,http://opendatacommunities.org/id/metropolitan-district-council/walsall ,WC149-569,30.04.2023,CHILDRENS,ALDRIDGE & BARONS LIMITED,25/04/2023,"1,674.00",6241-Hire of Vehicle with Driver,TRANSPORT,DIRECT TRANSPORT COSTS,REVENUE
Walsall Council,http://opendatacommunities.org/id/metropolitan-district-council/walsall ,WC149-570,30.04.2023,CHILDRENS,ALDRIDGE & BARONS LIMITED,25/04/2023,"2,108.70",6241-Hire of Vehicle with Driver,TRANSPORT,DIRECT TRANSPORT COSTS,REVENUE
Walsall Council,http://opendatacommunities.org/id/metropolitan-district-council/walsall ,WC149-571,30.04.2023,CHILDRENS,ALDRIDGE & BARONS LIMITED,25/04/2023,"1,287.75",6241-Hire of Vehicle with Driver,TRANSPORT,DIRECT TRANSPORT COSTS,REVENUE
Walsall Council,http://opendatacommunities.org/id/metropolitan-district-council/walsall ,WC149-572,30.04.2023,CHILDRENS,ALDRIDGE & BARONS LIMITED,25/04/2023,"1,593.00",6241-Hire of Vehicle with Driver,TRANSPORT,DIRECT TRANSPORT COSTS,REVENUE
Walsall Council,http://opendatacommunities.org/id/metropolitan-district-council/walsall ,WC149-573,30.04.2023,CHILDRENS,ALDRIDGE & BARONS LIMITED,25/04/2023,"1,339.80",6241-Hire of Vehicle with Driver,TRANSPORT,DIRECT TRANSPORT COSTS,REVENUE
Walsall Council,http://opendatacommunities.org/id/metropolitan-district-council/walsall ,WC149-574,30.04.2023,CHILDRENS,ALDRIDGE & BARONS LIMITED,25/04/2023,"1,974.00",6241-Hire of Vehicle with Driver,TRANSPORT,DIRECT TRANSPORT COSTS,REVENUE
Walsall Council,http://opendatacommunities.org/id/metropolitan-district-council/walsall ,WC149-575,30.04.2023,CHILDRENS,ALDRIDGE & BARONS LIMITED,25/04/2023,891.00,6241-Hire of Vehicle with Driver,TRANSPORT,DIRECT TRANSPORT COSTS,REVENUE
Walsall Council,http://opendatacommunities.org/id/metropolitan-district-council/walsall ,WC149-576,30.04.2023,CHILDRENS,ALDRIDGE & BARONS LIMITED,25/04/2023,"2,070.00",6241-Hire of Vehicle with Driver,TRANSPORT,DIRECT TRANSPORT COSTS,REVENUE
Walsall Council,http://opendatacommunities.org/id/metropolitan-district-council/walsall ,WC149-577,30.04.2023,CHILDRENS,ALDRIDGE & BARONS LIMITED,25/04/2023,"1,500.00",6241-Hire of Vehicle with Driver,TRANSPORT,DIRECT TRANSPORT COSTS,REVENUE
Walsall Council,http://opendatacommunities.org/id/metropolitan-district-council/walsall ,WC149-578,30.04.2023,CHILDRENS,ALDRIDGE & BARONS LIMITED,25/04/2023,"2,379.00",6241-Hire of Vehicle with Driver,TRANSPORT,DIRECT TRANSPORT COSTS,REVENUE
Walsall Council,http://opendatacommunities.org/id/metropolitan-district-council/walsall ,WC149-579,30.04.2023,CHILDRENS,ALDRIDGE & BARONS LIMITED,25/04/2023,"1,350.00",6241-Hire of Vehicle with Driver,TRANSPORT,DIRECT TRANSPORT COSTS,REVENUE
Walsall Council,http://opendatacommunities.org/id/metropolitan-district-council/walsall ,WC149-580,30.04.2023,CHILDRENS,ALDRIDGE & BARONS LIMITED,25/04/2023,"1,008.00",6241-Hire of Vehicle with Driver,TRANSPORT,DIRECT TRANSPORT COSTS,REVENUE
Walsall Council,http://opendatacommunities.org/id/metropolitan-district-council/walsall ,WC149-581,30.04.2023,CHILDRENS,ALDRIDGE & BARONS LIMITED,25/04/2023,"1,485.00",6241-Hire of Vehicle with Driver,TRANSPORT,DIRECT TRANSPORT COSTS,REVENUE
Walsall Council,http://opendatacommunities.org/id/metropolitan-district-council/walsall ,WC149-582,30.04.2023,CHILDRENS,ALDRIDGE & BARONS LIMITED,25/04/2023,"1,650.00",6241-Hire of Vehicle with Driver,TRANSPORT,DIRECT TRANSPORT COSTS,REVENUE
Walsall Council,http://opendatacommunities.org/id/metropolitan-district-council/walsall ,WC149-583,30.04.2023,CHILDRENS,ALDRIDGE & BARONS LIMITED,25/04/2023,380.00,6241-Hire of Vehicle with Driver,TRANSPORT,DIRECT TRANSPORT COSTS,REVENUE
Walsall Council,http://opendatacommunities.org/id/metropolitan-district-council/walsall ,WC149-584,30.04.2023,CHILDRENS,ALDRIDGE & BARONS LIMITED,25/04/2023,"1,740.00",6241-Hire of Vehicle with Driver,TRANSPORT,DIRECT TRANSPORT COSTS,REVENUE
Walsall Council,http://opendatacommunities.org/id/metropolitan-district-council/walsall ,WC149-585,30.04.2023,CHILDRENS,ALDRIDGE & BARONS LIMITED,25/04/2023,"2,250.00",6241-Hire of Vehicle with Driver,TRANSPORT,DIRECT TRANSPORT COSTS,REVENUE
Walsall Council,http://opendatacommunities.org/id/metropolitan-district-council/walsall ,WC149-586,30.04.2023,CHILDRENS,ALDRIDGE & BARONS LIMITED,25/04/2023,"1,620.00",6241-Hire of Vehicle with Driver,TRANSPORT,DIRECT TRANSPORT COSTS,REVENUE
Walsall Council,http://opendatacommunities.org/id/metropolitan-district-council/walsall ,WC149-587,30.04.2023,CHILDRENS,ALDRIDGE & BARONS LIMITED,25/04/2023,875.00,6241-Hire of Vehicle with Driver,TRANSPORT,DIRECT TRANSPORT COSTS,REVENUE
Walsall Council,http://opendatacommunities.org/id/metropolitan-district-council/walsall ,WC149-588,30.04.2023,CHILDRENS,ALDRIDGE & BARONS LIMITED,25/04/2023,"1,125.00",6241-Hire of Vehicle with Driver,TRANSPORT,DIRECT TRANSPORT COSTS,REVENUE
Walsall Council,http://opendatacommunities.org/id/metropolitan-district-council/walsall ,WC149-589,30.04.2023,CHILDRENS,ALDRIDGE & BARONS LIMITED,25/04/2023,"1,470.00",6241-Hire of Vehicle with Driver,TRANSPORT,DIRECT TRANSPORT COSTS,REVENUE
Walsall Council,http://opendatacommunities.org/id/metropolitan-district-council/walsall ,WC149-590,30.04.2023,CHILDRENS,ALDRIDGE & BARONS LIMITED,25/04/2023,"1,810.50",6241-Hire of Vehicle with Driver,TRANSPORT,DIRECT TRANSPORT COSTS,REVENUE
Walsall Council,http://opendatacommunities.org/id/metropolitan-district-council/walsall ,WC149-591,30.04.2023,CHILDRENS,ALDRIDGE & BARONS LIMITED,25/04/2023,"2,515.00",6241-Hire of Vehicle with Driver,TRANSPORT,DIRECT TRANSPORT COSTS,REVENUE
Walsall Council,http://opendatacommunities.org/id/metropolitan-district-council/walsall ,WC149-592,30.04.2023,CHILDRENS,ALDRIDGE & BARONS LIMITED,25/04/2023,"1,950.00",6241-Hire of Vehicle with Driver,TRANSPORT,DIRECT TRANSPORT COSTS,REVENUE
Walsall Council,http://opendatacommunities.org/id/metropolitan-district-council/walsall ,WC149-593,30.04.2023,CHILDRENS,ALDRIDGE & BARONS LIMITED,25/04/2023,"2,332.80",6241-Hire of Vehicle with Driver,TRANSPORT,DIRECT TRANSPORT COSTS,REVENUE
Walsall Council,http://opendatacommunities.org/id/metropolitan-district-council/walsall ,WC149-594,30.04.2023,CHILDRENS,ALDRIDGE & BARONS LIMITED,25/04/2023,"2,250.00",6241-Hire of Vehicle with Driver,TRANSPORT,DIRECT TRANSPORT COSTS,REVENUE
Walsall Council,http://opendatacommunities.org/id/metropolitan-district-council/walsall ,WC149-595,30.04.2023,CHILDRENS,ALDRIDGE & BARONS LIMITED,25/04/2023,"2,100.00",6241-Hire of Vehicle with Driver,TRANSPORT,DIRECT TRANSPORT COSTS,REVENUE
Walsall Council,http://opendatacommunities.org/id/metropolitan-district-council/walsall ,WC149-596,30.04.2023,"ECONOMY, ENVIRONMENT & COMMUNITIES",ALDRIDGE SAILING CLUB,04/04/2023,"19,000.00",6430-Grants to Other Orgs,SUPPLIES & SERVICES,GRANTS (EXP) & SUBSCRIPTIONS,REVENUE
Walsall Council,http://opendatacommunities.org/id/metropolitan-district-council/walsall ,WC149-597,30.04.2023,CHILDRENS,ALDRIDGE YOUTH THEATRE,25/04/2023,"1,831.75",6211-Professional Fees & Services,SUPPLIES & SERVICES,SERVICES,REVENUE
Walsall Council,http://opendatacommunities.org/id/metropolitan-district-council/walsall ,WC149-598,30.04.2023,ADULT SOCIAL CARE,REDACTED,05/04/2023,"1,551.36",6541-Direct Payment,THIRD PARTY PAYMENTS,PRIVATE CONTRACTOR,REVENUE
Walsall Council,http://opendatacommunities.org/id/metropolitan-district-council/walsall ,WC149-599,30.04.2023,ADULT SOCIAL CARE,ALEXANDRA HOUSE CARE SERVICES LTD T/A STONEBRIDGE NURSING HOME,11/04/2023,"8,840.67",6541-Residential,THIRD PARTY PAYMENTS,PRIVATE CONTRACTOR,REVENUE
Walsall Council,http://opendatacommunities.org/id/metropolitan-district-council/walsall ,WC149-600,30.04.2023,ADULT SOCIAL CARE,ALEXANDRA HOUSE SUPPORT SERVICES LTD,11/04/2023,"4,240.00",6541-Residential,THIRD PARTY PAYMENTS,PRIVATE CONTRACTOR,REVENUE
Walsall Council,http://opendatacommunities.org/id/metropolitan-district-council/walsall ,WC149-601,30.04.2023,ADULT SOCIAL CARE,REDACTED,05/04/2023,993.52,6541-Direct Payment,THIRD PARTY PAYMENTS,PRIVATE CONTRACTOR,REVENUE
Walsall Council,http://opendatacommunities.org/id/metropolitan-district-council/walsall ,WC149-602,30.04.2023,CHILDRENS,REDACTED,04/04/2023,346.17,6223-Special Guardianship Orders,TRANSFER PAYMENTS,CHILDREN SOCIAL SERVICES CLIENT,REVENUE
Walsall Council,http://opendatacommunities.org/id/metropolitan-district-council/walsall ,WC149-603,30.04.2023,CHILDRENS,ALL SAINTS NATIONAL ACADEMY #1,24/04/2023,"2,110.46",1220-Top Up Funding -Grants to Schools,SUPPLIES & SERVICES,GRANTS (EXP) & SUBSCRIPTIONS,REVENUE
Walsall Council,http://opendatacommunities.org/id/metropolitan-district-council/walsall ,WC149-604,30.04.2023,CHILDRENS,ALL STARS WALSALL CIC,25/04/2023,780.00,6211-Professional Fees & Services,SUPPLIES & SERVICES,SERVICES,REVENUE
Walsall Council,http://opendatacommunities.org/id/metropolitan-district-council/walsall ,WC149-605,30.04.2023,ADULT SOCIAL CARE,REDACTED,05/04/2023,944.00,6541-Direct Payment,THIRD PARTY PAYMENTS,PRIVATE CONTRACTOR,REVENUE
Walsall Council,http://opendatacommunities.org/id/metropolitan-district-council/walsall ,WC149-606,30.04.2023,CHILDRENS,ALLIANCE CARE LTD,12/04/2023,"3,024.00",6220-Professional Fees & Services,SUPPLIES & SERVICES,SERVICES,REVENUE
Walsall Council,http://opendatacommunities.org/id/metropolitan-district-council/walsall ,WC149-607,30.04.2023,ECONOMY & ENVIRONMENT CAPITAL,ALLIANCE LEISURE SERVICES LTD,20/04/2023,"86,548.08",7200-Site Works Contractors,CAPITAL,"NEW CONSTRUCTION,CONVERSION & RENOVATION",CAPITAL
Walsall Council,http://opendatacommunities.org/id/metropolitan-district-council/walsall ,WC149-608,30.04.2023,RESOURCES AND TRANSFORMATION,ALLIED PUBLICITY SERVICES (MANCHESTER) LIMITED T/A APS GROUP,06/04/2023,"1,976.19",6312-External Printing Services,SUPPLIES & SERVICES,PRINTING STATIONERY & GENERAL OFFICE,REVENUE
Walsall Council,http://opendatacommunities.org/id/metropolitan-district-council/walsall ,WC149-609,30.04.2023,ADULT SOCIAL CARE,ALMA COURT,11/04/2023,"6,718.40",6541-Residential,THIRD PARTY PAYMENTS,PRIVATE CONTRACTOR,REVENUE
Walsall Council,http://opendatacommunities.org/id/metropolitan-district-council/walsall ,WC149-610,30.04.2023,ADULT SOCIAL CARE,ALMA COURT,11/04/2023,"5,485.71",6541-Residential,THIRD PARTY PAYMENTS,PRIVATE CONTRACTOR,REVENUE
Walsall Council,http://opendatacommunities.org/id/metropolitan-district-council/walsall ,WC149-611,30.04.2023,ADULT SOCIAL CARE,ALMA COURT,11/04/2023,"6,720.00",6541-Nursing,THIRD PARTY PAYMENTS,PRIVATE CONTRACTOR,REVENUE
Walsall Council,http://opendatacommunities.org/id/metropolitan-district-council/walsall ,WC149-612,30.04.2023,ADULT SOCIAL CARE,ALMA COURT,11/04/2023,"4,805.72",6541-Nursing EMI,THIRD PARTY PAYMENTS,PRIVATE CONTRACTOR,REVENUE
Walsall Council,http://opendatacommunities.org/id/metropolitan-district-council/walsall ,WC149-613,30.04.2023,ADULT SOCIAL CARE,ALMA COURT,11/04/2023,"4,263.00",6541-Residential,THIRD PARTY PAYMENTS,PRIVATE CONTRACTOR,REVENUE
Walsall Council,http://opendatacommunities.org/id/metropolitan-district-council/walsall ,WC149-614,30.04.2023,ADULT SOCIAL CARE,ALMA COURT,11/04/2023,"10,560.00",6541-Nursing EMI,THIRD PARTY PAYMENTS,PRIVATE CONTRACTOR,REVENUE
Walsall Council,http://opendatacommunities.org/id/metropolitan-district-council/walsall ,WC149-615,30.04.2023,ADULT SOCIAL CARE,ALMA COURT,11/04/2023,"4,000.00",6541-Nursing EMI,THIRD PARTY PAYMENTS,PRIVATE CONTRACTOR,REVENUE
Walsall Council,http://opendatacommunities.org/id/metropolitan-district-council/walsall ,WC149-616,30.04.2023,RESOURCES AND TRANSFORMATION,ALMADEN UK LTD,13/04/2023,"2,000.00",6623-Computer Equipment,SUPPLIES & SERVICES,COMMUNICATIONS & COMPUTING,REVENUE
Walsall Council,http://opendatacommunities.org/id/metropolitan-district-council/walsall ,WC149-617,30.04.2023,CHILDRENS,ALMOZENE NURSERY & CHILDRENS CENTRE,17/04/2023,"5,640.86",1184-Other-Grants to Other Orgs,SUPPLIES & SERVICES,GRANTS (EXP) & SUBSCRIPTIONS,REVENUE
Walsall Council,http://opendatacommunities.org/id/metropolitan-district-council/walsall ,WC149-618,30.04.2023,CHILDRENS,ALMOZENE NURSERY & CHILDRENS CENTRE,17/04/2023,"19,190.92",1184-Other-Grants to Other Orgs,SUPPLIES & SERVICES,GRANTS (EXP) & SUBSCRIPTIONS,REVENUE
Walsall Council,http://opendatacommunities.org/id/metropolitan-district-council/walsall ,WC149-619,30.04.2023,CHILDRENS,ALMOZENE NURSERY & CHILDRENS CENTRE,19/04/2023,"2,280.00",1184-Other-Grants to Other Orgs,SUPPLIES & SERVICES,GRANTS (EXP) & SUBSCRIPTIONS,REVENUE
Walsall Council,http://opendatacommunities.org/id/metropolitan-district-council/walsall ,WC149-620,30.04.2023,CHILDRENS,ALMOZENE NURSERY & CHILDRENS CENTRE,25/04/2023,465.64,6211-Professional Fees & Services,SUPPLIES & SERVICES,SERVICES,REVENUE
Walsall Council,http://opendatacommunities.org/id/metropolitan-district-council/walsall ,WC149-621,30.04.2023,ADULT SOCIAL CARE,ALPHA HEALTH CARE LTD,11/04/2023,"2,763.80",6541-Nursing EMI,THIRD PARTY PAYMENTS,PRIVATE CONTRACTOR,REVENUE
Walsall Council,http://opendatacommunities.org/id/metropolitan-district-council/walsall ,WC149-622,30.04.2023,ADULT SOCIAL CARE,ALPHA HEALTH CARE LTD,11/04/2023,"7,067.80",6541-Nursing EMI,THIRD PARTY PAYMENTS,PRIVATE CONTRACTOR,REVENUE
Walsall Council,http://opendatacommunities.org/id/metropolitan-district-council/walsall ,WC149-623,30.04.2023,ADULT SOCIAL CARE,ALPHA HEALTH CARE LTD,11/04/2023,"3,132.12",6541-Nursing EMI,THIRD PARTY PAYMENTS,PRIVATE CONTRACTOR,REVENUE
Walsall Council,http://opendatacommunities.org/id/metropolitan-district-council/walsall ,WC149-624,30.04.2023,ADULT SOCIAL CARE,ALPHA HEALTH CARE LTD,11/04/2023,"3,398.04",6541-Residential EMI,THIRD PARTY PAYMENTS,PRIVATE CONTRACTOR,REVENUE
Walsall Council,http://opendatacommunities.org/id/metropolitan-district-council/walsall ,WC149-625,30.04.2023,ADULT SOCIAL CARE,ALPHA HEALTH CARE LTD,11/04/2023,"2,766.04",6541-Residential EMI,THIRD PARTY PAYMENTS,PRIVATE CONTRACTOR,REVENUE
Walsall Council,http://opendatacommunities.org/id/metropolitan-district-council/walsall ,WC149-626,30.04.2023,ADULT SOCIAL CARE,ALPHA HEALTH CARE LTD,11/04/2023,"2,366.04",6541-Residential EMI,THIRD PARTY PAYMENTS,PRIVATE CONTRACTOR,REVENUE
Walsall Council,http://opendatacommunities.org/id/metropolitan-district-council/walsall ,WC149-627,30.04.2023,ADULT SOCIAL CARE,ALPHA HEALTH CARE LTD,11/04/2023,"2,998.00",6541-Nursing,THIRD PARTY PAYMENTS,PRIVATE CONTRACTOR,REVENUE
Walsall Council,http://opendatacommunities.org/id/metropolitan-district-council/walsall ,WC149-628,30.04.2023,ADULT SOCIAL CARE,ALPHA HEALTH CARE LTD,11/04/2023,"3,667.80",6541-Nursing EMI,THIRD PARTY PAYMENTS,PRIVATE CONTRACTOR,REVENUE
Walsall Council,http://opendatacommunities.org/id/metropolitan-district-council/walsall ,WC149-629,30.04.2023,ADULT SOCIAL CARE,ALPHA HEALTH CARE LTD,11/04/2023,"1,503.40",6541-Residential,THIRD PARTY PAYMENTS,PRIVATE CONTRACTOR,REVENUE
Walsall Council,http://opendatacommunities.org/id/metropolitan-district-council/walsall ,WC149-630,30.04.2023,ADULT SOCIAL CARE,ALPHA HEALTH CARE LTD,11/04/2023,"3,958.52",6541-Residential,THIRD PARTY PAYMENTS,PRIVATE CONTRACTOR,REVENUE
Walsall Council,http://opendatacommunities.org/id/metropolitan-district-council/walsall ,WC149-631,30.04.2023,ADULT SOCIAL CARE,ALPHA HEALTH CARE LTD,11/04/2023,"3,980.00",6541-Residential EMI,THIRD PARTY PAYMENTS,PRIVATE CONTRACTOR,REVENUE
Walsall Council,http://opendatacommunities.org/id/metropolitan-district-council/walsall ,WC149-632,30.04.2023,ADULT SOCIAL CARE,ALPHA HEALTH CARE LTD,11/04/2023,"7,600.00",6541-Nursing EMI,THIRD PARTY PAYMENTS,PRIVATE CONTRACTOR,REVENUE
Walsall Council,http://opendatacommunities.org/id/metropolitan-district-council/walsall ,WC149-633,30.04.2023,ADULT SOCIAL CARE,ALPHA HEALTH CARE LTD,11/04/2023,"4,120.00",6541-Nursing EMI,THIRD PARTY PAYMENTS,PRIVATE CONTRACTOR,REVENUE
Walsall Council,http://opendatacommunities.org/id/metropolitan-district-council/walsall ,WC149-634,30.04.2023,ADULT SOCIAL CARE,ALPHA HEALTH CARE LTD,11/04/2023,"1,289.56",6541-Nursing,THIRD PARTY PAYMENTS,PRIVATE CONTRACTOR,REVENUE
Walsall Council,http://opendatacommunities.org/id/metropolitan-district-council/walsall ,WC149-635,30.04.2023,ADULT SOCIAL CARE,ALPHA HEALTH CARE LTD,11/04/2023,"3,090.44",6541-Residential,THIRD PARTY PAYMENTS,PRIVATE CONTRACTOR,REVENUE
Walsall Council,http://opendatacommunities.org/id/metropolitan-district-council/walsall ,WC149-636,30.04.2023,ADULT SOCIAL CARE,ALPHA HEALTH CARE LTD,11/04/2023,"3,520.00",6541-Residential EMI,THIRD PARTY PAYMENTS,PRIVATE CONTRACTOR,REVENUE
Walsall Council,http://opendatacommunities.org/id/metropolitan-district-council/walsall ,WC149-637,30.04.2023,ADULT SOCIAL CARE,ALPHA HEALTH CARE LTD,11/04/2023,"2,889.52",6541-Residential EMI,THIRD PARTY PAYMENTS,PRIVATE CONTRACTOR,REVENUE
Walsall Council,http://opendatacommunities.org/id/metropolitan-district-council/walsall ,WC149-638,30.04.2023,ADULT SOCIAL CARE,ALPHA HEALTH CARE LTD,11/04/2023,"1,920.00",6541-Nursing EMI,THIRD PARTY PAYMENTS,PRIVATE CONTRACTOR,REVENUE
Walsall Council,http://opendatacommunities.org/id/metropolitan-district-council/walsall ,WC149-639,30.04.2023,ADULT SOCIAL CARE,ALPHA HEALTH CARE LTD,11/04/2023,"2,994.26",6541-Nursing EMI,THIRD PARTY PAYMENTS,PRIVATE CONTRACTOR,REVENUE
Walsall Council,http://opendatacommunities.org/id/metropolitan-district-council/walsall ,WC149-640,30.04.2023,ADULT SOCIAL CARE,ALPHA HEALTH CARE LTD,11/04/2023,"6,343.36",6541-Residential,THIRD PARTY PAYMENTS,PRIVATE CONTRACTOR,REVENUE
Walsall Council,http://opendatacommunities.org/id/metropolitan-district-council/walsall ,WC149-641,30.04.2023,ADULT SOCIAL CARE,ALPHA HEALTH CARE LTD,11/04/2023,"7,105.00",6541-Residential,THIRD PARTY PAYMENTS,PRIVATE CONTRACTOR,REVENUE
Walsall Council,http://opendatacommunities.org/id/metropolitan-district-council/walsall ,WC149-642,30.04.2023,ADULT SOCIAL CARE,ALPHA HEALTH CARE LTD,11/04/2023,"3,374.96",6541-Residential EMI,THIRD PARTY PAYMENTS,PRIVATE CONTRACTOR,REVENUE
Walsall Council,http://opendatacommunities.org/id/metropolitan-district-council/walsall ,WC149-643,30.04.2023,ADULT SOCIAL CARE,ALPHA HEALTH CARE LTD,11/04/2023,"3,374.96",6541-Residential EMI,THIRD PARTY PAYMENTS,PRIVATE CONTRACTOR,REVENUE
Walsall Council,http://opendatacommunities.org/id/metropolitan-district-council/walsall ,WC149-644,30.04.2023,ADULT SOCIAL CARE,ALPHA HEALTH CARE LTD,11/04/2023,"3,085.88",6541-Nursing,THIRD PARTY PAYMENTS,PRIVATE CONTRACTOR,REVENUE
Walsall Council,http://opendatacommunities.org/id/metropolitan-district-council/walsall ,WC149-645,30.04.2023,ADULT SOCIAL CARE,ALPHA HEALTH CARE LTD,11/04/2023,"2,856.24",6541-Nursing,THIRD PARTY PAYMENTS,PRIVATE CONTRACTOR,REVENUE
Walsall Council,http://opendatacommunities.org/id/metropolitan-district-council/walsall ,WC149-646,30.04.2023,ADULT SOCIAL CARE,ALPHA HEALTH CARE LTD,11/04/2023,"2,366.04",6541-Residential EMI,THIRD PARTY PAYMENTS,PRIVATE CONTRACTOR,REVENUE
Walsall Council,http://opendatacommunities.org/id/metropolitan-district-council/walsall ,WC149-647,30.04.2023,ADULT SOCIAL CARE,ALPHA HEALTH CARE LTD,11/04/2023,"7,600.00",6541-Residential,THIRD PARTY PAYMENTS,PRIVATE CONTRACTOR,REVENUE
Walsall Council,http://opendatacommunities.org/id/metropolitan-district-council/walsall ,WC149-648,30.04.2023,ADULT SOCIAL CARE,ALPHA HEALTH CARE LTD,11/04/2023,"7,600.00",6541-Residential,THIRD PARTY PAYMENTS,PRIVATE CONTRACTOR,REVENUE
Walsall Council,http://opendatacommunities.org/id/metropolitan-district-council/walsall ,WC149-649,30.04.2023,ADULT SOCIAL CARE,ALPHA HEALTH CARE LTD,11/04/2023,"4,800.00",6541-Nursing EMI,THIRD PARTY PAYMENTS,PRIVATE CONTRACTOR,REVENUE
Walsall Council,http://opendatacommunities.org/id/metropolitan-district-council/walsall ,WC149-650,30.04.2023,ADULT SOCIAL CARE,ALPHA HEALTH CARE LTD,05/04/2023,"4,300.00",6541-Nursing,THIRD PARTY PAYMENTS,PRIVATE CONTRACTOR,REVENUE
Walsall Council,http://opendatacommunities.org/id/metropolitan-district-council/walsall ,WC149-651,30.04.2023,CHILDRENS,ALPHA TRAINING ACADEMY UK LTD,28/04/2023,"1,200.00",1187-Materials,SUPPLIES & SERVICES,EQUIPMENT FURNITURE & MATERIALS,REVENUE
Walsall Council,http://opendatacommunities.org/id/metropolitan-district-council/walsall ,WC149-652,30.04.2023,CHILDRENS,ALPHA TRAINING ACADEMY UK LTD,06/04/2023,"7,900.00",1220-Top Up Funding -Grants to Schools,SUPPLIES & SERVICES,GRANTS (EXP) & SUBSCRIPTIONS,REVENUE
Walsall Council,http://opendatacommunities.org/id/metropolitan-district-council/walsall ,WC149-653,30.04.2023,CHILDRENS,ALPHA TRAINING ACADEMY UK LTD,06/04/2023,444.88,1220-Top Up Funding -Grants to Schools,SUPPLIES & SERVICES,GRANTS (EXP) & SUBSCRIPTIONS,REVENUE
Walsall Council,http://opendatacommunities.org/id/metropolitan-district-council/walsall ,WC149-654,30.04.2023,ADULT SOCIAL CARE,REDACTED,05/04/2023,"-1,339.54",6541-Direct Payment,THIRD PARTY PAYMENTS,PRIVATE CONTRACTOR,REVENUE
Walsall Council,http://opendatacommunities.org/id/metropolitan-district-council/walsall ,WC149-655,30.04.2023,ADULT SOCIAL CARE,REDACTED,05/04/2023,"1,964.66",6541-Direct Payment,THIRD PARTY PAYMENTS,PRIVATE CONTRACTOR,REVENUE
Walsall Council,http://opendatacommunities.org/id/metropolitan-district-council/walsall ,WC149-656,30.04.2023,CHILDRENS,AMAH NURSERIES LIMITED T/A BANANA MOON WALSALL,17/04/2023,"9,670.05",1184-Other-Grants to Other Orgs,SUPPLIES & SERVICES,GRANTS (EXP) & SUBSCRIPTIONS,REVENUE
Walsall Council,http://opendatacommunities.org/id/metropolitan-district-council/walsall ,WC149-657,30.04.2023,CHILDRENS,AMAH NURSERIES LIMITED T/A BANANA MOON WALSALL,17/04/2023,"27,720.22",1184-Other-Grants to Other Orgs,SUPPLIES & SERVICES,GRANTS (EXP) & SUBSCRIPTIONS,REVENUE
Walsall Council,http://opendatacommunities.org/id/metropolitan-district-council/walsall ,WC149-658,30.04.2023,CHILDRENS,AMANS TRAVEL LTD,25/04/2023,"3,150.00",6241-Hire of Vehicle with Driver,TRANSPORT,DIRECT TRANSPORT COSTS,REVENUE
Walsall Council,http://opendatacommunities.org/id/metropolitan-district-council/walsall ,WC149-659,30.04.2023,CHILDRENS,AMANS TRAVEL LTD,25/04/2023,"2,025.00",6241-Hire of Vehicle with Driver,TRANSPORT,DIRECT TRANSPORT COSTS,REVENUE
Walsall Council,http://opendatacommunities.org/id/metropolitan-district-council/walsall ,WC149-660,30.04.2023,CHILDRENS,AMANS TRAVEL LTD,25/04/2023,"2,025.00",6241-Hire of Vehicle with Driver,TRANSPORT,DIRECT TRANSPORT COSTS,REVENUE
Walsall Council,http://opendatacommunities.org/id/metropolitan-district-council/walsall ,WC149-661,30.04.2023,CHILDRENS,AMANS TRAVEL LTD,25/04/2023,"2,850.00",6241-Hire of Vehicle with Driver,TRANSPORT,DIRECT TRANSPORT COSTS,REVENUE
Walsall Council,http://opendatacommunities.org/id/metropolitan-district-council/walsall ,WC149-662,30.04.2023,CHILDRENS,AMANS TRAVEL LTD,25/04/2023,"2,850.00",6241-Hire of Vehicle with Driver,TRANSPORT,DIRECT TRANSPORT COSTS,REVENUE
Walsall Council,http://opendatacommunities.org/id/metropolitan-district-council/walsall ,WC149-663,30.04.2023,ADULT SOCIAL CARE,REDACTED,05/04/2023,"1,837.68",6541-Direct Payment,THIRD PARTY PAYMENTS,PRIVATE CONTRACTOR,REVENUE
Walsall Council,http://opendatacommunities.org/id/metropolitan-district-council/walsall ,WC149-664,30.04.2023,ECONOMY & ENVIRONMENT CAPITAL,AMEY LG LIMITED,11/04/2023,282.13,7200-Consultants Fees,CAPITAL,"NEW CONSTRUCTION,CONVERSION & RENOVATION",CAPITAL
Walsall Council,http://opendatacommunities.org/id/metropolitan-district-council/walsall ,WC149-665,30.04.2023,ECONOMY & ENVIRONMENT CAPITAL,AMEY LG LIMITED,11/04/2023,"10,640.21",7200-Site Works Contractors,CAPITAL,"NEW CONSTRUCTION,CONVERSION & RENOVATION",CAPITAL
Walsall Council,http://opendatacommunities.org/id/metropolitan-district-council/walsall ,WC149-666,30.04.2023,ECONOMY & ENVIRONMENT CAPITAL,AMEY LG LIMITED,11/04/2023,"20,362.97",7200-Site Works Contractors,CAPITAL,"NEW CONSTRUCTION,CONVERSION & RENOVATION",CAPITAL
Walsall Council,http://opendatacommunities.org/id/metropolitan-district-council/walsall ,WC149-667,30.04.2023,ECONOMY & ENVIRONMENT CAPITAL,AMEY LG LIMITED,11/04/2023,"12,269.19",7200-Site Works Contractors,CAPITAL,"NEW CONSTRUCTION,CONVERSION & RENOVATION",CAPITAL
Walsall Council,http://opendatacommunities.org/id/metropolitan-district-council/walsall ,WC149-668,30.04.2023,ECONOMY & ENVIRONMENT CAPITAL,AMEY LG LIMITED,12/04/2023,749.58,7200-Site Works - Other Contractors,CAPITAL,"NEW CONSTRUCTION,CONVERSION & RENOVATION",CAPITAL
Walsall Council,http://opendatacommunities.org/id/metropolitan-district-council/walsall ,WC149-669,30.04.2023,ECONOMY & ENVIRONMENT CAPITAL,AMEY OW LTD,12/04/2023,"-26,138.40",7200-Project Fees,CAPITAL,"NEW CONSTRUCTION,CONVERSION & RENOVATION",CAPITAL
Walsall Council,http://opendatacommunities.org/id/metropolitan-district-council/walsall ,WC149-670,30.04.2023,ECONOMY & ENVIRONMENT CAPITAL,AMEY OW LTD,12/04/2023,"-4,155.34",7200-Project Fees,CAPITAL,"NEW CONSTRUCTION,CONVERSION & RENOVATION",CAPITAL
Walsall Council,http://opendatacommunities.org/id/metropolitan-district-council/walsall ,WC149-671,30.04.2023,ECONOMY & ENVIRONMENT CAPITAL,AMEY OW LTD,12/04/2023,"4,155.34",7200-Project Fees,CAPITAL,"NEW CONSTRUCTION,CONVERSION & RENOVATION",CAPITAL
Walsall Council,http://opendatacommunities.org/id/metropolitan-district-council/walsall ,WC149-672,30.04.2023,ECONOMY & ENVIRONMENT CAPITAL,AMEY OW LTD,12/04/2023,"26,138.40",7200-Project Fees,CAPITAL,"NEW CONSTRUCTION,CONVERSION & RENOVATION",CAPITAL
Walsall Council,http://opendatacommunities.org/id/metropolitan-district-council/walsall ,WC149-673,30.04.2023,ECONOMY & ENVIRONMENT CAPITAL,AMEY OW LTD,12/04/2023,"30,293.74",7200-Project Fees,CAPITAL,"NEW CONSTRUCTION,CONVERSION & RENOVATION",CAPITAL
Walsall Council,http://opendatacommunities.org/id/metropolitan-district-council/walsall ,WC149-674,30.04.2023,ECONOMY & ENVIRONMENT CAPITAL,AMEY OW LTD,12/04/2023,"9,942.55",7200-Site Works Contractors,CAPITAL,"NEW CONSTRUCTION,CONVERSION & RENOVATION",CAPITAL
Walsall Council,http://opendatacommunities.org/id/metropolitan-district-council/walsall ,WC149-675,30.04.2023,ECONOMY & ENVIRONMENT CAPITAL,AMEY OW LTD,12/04/2023,"6,821.30",7200-Project Fees,CAPITAL,"NEW CONSTRUCTION,CONVERSION & RENOVATION",CAPITAL
Walsall Council,http://opendatacommunities.org/id/metropolitan-district-council/walsall ,WC149-676,30.04.2023,"ECONOMY, ENVIRONMENT & COMMUNITIES",AMEY OW LTD,18/04/2023,"23,344.10",6411-Professional Fees & Services,SUPPLIES & SERVICES,SERVICES,REVENUE
Walsall Council,http://opendatacommunities.org/id/metropolitan-district-council/walsall ,WC149-677,30.04.2023,CHILDRENS,AMG NURSING CARE SERVICES,12/04/2023,406.60,6220-Professional Fees & Services,SUPPLIES & SERVICES,SERVICES,REVENUE
Walsall Council,http://opendatacommunities.org/id/metropolitan-district-council/walsall ,WC149-678,30.04.2023,CHILDRENS,AMG NURSING CARE SERVICES,12/04/2023,327.45,6220-Professional Fees & Services,SUPPLIES & SERVICES,SERVICES,REVENUE
Walsall Council,http://opendatacommunities.org/id/metropolitan-district-council/walsall ,WC149-679,30.04.2023,CHILDRENS,AMG NURSING CARE SERVICES,14/04/2023,461.00,6220-Professional Fees & Services,SUPPLIES & SERVICES,SERVICES,REVENUE
Walsall Council,http://opendatacommunities.org/id/metropolitan-district-council/walsall ,WC149-680,30.04.2023,CHILDRENS,AMG NURSING CARE SERVICES,14/04/2023,396.25,6220-Professional Fees & Services,SUPPLIES & SERVICES,SERVICES,REVENUE
Walsall Council,http://opendatacommunities.org/id/metropolitan-district-council/walsall ,WC149-681,30.04.2023,CHILDRENS,AMG NURSING CARE SERVICES,20/04/2023,461.00,6220-Professional Fees & Services,SUPPLIES & SERVICES,SERVICES,REVENUE
Walsall Council,http://opendatacommunities.org/id/metropolitan-district-council/walsall ,WC149-682,30.04.2023,CHILDRENS,AMG NURSING CARE SERVICES,24/04/2023,442.75,6220-Professional Fees & Services,SUPPLIES & SERVICES,SERVICES,REVENUE
Walsall Council,http://opendatacommunities.org/id/metropolitan-district-council/walsall ,WC149-683,30.04.2023,CHILDRENS,AMG NURSING CARE SERVICES,28/04/2023,406.60,6220-Professional Fees & Services,SUPPLIES & SERVICES,SERVICES,REVENUE
Walsall Council,http://opendatacommunities.org/id/metropolitan-district-council/walsall ,WC149-684,30.04.2023,CHILDRENS,AMG NURSING CARE SERVICES,28/04/2023,442.75,6220-Professional Fees & Services,SUPPLIES & SERVICES,SERVICES,REVENUE
Walsall Council,http://opendatacommunities.org/id/metropolitan-district-council/walsall ,WC149-685,30.04.2023,CHILDRENS,REDACTED,04/04/2023,634.20,6223-Foster Carers Maintenance Allowance,TRANSFER PAYMENTS,CHILDREN SOCIAL SERVICES CLIENT,REVENUE
Walsall Council,http://opendatacommunities.org/id/metropolitan-district-council/walsall ,WC149-686,30.04.2023,CHILDRENS,REDACTED,04/04/2023,374.00,6223-Internal Foster Carers-Carer Fees,TRANSFER PAYMENTS,CHILDREN SOCIAL SERVICES CLIENT,REVENUE
Walsall Council,http://opendatacommunities.org/id/metropolitan-district-council/walsall ,WC149-687,30.04.2023,CHILDRENS,REDACTED,14/04/2023,"5,200.00",6223-Internal Foster Carers-Carer Fees,TRANSFER PAYMENTS,CHILDREN SOCIAL SERVICES CLIENT,REVENUE
Walsall Council,http://opendatacommunities.org/id/metropolitan-district-council/walsall ,WC149-688,30.04.2023,ADULT SOCIAL CARE,ANCHOR CAREHOMES LTD - HARDEN HALL,11/04/2023,"2,366.04",6541-Residential EMI,THIRD PARTY PAYMENTS,PRIVATE CONTRACTOR,REVENUE
Walsall Council,http://opendatacommunities.org/id/metropolitan-district-council/walsall ,WC149-689,30.04.2023,ADULT SOCIAL CARE,ANCHOR CAREHOMES LTD - HARDEN HALL,11/04/2023,"2,366.04",6541-Residential EMI,THIRD PARTY PAYMENTS,PRIVATE CONTRACTOR,REVENUE
Walsall Council,http://opendatacommunities.org/id/metropolitan-district-council/walsall ,WC149-690,30.04.2023,ADULT SOCIAL CARE,ANCHOR CAREHOMES LTD - HARDEN HALL,11/04/2023,"2,366.04",6541-Residential EMI,THIRD PARTY PAYMENTS,PRIVATE CONTRACTOR,REVENUE
Walsall Council,http://opendatacommunities.org/id/metropolitan-district-council/walsall ,WC149-691,30.04.2023,ADULT SOCIAL CARE,ANCHOR CAREHOMES LTD - HARDEN HALL,11/04/2023,"2,366.04",6541-Residential EMI,THIRD PARTY PAYMENTS,PRIVATE CONTRACTOR,REVENUE
Walsall Council,http://opendatacommunities.org/id/metropolitan-district-council/walsall ,WC149-692,30.04.2023,ADULT SOCIAL CARE,ANCHOR CAREHOMES LTD - HARDEN HALL,11/04/2023,"2,366.04",6541-Residential EMI,THIRD PARTY PAYMENTS,PRIVATE CONTRACTOR,REVENUE
Walsall Council,http://opendatacommunities.org/id/metropolitan-district-council/walsall ,WC149-693,30.04.2023,ADULT SOCIAL CARE,ANCHOR CAREHOMES LTD - HARDEN HALL,11/04/2023,"2,366.04",6541-Residential EMI,THIRD PARTY PAYMENTS,PRIVATE CONTRACTOR,REVENUE
Walsall Council,http://opendatacommunities.org/id/metropolitan-district-council/walsall ,WC149-694,30.04.2023,ADULT SOCIAL CARE,ANCHOR CAREHOMES LTD - HARDEN HALL,11/04/2023,"2,566.04",6541-Residential EMI,THIRD PARTY PAYMENTS,PRIVATE CONTRACTOR,REVENUE
Walsall Council,http://opendatacommunities.org/id/metropolitan-district-council/walsall ,WC149-695,30.04.2023,ADULT SOCIAL CARE,ANCHOR CAREHOMES LTD - HARDEN HALL,11/04/2023,"1,466.31",6541-Residential EMI,THIRD PARTY PAYMENTS,PRIVATE CONTRACTOR,REVENUE
Walsall Council,http://opendatacommunities.org/id/metropolitan-district-council/walsall ,WC149-696,30.04.2023,ADULT SOCIAL CARE,ANCHOR CAREHOMES LTD - HARDEN HALL,11/04/2023,972.86,6541-Residential,THIRD PARTY PAYMENTS,PRIVATE CONTRACTOR,REVENUE
Walsall Council,http://opendatacommunities.org/id/metropolitan-district-council/walsall ,WC149-697,30.04.2023,ADULT SOCIAL CARE,ANCHOR CAREHOMES LTD - HARDEN HALL,11/04/2023,973.58,6541-Residential EMI,THIRD PARTY PAYMENTS,PRIVATE CONTRACTOR,REVENUE
Walsall Council,http://opendatacommunities.org/id/metropolitan-district-council/walsall ,WC149-698,30.04.2023,ADULT SOCIAL CARE,ANCHOR CAREHOMES LTD - HARDEN HALL,11/04/2023,"2,726.04",6541-Residential EMI,THIRD PARTY PAYMENTS,PRIVATE CONTRACTOR,REVENUE
Walsall Council,http://opendatacommunities.org/id/metropolitan-district-council/walsall ,WC149-699,30.04.2023,ADULT SOCIAL CARE,ANCHOR CAREHOMES LTD - HARDEN HALL,11/04/2023,"2,415.18",6541-Residential EMI,THIRD PARTY PAYMENTS,PRIVATE CONTRACTOR,REVENUE
Walsall Council,http://opendatacommunities.org/id/metropolitan-district-council/walsall ,WC149-700,30.04.2023,ADULT SOCIAL CARE,ANCHOR CAREHOMES LTD - HARDEN HALL,11/04/2023,"2,726.04",6541-Residential EMI,THIRD PARTY PAYMENTS,PRIVATE CONTRACTOR,REVENUE
Walsall Council,http://opendatacommunities.org/id/metropolitan-district-council/walsall ,WC149-701,30.04.2023,ADULT SOCIAL CARE,ANCHOR CAREHOMES LTD - HARDEN HALL,11/04/2023,"2,366.04",6541-Residential EMI,THIRD PARTY PAYMENTS,PRIVATE CONTRACTOR,REVENUE
Walsall Council,http://opendatacommunities.org/id/metropolitan-district-council/walsall ,WC149-702,30.04.2023,ADULT SOCIAL CARE,ANCHOR CAREHOMES LTD - HARDEN HALL,11/04/2023,"2,366.04",6541-Residential EMI,THIRD PARTY PAYMENTS,PRIVATE CONTRACTOR,REVENUE
Walsall Council,http://opendatacommunities.org/id/metropolitan-district-council/walsall ,WC149-703,30.04.2023,ADULT SOCIAL CARE,ANCHOR CAREHOMES LTD - HARDEN HALL,11/04/2023,"2,646.04",6541-Residential EMI,THIRD PARTY PAYMENTS,PRIVATE CONTRACTOR,REVENUE
Walsall Council,http://opendatacommunities.org/id/metropolitan-district-council/walsall ,WC149-704,30.04.2023,ADULT SOCIAL CARE,ANCHOR CAREHOMES LTD - HARDEN HALL,11/04/2023,"2,095.40",6541-Residential,THIRD PARTY PAYMENTS,PRIVATE CONTRACTOR,REVENUE
Walsall Council,http://opendatacommunities.org/id/metropolitan-district-council/walsall ,WC149-705,30.04.2023,ADULT SOCIAL CARE,ANCHOR CAREHOMES LTD - HARDEN HALL,11/04/2023,"2,366.04",6541-Residential EMI,THIRD PARTY PAYMENTS,PRIVATE CONTRACTOR,REVENUE
Walsall Council,http://opendatacommunities.org/id/metropolitan-district-council/walsall ,WC149-706,30.04.2023,ADULT SOCIAL CARE,ANCHOR CAREHOMES LTD - HARDEN HALL,11/04/2023,"2,366.04",6541-Residential EMI,THIRD PARTY PAYMENTS,PRIVATE CONTRACTOR,REVENUE
Walsall Council,http://opendatacommunities.org/id/metropolitan-district-council/walsall ,WC149-707,30.04.2023,ADULT SOCIAL CARE,ANCHOR CAREHOMES LTD - HARDEN HALL,11/04/2023,"2,726.04",6541-Residential EMI,THIRD PARTY PAYMENTS,PRIVATE CONTRACTOR,REVENUE
Walsall Council,http://opendatacommunities.org/id/metropolitan-district-council/walsall ,WC149-708,30.04.2023,ADULT SOCIAL CARE,ANCHOR CAREHOMES LTD - HARDEN HALL,11/04/2023,"-22,197.76",6541-Residential EMI,THIRD PARTY PAYMENTS,PRIVATE CONTRACTOR,REVENUE
Walsall Council,http://opendatacommunities.org/id/metropolitan-district-council/walsall ,WC149-709,30.04.2023,ADULT SOCIAL CARE,ANCHOR CAREHOMES LTD - HARDEN HALL,11/04/2023,"2,095.40",6541-Residential,THIRD PARTY PAYMENTS,PRIVATE CONTRACTOR,REVENUE
Walsall Council,http://opendatacommunities.org/id/metropolitan-district-council/walsall ,WC149-710,30.04.2023,ADULT SOCIAL CARE,ANCHOR CAREHOMES LTD - HARDEN HALL,11/04/2023,"2,726.04",6541-Residential EMI,THIRD PARTY PAYMENTS,PRIVATE CONTRACTOR,REVENUE
Walsall Council,http://opendatacommunities.org/id/metropolitan-district-council/walsall ,WC149-711,30.04.2023,ADULT SOCIAL CARE,ANCHOR CAREHOMES LTD - HARDEN HALL,11/04/2023,"2,455.40",6541-Residential,THIRD PARTY PAYMENTS,PRIVATE CONTRACTOR,REVENUE
Walsall Council,http://opendatacommunities.org/id/metropolitan-district-council/walsall ,WC149-712,30.04.2023,ADULT SOCIAL CARE,ANCHOR CAREHOMES LTD - HARDEN HALL,11/04/2023,"2,726.04",6541-Residential EMI,THIRD PARTY PAYMENTS,PRIVATE CONTRACTOR,REVENUE
Walsall Council,http://opendatacommunities.org/id/metropolitan-district-council/walsall ,WC149-713,30.04.2023,ADULT SOCIAL CARE,ANCHOR CAREHOMES LTD - HARDEN HALL,11/04/2023,"2,095.40",6541-Residential,THIRD PARTY PAYMENTS,PRIVATE CONTRACTOR,REVENUE
Walsall Council,http://opendatacommunities.org/id/metropolitan-district-council/walsall ,WC149-714,30.04.2023,ADULT SOCIAL CARE,ANCHOR CAREHOMES LTD - HARDEN HALL,11/04/2023,"2,698.04",6541-Residential EMI,THIRD PARTY PAYMENTS,PRIVATE CONTRACTOR,REVENUE
Walsall Council,http://opendatacommunities.org/id/metropolitan-district-council/walsall ,WC149-715,30.04.2023,ADULT SOCIAL CARE,ANCHOR CAREHOMES LTD - HARDEN HALL,11/04/2023,"2,726.04",6541-Residential EMI,THIRD PARTY PAYMENTS,PRIVATE CONTRACTOR,REVENUE
Walsall Council,http://opendatacommunities.org/id/metropolitan-district-council/walsall ,WC149-716,30.04.2023,ADULT SOCIAL CARE,ANCHOR CAREHOMES LTD - HARDEN HALL,11/04/2023,"2,548.00",6541-Residential EMI,THIRD PARTY PAYMENTS,PRIVATE CONTRACTOR,REVENUE
Walsall Council,http://opendatacommunities.org/id/metropolitan-district-council/walsall ,WC149-717,30.04.2023,ADULT SOCIAL CARE,ANCHOR CAREHOMES LTD - HARDEN HALL,11/04/2023,"1,752.46",6541-Residential EMI,THIRD PARTY PAYMENTS,PRIVATE CONTRACTOR,REVENUE
Walsall Council,http://opendatacommunities.org/id/metropolitan-district-council/walsall ,WC149-718,30.04.2023,ADULT SOCIAL CARE,ANCHOR CAREHOMES LTD - HARDEN HALL,11/04/2023,760.51,6541-Residential EMI,THIRD PARTY PAYMENTS,PRIVATE CONTRACTOR,REVENUE
Walsall Council,http://opendatacommunities.org/id/metropolitan-district-council/walsall ,WC149-719,30.04.2023,ADULT SOCIAL CARE,ANCHOR HANOVER GROUP - BLOOMFIELD COURT,11/04/2023,"2,366.04",6541-Residential EMI,THIRD PARTY PAYMENTS,PRIVATE CONTRACTOR,REVENUE
Walsall Council,http://opendatacommunities.org/id/metropolitan-district-council/walsall ,WC149-720,30.04.2023,CHILDRENS,REDACTED,04/04/2023,346.17,6223-Special Guardianship Orders,TRANSFER PAYMENTS,CHILDREN SOCIAL SERVICES CLIENT,REVENUE
Walsall Council,http://opendatacommunities.org/id/metropolitan-district-council/walsall ,WC149-721,30.04.2023,CHILDRENS,REDACTED,13/04/2023,389.14,6223-Higher Education Entitlements,TRANSFER PAYMENTS,CHILDREN SOCIAL SERVICES CLIENT,REVENUE
Walsall Council,http://opendatacommunities.org/id/metropolitan-district-council/walsall ,WC149-722,30.04.2023,ADULT SOCIAL CARE,REDACTED,05/04/2023,748.80,6541-Direct Payment,THIRD PARTY PAYMENTS,PRIVATE CONTRACTOR,REVENUE
Walsall Council,http://opendatacommunities.org/id/metropolitan-district-council/walsall ,WC149-723,30.04.2023,ADULT SOCIAL CARE,REDACTED,05/04/2023,"2,811.84",6541-Direct Payment,THIRD PARTY PAYMENTS,PRIVATE CONTRACTOR,REVENUE
Walsall Council,http://opendatacommunities.org/id/metropolitan-district-council/walsall ,WC149-724,30.04.2023,CHILDRENS CAPITAL,ANDREWS ELECTRICAL LTD,20/04/2023,456.00,7155-Site Works Contractors,CAPITAL,"NEW CONSTRUCTION,CONVERSION & RENOVATION",CAPITAL
Walsall Council,http://opendatacommunities.org/id/metropolitan-district-council/walsall ,WC149-725,30.04.2023,CHILDRENS CAPITAL,ANDREWS ELECTRICAL LTD,20/04/2023,"3,250.00",7155-Site Works Contractors,CAPITAL,"NEW CONSTRUCTION,CONVERSION & RENOVATION",CAPITAL
Walsall Council,http://opendatacommunities.org/id/metropolitan-district-council/walsall ,WC149-726,30.04.2023,CHILDRENS CAPITAL,ANDREWS ELECTRICAL LTD,24/04/2023,"2,160.00",7155-Site Works Contractors,CAPITAL,"NEW CONSTRUCTION,CONVERSION & RENOVATION",CAPITAL
Walsall Council,http://opendatacommunities.org/id/metropolitan-district-council/walsall ,WC149-727,30.04.2023,CHILDRENS CAPITAL,ANDREWS ELECTRICAL LTD,21/04/2023,"27,680.00",7155-Site Works Contractors,CAPITAL,"NEW CONSTRUCTION,CONVERSION & RENOVATION",CAPITAL
Walsall Council,http://opendatacommunities.org/id/metropolitan-district-council/walsall ,WC149-728,30.04.2023,CHILDRENS CAPITAL,ANDREWS ELECTRICAL LTD,21/04/2023,"4,160.00",7155-Site Works Contractors,CAPITAL,"NEW CONSTRUCTION,CONVERSION & RENOVATION",CAPITAL
Walsall Council,http://opendatacommunities.org/id/metropolitan-district-council/walsall ,WC149-729,30.04.2023,CHILDRENS,REDACTED,04/04/2023,320.30,6223-Special Guardianship Orders,TRANSFER PAYMENTS,CHILDREN SOCIAL SERVICES CLIENT,REVENUE
Walsall Council,http://opendatacommunities.org/id/metropolitan-district-council/walsall ,WC149-730,30.04.2023,CHILDRENS,REDACTED,04/04/2023,391.93,6223-Special Guardianship Orders,TRANSFER PAYMENTS,CHILDREN SOCIAL SERVICES CLIENT,REVENUE
Walsall Council,http://opendatacommunities.org/id/metropolitan-district-council/walsall ,WC149-731,30.04.2023,CHILDRENS,REDACTED,04/04/2023,342.61,6223-Special Guardianship Orders,TRANSFER PAYMENTS,CHILDREN SOCIAL SERVICES CLIENT,REVENUE
Walsall Council,http://opendatacommunities.org/id/metropolitan-district-council/walsall ,WC149-732,30.04.2023,CHILDRENS,ANGELS AND BUTTERFLIES CHILDMINDING,17/04/2023,805.84,1184-Other-Grants to Other Orgs,SUPPLIES & SERVICES,GRANTS (EXP) & SUBSCRIPTIONS,REVENUE
Walsall Council,http://opendatacommunities.org/id/metropolitan-district-council/walsall ,WC149-733,30.04.2023,CHILDRENS,ANGELS AND BUTTERFLIES CHILDMINDING,17/04/2023,"5,686.20",1184-Other-Grants to Other Orgs,SUPPLIES & SERVICES,GRANTS (EXP) & SUBSCRIPTIONS,REVENUE
Walsall Council,http://opendatacommunities.org/id/metropolitan-district-council/walsall ,WC149-734,30.04.2023,ADULT SOCIAL CARE,REDACTED,05/04/2023,706.68,6541-Direct Payment,THIRD PARTY PAYMENTS,PRIVATE CONTRACTOR,REVENUE
Walsall Council,http://opendatacommunities.org/id/metropolitan-district-council/walsall ,WC149-735,30.04.2023,CHILDRENS,REDACTED,04/04/2023,374.00,6223-Internal Foster Carers-Carer Fees,TRANSFER PAYMENTS,CHILDREN SOCIAL SERVICES CLIENT,REVENUE
Walsall Council,http://opendatacommunities.org/id/metropolitan-district-council/walsall ,WC149-736,30.04.2023,CHILDRENS,REDACTED,04/04/2023,735.27,6223-Foster Carers Maintenance Allowance,TRANSFER PAYMENTS,CHILDREN SOCIAL SERVICES CLIENT,REVENUE
Walsall Council,http://opendatacommunities.org/id/metropolitan-district-council/walsall ,WC149-737,30.04.2023,CHILDRENS,ANNA JARDINE HOLISTIC THERAPIES,11/04/2023,477.50,6211-Professional Fees & Services,SUPPLIES & SERVICES,SERVICES,REVENUE
Walsall Council,http://opendatacommunities.org/id/metropolitan-district-council/walsall ,WC149-738,30.04.2023,ADULT SOCIAL CARE,REDACTED,05/04/2023,568.48,6541-Direct Payment,THIRD PARTY PAYMENTS,PRIVATE CONTRACTOR,REVENUE
Walsall Council,http://opendatacommunities.org/id/metropolitan-district-council/walsall ,WC149-739,30.04.2023,CHILDRENS,REDACTED,04/04/2023,475.31,6223-Special Guardianship Orders,TRANSFER PAYMENTS,CHILDREN SOCIAL SERVICES CLIENT,REVENUE
Walsall Council,http://opendatacommunities.org/id/metropolitan-district-council/walsall ,WC149-740,30.04.2023,ADULT SOCIAL CARE,ANSON COURT RESIDENTIAL HOME,11/04/2023,"2,366.04",6541-Residential EMI,THIRD PARTY PAYMENTS,PRIVATE CONTRACTOR,REVENUE
Walsall Council,http://opendatacommunities.org/id/metropolitan-district-council/walsall ,WC149-741,30.04.2023,ADULT SOCIAL CARE,ANSON COURT RESIDENTIAL HOME,11/04/2023,"2,215.40",6541-Residential,THIRD PARTY PAYMENTS,PRIVATE CONTRACTOR,REVENUE
Walsall Council,http://opendatacommunities.org/id/metropolitan-district-council/walsall ,WC149-742,30.04.2023,ADULT SOCIAL CARE,ANSON COURT RESIDENTIAL HOME,11/04/2023,"2,095.40",6541-Residential,THIRD PARTY PAYMENTS,PRIVATE CONTRACTOR,REVENUE
Walsall Council,http://opendatacommunities.org/id/metropolitan-district-council/walsall ,WC149-743,30.04.2023,ADULT SOCIAL CARE,ANSON COURT RESIDENTIAL HOME,11/04/2023,"2,366.04",6541-Residential EMI,THIRD PARTY PAYMENTS,PRIVATE CONTRACTOR,REVENUE
Walsall Council,http://opendatacommunities.org/id/metropolitan-district-council/walsall ,WC149-744,30.04.2023,ADULT SOCIAL CARE,ANSON COURT RESIDENTIAL HOME,11/04/2023,760.51,6541-Residential EMI,THIRD PARTY PAYMENTS,PRIVATE CONTRACTOR,REVENUE
Walsall Council,http://opendatacommunities.org/id/metropolitan-district-council/walsall ,WC149-745,30.04.2023,ADULT SOCIAL CARE,ANSON COURT RESIDENTIAL HOME,11/04/2023,"2,366.04",6541-Residential EMI,THIRD PARTY PAYMENTS,PRIVATE CONTRACTOR,REVENUE
Walsall Council,http://opendatacommunities.org/id/metropolitan-district-council/walsall ,WC149-746,30.04.2023,ADULT SOCIAL CARE,ANSON COURT RESIDENTIAL HOME,11/04/2023,"4,647.58",6541-Residential EMI,THIRD PARTY PAYMENTS,PRIVATE CONTRACTOR,REVENUE
Walsall Council,http://opendatacommunities.org/id/metropolitan-district-council/walsall ,WC149-747,30.04.2023,ADULT SOCIAL CARE,ANSON COURT RESIDENTIAL HOME,11/04/2023,"-5,830.60",6541-Residential EMI,THIRD PARTY PAYMENTS,PRIVATE CONTRACTOR,REVENUE
Walsall Council,http://opendatacommunities.org/id/metropolitan-district-council/walsall ,WC149-748,30.04.2023,ADULT SOCIAL CARE,ANSON COURT RESIDENTIAL HOME,11/04/2023,"2,366.04",6541-Residential EMI,THIRD PARTY PAYMENTS,PRIVATE CONTRACTOR,REVENUE
Walsall Council,http://opendatacommunities.org/id/metropolitan-district-council/walsall ,WC149-749,30.04.2023,ADULT SOCIAL CARE,ANSON COURT RESIDENTIAL HOME,11/04/2023,"2,366.04",6541-Residential EMI,THIRD PARTY PAYMENTS,PRIVATE CONTRACTOR,REVENUE
Walsall Council,http://opendatacommunities.org/id/metropolitan-district-council/walsall ,WC149-750,30.04.2023,ADULT SOCIAL CARE,ANSON COURT RESIDENTIAL HOME,11/04/2023,"2,366.04",6541-Residential EMI,THIRD PARTY PAYMENTS,PRIVATE CONTRACTOR,REVENUE
Walsall Council,http://opendatacommunities.org/id/metropolitan-district-council/walsall ,WC149-751,30.04.2023,ADULT SOCIAL CARE,ANSON COURT RESIDENTIAL HOME,11/04/2023,"2,366.04",6541-Residential EMI,THIRD PARTY PAYMENTS,PRIVATE CONTRACTOR,REVENUE
Walsall Council,http://opendatacommunities.org/id/metropolitan-district-council/walsall ,WC149-752,30.04.2023,ADULT SOCIAL CARE,ANSON COURT RESIDENTIAL HOME,11/04/2023,"2,366.04",6541-Residential EMI,THIRD PARTY PAYMENTS,PRIVATE CONTRACTOR,REVENUE
Walsall Council,http://opendatacommunities.org/id/metropolitan-district-council/walsall ,WC149-753,30.04.2023,ADULT SOCIAL CARE,ANSON COURT RESIDENTIAL HOME,11/04/2023,591.51,6541-Residential EMI,THIRD PARTY PAYMENTS,PRIVATE CONTRACTOR,REVENUE
Walsall Council,http://opendatacommunities.org/id/metropolitan-district-council/walsall ,WC149-754,30.04.2023,ADULT SOCIAL CARE,ANSON COURT RESIDENTIAL HOME,11/04/2023,"2,366.04",6541-Residential EMI,THIRD PARTY PAYMENTS,PRIVATE CONTRACTOR,REVENUE
Walsall Council,http://opendatacommunities.org/id/metropolitan-district-council/walsall ,WC149-755,30.04.2023,ADULT SOCIAL CARE,ANSON COURT RESIDENTIAL HOME,11/04/2023,"2,366.04",6541-Residential EMI,THIRD PARTY PAYMENTS,PRIVATE CONTRACTOR,REVENUE
Walsall Council,http://opendatacommunities.org/id/metropolitan-district-council/walsall ,WC149-756,30.04.2023,ADULT SOCIAL CARE,ANSON COURT RESIDENTIAL HOME,11/04/2023,"4,647.58",6541-Residential EMI,THIRD PARTY PAYMENTS,PRIVATE CONTRACTOR,REVENUE
Walsall Council,http://opendatacommunities.org/id/metropolitan-district-council/walsall ,WC149-757,30.04.2023,ADULT SOCIAL CARE,REDACTED,05/04/2023,"1,018.08",6541-Direct Payment,THIRD PARTY PAYMENTS,PRIVATE CONTRACTOR,REVENUE
Walsall Council,http://opendatacommunities.org/id/metropolitan-district-council/walsall ,WC149-758,30.04.2023,CHILDRENS,REDACTED,04/04/2023,362.53,6223-Special Guardianship Orders,TRANSFER PAYMENTS,CHILDREN SOCIAL SERVICES CLIENT,REVENUE
Walsall Council,http://opendatacommunities.org/id/metropolitan-district-council/walsall ,WC149-759,30.04.2023,"ECONOMY, ENVIRONMENT & COMMUNITIES",APCOA PARKING SERVICES (UK) LTD,04/04/2023,"62,964.04",6411-Parking Enforcement Activity-Priv Contractor Fees,THIRD PARTY PAYMENTS,PRIVATE CONTRACTOR,REVENUE
Walsall Council,http://opendatacommunities.org/id/metropolitan-district-council/walsall ,WC149-760,30.04.2023,RESOURCES AND TRANSFORMATION,APCOA PARKING SERVICES (UK) LTD,04/04/2023,-944.46,6634-Oxygen Finance Rebates ,SUPPLIES & SERVICES,SERVICES,REVENUE
Walsall Council,http://opendatacommunities.org/id/metropolitan-district-council/walsall ,WC149-761,30.04.2023,CHILDRENS,APP CARZ,27/04/2023,788.00,6314-Other Travel Allowances,TRANSPORT,CAR ALLOWANCES,REVENUE
Walsall Council,http://opendatacommunities.org/id/metropolitan-district-council/walsall ,WC149-762,30.04.2023,CHILDRENS,APP CARZ,25/04/2023,"2,040.00",6241-Hire of Vehicle with Driver,TRANSPORT,DIRECT TRANSPORT COSTS,REVENUE
Walsall Council,http://opendatacommunities.org/id/metropolitan-district-council/walsall ,WC149-763,30.04.2023,CHILDRENS,APP CARZ,25/04/2023,"1,350.00",6241-Hire of Vehicle with Driver,TRANSPORT,DIRECT TRANSPORT COSTS,REVENUE
Walsall Council,http://opendatacommunities.org/id/metropolitan-district-council/walsall ,WC149-764,30.04.2023,CHILDRENS,APP CARZ,25/04/2023,975.00,6241-Hire of Vehicle with Driver,TRANSPORT,DIRECT TRANSPORT COSTS,REVENUE
Walsall Council,http://opendatacommunities.org/id/metropolitan-district-council/walsall ,WC149-765,30.04.2023,CHILDRENS,APP CARZ,25/04/2023,"1,950.00",6241-Hire of Vehicle with Driver,TRANSPORT,DIRECT TRANSPORT COSTS,REVENUE
Walsall Council,http://opendatacommunities.org/id/metropolitan-district-council/walsall ,WC149-766,30.04.2023,CHILDRENS,APP CARZ,25/04/2023,"1,500.00",6241-Hire of Vehicle with Driver,TRANSPORT,DIRECT TRANSPORT COSTS,REVENUE
Walsall Council,http://opendatacommunities.org/id/metropolitan-district-council/walsall ,WC149-767,30.04.2023,CHILDRENS,APP CARZ,25/04/2023,"1,575.00",6241-Hire of Vehicle with Driver,TRANSPORT,DIRECT TRANSPORT COSTS,REVENUE
Walsall Council,http://opendatacommunities.org/id/metropolitan-district-council/walsall ,WC149-768,30.04.2023,CHILDRENS,APP CARZ,25/04/2023,"1,380.00",6241-Hire of Vehicle with Driver,TRANSPORT,DIRECT TRANSPORT COSTS,REVENUE
Walsall Council,http://opendatacommunities.org/id/metropolitan-district-council/walsall ,WC149-769,30.04.2023,CHILDRENS,APP CARZ,25/04/2023,"1,080.00",6241-Hire of Vehicle with Driver,TRANSPORT,DIRECT TRANSPORT COSTS,REVENUE
Walsall Council,http://opendatacommunities.org/id/metropolitan-district-council/walsall ,WC149-770,30.04.2023,CHILDRENS,APP CARZ,25/04/2023,528.00,6241-Hire of Vehicle with Driver,TRANSPORT,DIRECT TRANSPORT COSTS,REVENUE
Walsall Council,http://opendatacommunities.org/id/metropolitan-district-council/walsall ,WC149-771,30.04.2023,CHILDRENS,APP CARZ,25/04/2023,540.00,6241-Hire of Vehicle with Driver,TRANSPORT,DIRECT TRANSPORT COSTS,REVENUE
Walsall Council,http://opendatacommunities.org/id/metropolitan-district-council/walsall ,WC149-772,30.04.2023,"ECONOMY, ENVIRONMENT & COMMUNITIES",APSE 001,28/04/2023,"3,476.00",6315-Subscriptions,SUPPLIES & SERVICES,GRANTS (EXP) & SUBSCRIPTIONS,REVENUE
Walsall Council,http://opendatacommunities.org/id/metropolitan-district-council/walsall ,WC149-773,30.04.2023,"ECONOMY, ENVIRONMENT & COMMUNITIES",AQUA FORCE SPECIAL WASTE LTD,06/04/2023,925.00,6410-Hazardous Waste Removal & Disposal,THIRD PARTY PAYMENTS,PRIVATE CONTRACTOR,REVENUE
Walsall Council,http://opendatacommunities.org/id/metropolitan-district-council/walsall ,WC149-774,30.04.2023,"ECONOMY, ENVIRONMENT & COMMUNITIES",AQUAMO LTD,19/04/2023,560.00,6413-Repair & Maintenance of Furniture & Equipment,SUPPLIES & SERVICES,EQUIPMENT FURNITURE & MATERIALS,REVENUE
Walsall Council,http://opendatacommunities.org/id/metropolitan-district-council/walsall ,WC149-775,30.04.2023,"ECONOMY, ENVIRONMENT & COMMUNITIES",AQUAMO LTD,28/04/2023,379.00,6413-Materials,SUPPLIES & SERVICES,EQUIPMENT FURNITURE & MATERIALS,REVENUE
Walsall Council,http://opendatacommunities.org/id/metropolitan-district-council/walsall ,WC149-776,30.04.2023,"ECONOMY, ENVIRONMENT & COMMUNITIES",AQUILA TRUCK CENTRES LTD,03/04/2023,478.32,6410-Materials,SUPPLIES & SERVICES,EQUIPMENT FURNITURE & MATERIALS,REVENUE
Walsall Council,http://opendatacommunities.org/id/metropolitan-district-council/walsall ,WC149-777,30.04.2023,"ECONOMY, ENVIRONMENT & COMMUNITIES",AQUILA TRUCK CENTRES LTD,14/04/2023,"1,020.30",6410-Materials,SUPPLIES & SERVICES,EQUIPMENT FURNITURE & MATERIALS,REVENUE
Walsall Council,http://opendatacommunities.org/id/metropolitan-district-council/walsall ,WC149-778,30.04.2023,"ECONOMY, ENVIRONMENT & COMMUNITIES",AQUILA TRUCK CENTRES LTD,14/04/2023,266.40,6410-Materials,SUPPLIES & SERVICES,EQUIPMENT FURNITURE & MATERIALS,REVENUE
Walsall Council,http://opendatacommunities.org/id/metropolitan-district-council/walsall ,WC149-779,30.04.2023,CHILDRENS,ARBORETUM HOUSE LTD T/A SAFE HAVEN ARBORETUM HOUSE,17/04/2023,"2,781.42",6223-External Residential Care-Oth Agency Provision,THIRD PARTY PAYMENTS,PRIVATE CONTRACTOR,REVENUE
Walsall Council,http://opendatacommunities.org/id/metropolitan-district-council/walsall ,WC149-780,30.04.2023,ADULT SOCIAL CARE,ARBORETUM NURSING HOME.,05/04/2023,"1,700.00",6541-Nursing,THIRD PARTY PAYMENTS,PRIVATE CONTRACTOR,REVENUE
Walsall Council,http://opendatacommunities.org/id/metropolitan-district-council/walsall ,WC149-781,30.04.2023,ADULT SOCIAL CARE,ARBORETUM NURSING HOME.,11/04/2023,"2,456.24",6541-Nursing,THIRD PARTY PAYMENTS,PRIVATE CONTRACTOR,REVENUE
Walsall Council,http://opendatacommunities.org/id/metropolitan-district-council/walsall ,WC149-782,30.04.2023,ADULT SOCIAL CARE,ARBORETUM NURSING HOME.,11/04/2023,"2,456.24",6541-Nursing,THIRD PARTY PAYMENTS,PRIVATE CONTRACTOR,REVENUE
Walsall Council,http://opendatacommunities.org/id/metropolitan-district-council/walsall ,WC149-783,30.04.2023,ADULT SOCIAL CARE,ARBORETUM NURSING HOME.,11/04/2023,"2,636.24",6541-Nursing,THIRD PARTY PAYMENTS,PRIVATE CONTRACTOR,REVENUE
Walsall Council,http://opendatacommunities.org/id/metropolitan-district-council/walsall ,WC149-784,30.04.2023,ADULT SOCIAL CARE,ARBORETUM NURSING HOME.,11/04/2023,"2,456.24",6541-Nursing,THIRD PARTY PAYMENTS,PRIVATE CONTRACTOR,REVENUE
Walsall Council,http://opendatacommunities.org/id/metropolitan-district-council/walsall ,WC149-785,30.04.2023,ADULT SOCIAL CARE,ARBORETUM NURSING HOME.,11/04/2023,"2,456.24",6541-Nursing,THIRD PARTY PAYMENTS,PRIVATE CONTRACTOR,REVENUE
Walsall Council,http://opendatacommunities.org/id/metropolitan-district-council/walsall ,WC149-786,30.04.2023,ADULT SOCIAL CARE,ARBORETUM NURSING HOME.,11/04/2023,"2,456.24",6541-Nursing,THIRD PARTY PAYMENTS,PRIVATE CONTRACTOR,REVENUE
Walsall Council,http://opendatacommunities.org/id/metropolitan-district-council/walsall ,WC149-787,30.04.2023,ADULT SOCIAL CARE,ARBORETUM NURSING HOME.,11/04/2023,"2,636.24",6541-Nursing,THIRD PARTY PAYMENTS,PRIVATE CONTRACTOR,REVENUE
Walsall Council,http://opendatacommunities.org/id/metropolitan-district-council/walsall ,WC149-788,30.04.2023,ADULT SOCIAL CARE,ARBORETUM NURSING HOME.,11/04/2023,"2,636.24",6541-Nursing,THIRD PARTY PAYMENTS,PRIVATE CONTRACTOR,REVENUE
Walsall Council,http://opendatacommunities.org/id/metropolitan-district-council/walsall ,WC149-789,30.04.2023,ADULT SOCIAL CARE,ARBORETUM NURSING HOME.,11/04/2023,"1,542.85",6554-Professional Services-Priv Contractor & Other Agencies,THIRD PARTY PAYMENTS,PRIVATE CONTRACTOR,REVENUE
Walsall Council,http://opendatacommunities.org/id/metropolitan-district-council/walsall ,WC149-790,30.04.2023,ADULT SOCIAL CARE,ARBORETUM NURSING HOME.,11/04/2023,971.43,6554-Professional Services-Priv Contractor & Other Agencies,THIRD PARTY PAYMENTS,PRIVATE CONTRACTOR,REVENUE
Walsall Council,http://opendatacommunities.org/id/metropolitan-district-council/walsall ,WC149-791,30.04.2023,ADULT SOCIAL CARE,ARBORETUM NURSING HOME.,11/04/2023,"2,500.00",6541-Nursing,THIRD PARTY PAYMENTS,PRIVATE CONTRACTOR,REVENUE
Walsall Council,http://opendatacommunities.org/id/metropolitan-district-council/walsall ,WC149-792,30.04.2023,ADULT SOCIAL CARE,ARBORETUM NURSING HOME.,11/04/2023,"2,456.24",6541-Nursing,THIRD PARTY PAYMENTS,PRIVATE CONTRACTOR,REVENUE
